﻿Department Family,Entity,Date,Expense Type,Expense Area,Supplier,Transaction Number,Amount,Item Description
BEIS,UKRI - AHRC,04/01/2023,Unspecified,Infrastructure Fund - RICHeS,Alexander Mann Solutions Ltd,99867342,3811.84,Legal & Professional Services
BEIS,UKRI - AHRC,04/01/2023,Unspecified,Infrastructure Fund - RICHeS,Alexander Mann Solutions Ltd,99869758,1732.66,Legal & Professional Services
BEIS,UKRI - AHRC,04/01/2023,Corporate Events,AI&Design,Calder Conference Ltd,99871596,221.21,Corporate Events
BEIS,UKRI - AHRC,04/01/2023,UK - Professional Memberships & Subscriptions,AHRC - Creative Industries,Unspecified,99872588,63.00,UK - Professional Memberships & Subscriptions
BEIS,UKRI - AHRC,06/01/2023,Conferences & Seminars,FIC- China,UKRI - Engineering & Physical Sciences Research Council,99871807,-28292.00,Conferences & Seminars
BEIS,UKRI - AHRC,06/01/2023,Conferences & Seminars,FIC- China,UKRI - Engineering & Physical Sciences Research Council,99871809,28292.00,Conferences & Seminars
BEIS,UKRI - AHRC,06/01/2023,Fees (Including College Members),Operations,Unspecified,99872860,115.00,Fees (Including College Members)
BEIS,UKRI - AHRC,06/01/2023,T&S UK - Accommodation,Board and Committee,Corporate Travel Management (North) Ltd,99872971,0.80,T&S UK - Accommodation
BEIS,UKRI - AHRC,06/01/2023,T&S UK - Accommodation,Board and Committee,Corporate Travel Management (North) Ltd,99872971,430.00,T&S UK - Accommodation
BEIS,UKRI - AHRC,06/01/2023,T&S UK - Accommodation,Board and Committee,Corporate Travel Management (North) Ltd,99872971,0.80,T&S UK - Accommodation
BEIS,UKRI - AHRC,06/01/2023,T&S UK - Accommodation,Board and Committee,Corporate Travel Management (North) Ltd,99872971,215.00,T&S UK - Accommodation
BEIS,UKRI - AHRC,06/01/2023,T&S UK - Accommodation,Board and Committee,Corporate Travel Management (North) Ltd,99872971,0.32,T&S UK - Accommodation
BEIS,UKRI - AHRC,06/01/2023,T&S UK - Accommodation,Executive Office,Corporate Travel Management (North) Ltd,99872971,0.80,T&S UK - Accommodation
BEIS,UKRI - AHRC,06/01/2023,T&S UK - Accommodation,Executive Office,Corporate Travel Management (North) Ltd,99872971,135.00,T&S UK - Accommodation
BEIS,UKRI - AHRC,06/01/2023,T&S UK - Accommodation,Executive Office,Corporate Travel Management (North) Ltd,99872971,0.80,T&S UK - Accommodation
BEIS,UKRI - AHRC,06/01/2023,T&S UK - Accommodation,Executive Office,Corporate Travel Management (North) Ltd,99872971,135.00,T&S UK - Accommodation
BEIS,UKRI - AHRC,06/01/2023,T&S UK - Accommodation,Executive Office,Corporate Travel Management (North) Ltd,99872971,0.32,T&S UK - Accommodation
BEIS,UKRI - AHRC,06/01/2023,T&S UK - Accommodation,Infrastruture Roadmap,Corporate Travel Management (North) Ltd,99872971,0.80,T&S UK - Accommodation
BEIS,UKRI - AHRC,06/01/2023,T&S UK - Accommodation,Infrastruture Roadmap,Corporate Travel Management (North) Ltd,99872971,88.00,T&S UK - Accommodation
BEIS,UKRI - AHRC,06/01/2023,T&S UK - Accommodation,Infrastruture Roadmap,Corporate Travel Management (North) Ltd,99872971,0.16,T&S UK - Accommodation
BEIS,UKRI - AHRC,06/01/2023,T&S UK - Accommodation,SMT,Corporate Travel Management (North) Ltd,99872971,0.80,T&S UK - Accommodation
BEIS,UKRI - AHRC,06/01/2023,T&S UK - Accommodation,SMT,Corporate Travel Management (North) Ltd,99872971,190.00,T&S UK - Accommodation
BEIS,UKRI - AHRC,06/01/2023,T&S UK - Accommodation,SMT,Corporate Travel Management (North) Ltd,99872971,0.80,T&S UK - Accommodation
BEIS,UKRI - AHRC,06/01/2023,T&S UK - Accommodation,SMT,Corporate Travel Management (North) Ltd,99872971,215.00,T&S UK - Accommodation
BEIS,UKRI - AHRC,06/01/2023,T&S UK - Accommodation,SMT,Corporate Travel Management (North) Ltd,99872971,0.32,T&S UK - Accommodation
BEIS,UKRI - AHRC,06/01/2023,T&S UK - Flights,AHRC - Creative Industries,Corporate Travel Management (North) Ltd,99872971,2.50,T&S UK - Flights
BEIS,UKRI - AHRC,06/01/2023,T&S UK - Flights,AHRC - Creative Industries,Corporate Travel Management (North) Ltd,99872971,74.98,T&S UK - Flights
BEIS,UKRI - AHRC,06/01/2023,T&S UK - Parking Tolls Congestion Charges,AI&Design,Corporate Travel Management (North) Ltd,99872971,4.50,T&S UK - Parking Tolls Congestion Charges
BEIS,UKRI - AHRC,06/01/2023,T&S UK - Parking Tolls Congestion Charges,AI&Design,Corporate Travel Management (North) Ltd,99872971,45.99,T&S UK - Parking Tolls Congestion Charges
BEIS,UKRI - AHRC,06/01/2023,T&S UK - Parking Tolls Congestion Charges,AI&Design,Corporate Travel Management (North) Ltd,99872971,4.50,T&S UK - Parking Tolls Congestion Charges
BEIS,UKRI - AHRC,06/01/2023,T&S UK - Parking Tolls Congestion Charges,AI&Design,Corporate Travel Management (North) Ltd,99872971,39.99,T&S UK - Parking Tolls Congestion Charges
BEIS,UKRI - AHRC,06/01/2023,T&S UK - Parking Tolls Congestion Charges,AI&Design,Corporate Travel Management (North) Ltd,99872971,4.50,T&S UK - Parking Tolls Congestion Charges
BEIS,UKRI - AHRC,06/01/2023,T&S UK - Parking Tolls Congestion Charges,AI&Design,Corporate Travel Management (North) Ltd,99872971,27.99,T&S UK - Parking Tolls Congestion Charges
BEIS,UKRI - AHRC,06/01/2023,T&S UK - Parking Tolls Congestion Charges,AI&Design,Corporate Travel Management (North) Ltd,99872971,4.50,T&S UK - Parking Tolls Congestion Charges
BEIS,UKRI - AHRC,06/01/2023,T&S UK - Parking Tolls Congestion Charges,AI&Design,Corporate Travel Management (North) Ltd,99872971,45.99,T&S UK - Parking Tolls Congestion Charges
BEIS,UKRI - AHRC,06/01/2023,T&S UK - Parking Tolls Congestion Charges,AI&Design,Corporate Travel Management (North) Ltd,99872971,4.50,T&S UK - Parking Tolls Congestion Charges
BEIS,UKRI - AHRC,06/01/2023,T&S UK - Parking Tolls Congestion Charges,AI&Design,Corporate Travel Management (North) Ltd,99872971,39.99,T&S UK - Parking Tolls Congestion Charges
BEIS,UKRI - AHRC,06/01/2023,T&S UK - Parking Tolls Congestion Charges,AI&Design,Corporate Travel Management (North) Ltd,99872971,4.50,T&S UK - Parking Tolls Congestion Charges
BEIS,UKRI - AHRC,06/01/2023,T&S UK - Public Transport,AHRC - Creative Industries,Corporate Travel Management (North) Ltd,99872971,-96.60,T&S UK - Public Transport
BEIS,UKRI - AHRC,06/01/2023,T&S UK - Public Transport,Executive Office,Corporate Travel Management (North) Ltd,99872971,0.25,T&S UK - Public Transport
BEIS,UKRI - AHRC,06/01/2023,T&S UK - Public Transport,Executive Office,Corporate Travel Management (North) Ltd,99872971,20.00,T&S UK - Public Transport
BEIS,UKRI - AHRC,06/01/2023,T&S UK - Public Transport,Infrastruture Roadmap,Corporate Travel Management (North) Ltd,99872971,0.25,T&S UK - Public Transport
BEIS,UKRI - AHRC,06/01/2023,T&S UK - Public Transport,Infrastruture Roadmap,Corporate Travel Management (North) Ltd,99872971,72.90,T&S UK - Public Transport
BEIS,UKRI - AHRC,06/01/2023,T&S UK - Public Transport,Infrastruture Roadmap,Corporate Travel Management (North) Ltd,99872971,5.00,T&S UK - Public Transport
BEIS,UKRI - AHRC,06/01/2023,T&S UK - Public Transport,Infrastruture Roadmap,Corporate Travel Management (North) Ltd,99872971,-48.90,T&S UK - Public Transport
BEIS,UKRI - AHRC,06/01/2023,T&S UK - Public Transport,Infrastruture Roadmap,Corporate Travel Management (North) Ltd,99872971,-51.00,T&S UK - Public Transport
BEIS,UKRI - AHRC,06/01/2023,T&S UK - Public Transport,Infrastruture Roadmap,Corporate Travel Management (North) Ltd,99872971,5.00,T&S UK - Public Transport
BEIS,UKRI - AHRC,06/01/2023,T&S UK - Public Transport,Infrastruture Roadmap,Corporate Travel Management (North) Ltd,99872971,-152.20,T&S UK - Public Transport
BEIS,UKRI - AHRC,06/01/2023,T&S UK - Public Transport,Public and Stakeholder Engagement,Corporate Travel Management (North) Ltd,99872971,0.25,T&S UK - Public Transport
BEIS,UKRI - AHRC,06/01/2023,T&S UK - Public Transport,Public and Stakeholder Engagement,Corporate Travel Management (North) Ltd,99872971,6.90,T&S UK - Public Transport
BEIS,UKRI - AHRC,06/01/2023,T&S UK - Public Transport,Public and Stakeholder Engagement,Corporate Travel Management (North) Ltd,99872971,0.25,T&S UK - Public Transport
BEIS,UKRI - AHRC,06/01/2023,T&S UK - Public Transport,Public and Stakeholder Engagement,Corporate Travel Management (North) Ltd,99872971,11.70,T&S UK - Public Transport
BEIS,UKRI - AHRC,06/01/2023,T&S UK - Public Transport,Public and Stakeholder Engagement,Corporate Travel Management (North) Ltd,99872971,0.25,T&S UK - Public Transport
BEIS,UKRI - AHRC,06/01/2023,T&S UK - Public Transport,Public and Stakeholder Engagement,Corporate Travel Management (North) Ltd,99872971,106.30,T&S UK - Public Transport
BEIS,UKRI - AHRC,06/01/2023,T&S UK - Public Transport,Public and Stakeholder Engagement,Corporate Travel Management (North) Ltd,99872971,0.25,T&S UK - Public Transport
BEIS,UKRI - AHRC,06/01/2023,T&S UK - Public Transport,Public and Stakeholder Engagement,Corporate Travel Management (North) Ltd,99872971,80.20,T&S UK - Public Transport
BEIS,UKRI - AHRC,06/01/2023,T&S UK - Public Transport,SMT,Corporate Travel Management (North) Ltd,99872971,0.25,T&S UK - Public Transport
BEIS,UKRI - AHRC,06/01/2023,T&S UK - Public Transport,SMT,Corporate Travel Management (North) Ltd,99872971,57.20,T&S UK - Public Transport
BEIS,UKRI - AHRC,06/01/2023,T&S UK - Public Transport,SMT,Corporate Travel Management (North) Ltd,99872971,0.25,T&S UK - Public Transport
BEIS,UKRI - AHRC,06/01/2023,T&S UK - Public Transport,SMT,Corporate Travel Management (North) Ltd,99872971,32.20,T&S UK - Public Transport
BEIS,UKRI - AHRC,06/01/2023,T&S UK - Public Transport,SMT,Corporate Travel Management (North) Ltd,99872971,0.25,T&S UK - Public Transport
BEIS,UKRI - AHRC,06/01/2023,T&S UK - Public Transport,SMT,Corporate Travel Management (North) Ltd,99872971,32.20,T&S UK - Public Transport
BEIS,UKRI - AHRC,06/01/2023,T&S UK - Public Transport,SMT,Corporate Travel Management (North) Ltd,99872971,0.50,T&S UK - Public Transport
BEIS,UKRI - AHRC,06/01/2023,T&S UK - Public Transport,SMT,Corporate Travel Management (North) Ltd,99872971,80.90,T&S UK - Public Transport
BEIS,UKRI - AHRC,06/01/2023,T&S UK - Public Transport,SMT,Corporate Travel Management (North) Ltd,99872971,0.25,T&S UK - Public Transport
BEIS,UKRI - AHRC,06/01/2023,T&S UK - Public Transport,SMT,Corporate Travel Management (North) Ltd,99872971,73.00,T&S UK - Public Transport
BEIS,UKRI - AHRC,06/01/2023,T&S UK - Public Transport,SMT,Corporate Travel Management (North) Ltd,99872971,5.00,T&S UK - Public Transport
BEIS,UKRI - AHRC,06/01/2023,T&S UK - Public Transport,SMT,Corporate Travel Management (North) Ltd,99872971,-49.10,T&S UK - Public Transport
BEIS,UKRI - AHRC,06/01/2023,T&S UK - Public Transport,Skills Strategy,Corporate Travel Management (North) Ltd,99872971,0.25,T&S UK - Public Transport
BEIS,UKRI - AHRC,06/01/2023,T&S UK - Public Transport,Skills Strategy,Corporate Travel Management (North) Ltd,99872971,180.20,T&S UK - Public Transport
BEIS,UKRI - AHRC,06/01/2023,T&S UK - Public Transport,Strategy and Evidence,Corporate Travel Management (North) Ltd,99872971,5.00,T&S UK - Public Transport
BEIS,UKRI - AHRC,06/01/2023,T&S UK - Public Transport,Strategy and Evidence,Corporate Travel Management (North) Ltd,99872971,-140.20,T&S UK - Public Transport
BEIS,UKRI - AHRC,10/01/2023,Other Programme Costs,International Placement Scheme,University of East Anglia,99875098,1650.00,Other Programme Costs
BEIS,UKRI - AHRC,11/01/2023,Non-staff travel and subsistance,Operations,Unspecified,99872591,207.36,Non-staff travel and subsistance
BEIS,UKRI - AHRC,11/01/2023,Fees (Including College Members),Operations,Unspecified,99872592,522.54,Fees (Including College Members)
BEIS,UKRI - AHRC,11/01/2023,T&S UK - Subsistence,SMT,Unspecified,99874717,30.00,T&S UK - Subsistence
BEIS,UKRI - AHRC,12/01/2023,Other Programme Costs,Infrastructure Fund - Preliminary activity - RICHes (Science R&D),ICF Consulting Services Ltd,99867395,36000.00,Other Programme Costs
BEIS,UKRI - AHRC,12/01/2023,Other Programme Costs,Infrastructure Fund - Preliminary activity - RICHes (Science R&D),ICF Consulting Services Ltd,99867395,15480.00,Other Programme Costs
BEIS,UKRI - AHRC,12/01/2023,Unspecified,SMT,University of St Andrews,99874149,20197.10,Secondments
BEIS,UKRI - AHRC,12/01/2023,Unspecified,Balance Sheet,HM Revenue & Customs,99875201,60367.87,NI Payable Salaries
BEIS,UKRI - AHRC,12/01/2023,Unspecified,Balance Sheet,HM Revenue & Customs,99875202,48757.15,PAYE Payable Salaries
BEIS,UKRI - AHRC,12/01/2023,Unspecified,Balance Sheet,HM Revenue & Customs,99875203,5129.00,Student Loans
BEIS,UKRI - AHRC,12/01/2023,Unspecified,Corporate Services,HM Revenue & Customs,99875204,1670.00,Apprenticeship Levy
BEIS,UKRI - AHRC,12/01/2023,Conferences & Seminars,Infrastructure Fund - CoSTAR,BIGMEDIA LTD T/A CHINWAG,99877529,29970.00,Conferences & Seminars
BEIS,UKRI - AHRC,13/01/2023,Voluntary Deductions,Balance Sheet,Swindon Office Sports and Social Club,99875205,34.00,Voluntary Deductions
BEIS,UKRI - AHRC,13/01/2023,Union Deductions,Balance Sheet,PCS Union,99875206,58.67,Union Deductions
BEIS,UKRI - AHRC,13/01/2023,Unspecified,Balance Sheet,Unspecified,99875207,8074.89,Ees Pension Deductions - JSS
BEIS,UKRI - AHRC,13/01/2023,Unspecified,Balance Sheet,Unspecified,99875208,35869.05,Ers Pension Deductions - JSS
BEIS,UKRI - AHRC,13/01/2023,Unspecified,Balance Sheet,Scottish Widows,99875209,207.69,Partnership Pension Deductions
BEIS,UKRI - AHRC,13/01/2023,Unspecified,Balance Sheet,Cabinet Office RM Shared Services,99875210,12064.64,Ees Pension Deductions - MyCSP
BEIS,UKRI - AHRC,13/01/2023,Unspecified,Balance Sheet,Cabinet Office RM Shared Services,99875211,54392.64,Ers Pension Deductions - MyCSP
BEIS,UKRI - AHRC,13/01/2023,Unspecified,Balance Sheet,Unspecified,99875212,539.45,Ees Pension Deductions - MRC
BEIS,UKRI - AHRC,13/01/2023,Unspecified,Balance Sheet,Unspecified,99875213,1327.87,Ers Pension Deductions - MRC
BEIS,UKRI - AHRC,13/01/2023,Nursery Deductions,Balance Sheet,UKRI - Engineering & Physical Sciences Research Council,99875214,1227.00,Nursery Deductions
BEIS,UKRI - AHRC,13/01/2023,Payroll Clearing,Balance Sheet,Civil Service Benevolent Fund,99875215,5.00,Payroll Clearing
BEIS,UKRI - AHRC,13/01/2023,Other Programme Costs,International Placement Scheme,University of York,99878335,1650.00,Other Programme Costs
BEIS,UKRI - AHRC,16/01/2023,Unspecified,Infrastructure Fund - RICHeS,Alexander Mann Solutions Ltd,99879114,1386.12,Legal & Professional Services
BEIS,UKRI - AHRC,16/01/2023,T&S UK - Public Transport,Public and Stakeholder Engagement,Unspecified,99879958,11.10,T&S UK - Public Transport
BEIS,UKRI - AHRC,16/01/2023,T&S UK - Public Transport,Public and Stakeholder Engagement,Unspecified,99879958,2.80,T&S UK - Public Transport
BEIS,UKRI - AHRC,16/01/2023,T&S UK - Subsistence,Public and Stakeholder Engagement,Unspecified,99879958,27.95,T&S UK - Subsistence
BEIS,UKRI - AHRC,16/01/2023,T&S UK - Subsistence,Public and Stakeholder Engagement,Unspecified,99879958,3.80,T&S UK - Subsistence
BEIS,UKRI - AHRC,17/01/2023,Health & Safety (inc. Medicals & Opticians),"Health, Environmental & Urban Humanities (HEUH)",Unspecified,99866415,14.99,Health & Safety (inc. Medicals & Opticians)
BEIS,UKRI - AHRC,17/01/2023,T&S UK - Public Transport,"Health, Environmental & Urban Humanities (HEUH)",Unspecified,99866415,51.60,T&S UK - Public Transport
BEIS,UKRI - AHRC,17/01/2023,T&S UK - Subsistence,"Health, Environmental & Urban Humanities (HEUH)",Unspecified,99866415,15.60,T&S UK - Subsistence
BEIS,UKRI - AHRC,17/01/2023,Fees (Including College Members),Operations,Unspecified,99880246,230.00,Fees (Including College Members)
BEIS,UKRI - AHRC,17/01/2023,Fees (Including College Members),Operations,Unspecified,99880247,340.00,Fees (Including College Members)
BEIS,UKRI - AHRC,18/01/2023,Other Programme Costs,International Placement Scheme,Lancaster University,99881074,1000.00,Other Programme Costs
BEIS,UKRI - AHRC,18/01/2023,Fees (Including College Members),Operations,Unspecified,99881081,170.00,Fees (Including College Members)
BEIS,UKRI - AHRC,18/01/2023,Fees (Including College Members),Operations,Unspecified,99881413,230.00,Fees (Including College Members)
BEIS,UKRI - AHRC,18/01/2023,T&S UK - Other Charges,Operations,Unspecified,99881548,13.75,T&S UK - Other Charges
BEIS,UKRI - AHRC,19/01/2023,Meetings & Catering,"Health, Environmental & Urban Humanities (HEUH)",Calder Conference Ltd,99881656,168.00,Meetings & Catering
BEIS,UKRI - AHRC,19/01/2023,Staff Training,Public Engagement,University of the West of England,99881672,900.00,Staff Training
BEIS,UKRI - AHRC,23/01/2023,Training Awards - Postgraduates,Collabrative Doctoral Grants - Block Payment,University of Sheffield,99878429,5677.00,Training Awards - Postgraduates
BEIS,UKRI - AHRC,23/01/2023,Training Awards - Postgraduates,Collabrative Doctoral Grants - Block Payment,University of Sheffield,99878429,6480.00,Training Awards - Postgraduates
BEIS,UKRI - AHRC,23/01/2023,Training Awards - Postgraduates,Collabrative Doctoral Grants - Block Payment,University of Durham,99878430,5677.00,Training Awards - Postgraduates
BEIS,UKRI - AHRC,23/01/2023,Training Awards - Postgraduates,Collabrative Doctoral Grants - Block Payment,University of Durham,99878430,6480.00,Training Awards - Postgraduates
BEIS,UKRI - AHRC,23/01/2023,Training Awards - Postgraduates,Collabrative Doctoral Grants - Block Payment,The University of Manchester,99878431,5677.00,Training Awards - Postgraduates
BEIS,UKRI - AHRC,23/01/2023,Training Awards - Postgraduates,Collabrative Doctoral Grants - Block Payment,The University of Manchester,99878431,6480.00,Training Awards - Postgraduates
BEIS,UKRI - AHRC,23/01/2023,Training Awards - Postgraduates,Collabrative Doctoral Grants - Block Payment,King's College London,99878432,5927.00,Training Awards - Postgraduates
BEIS,UKRI - AHRC,23/01/2023,Training Awards - Postgraduates,Collabrative Doctoral Grants - Block Payment,King's College London,99878432,6730.00,Training Awards - Postgraduates
BEIS,UKRI - AHRC,23/01/2023,Training Awards - Postgraduates,Collabrative Doctoral Grants - Block Payment,University of the Highlands and Islands,99878433,6230.00,Training Awards - Postgraduates
BEIS,UKRI - AHRC,23/01/2023,Training Awards - Postgraduates,Collabrative Doctoral Grants - Block Payment,University of Kent,99878434,5427.00,Training Awards - Postgraduates
BEIS,UKRI - AHRC,23/01/2023,Training Awards - Postgraduates,Collabrative Doctoral Grants - Block Payment,University of Kent,99878434,6230.00,Training Awards - Postgraduates
BEIS,UKRI - AHRC,23/01/2023,Training Awards - Postgraduates,Collabrative Doctoral Grants - Block Payment,University of East Anglia,99878435,5677.00,Training Awards - Postgraduates
BEIS,UKRI - AHRC,23/01/2023,Training Awards - Postgraduates,Collabrative Doctoral Grants - Block Payment,University of East Anglia,99878435,6078.50,Training Awards - Postgraduates
BEIS,UKRI - AHRC,23/01/2023,Training Awards - Postgraduates,Collabrative Doctoral Grants - Block Payment,"Royal Holloway, University of London",99878436,5927.00,Training Awards - Postgraduates
BEIS,UKRI - AHRC,23/01/2023,Training Awards - Postgraduates,Collabrative Doctoral Grants - Block Payment,"Royal Holloway, University of London",99878436,6730.00,Training Awards - Postgraduates
BEIS,UKRI - AHRC,23/01/2023,Training Awards - Postgraduates,Collabrative Doctoral Grants - Block Payment,University of Exeter,99878437,5677.00,Training Awards - Postgraduates
BEIS,UKRI - AHRC,23/01/2023,Training Awards - Postgraduates,Collabrative Doctoral Grants - Block Payment,Cardiff University,99878438,5427.00,Training Awards - Postgraduates
BEIS,UKRI - AHRC,23/01/2023,Training Awards - Postgraduates,Collabrative Doctoral Grants - Block Payment,Cardiff University,99878438,6230.00,Training Awards - Postgraduates
BEIS,UKRI - AHRC,23/01/2023,Training Awards - Postgraduates,Collabrative Doctoral Grants - Block Payment,University of Edinburgh,99878439,6230.00,Training Awards - Postgraduates
BEIS,UKRI - AHRC,23/01/2023,Training Awards - Postgraduates,Collabrative Doctoral Grants - Block Payment,University of Oxford,99878440,6230.00,Training Awards - Postgraduates
BEIS,UKRI - AHRC,23/01/2023,Training Awards - Postgraduates,Collabrative Doctoral Grants - Block Payment,Queen Mary University of London,99878441,5927.00,Training Awards - Postgraduates
BEIS,UKRI - AHRC,23/01/2023,Training Awards - Postgraduates,Collabrative Doctoral Grants - Block Payment,Queen Mary University of London,99878441,6730.00,Training Awards - Postgraduates
BEIS,UKRI - AHRC,23/01/2023,Training Awards - Postgraduates,Collabrative Doctoral Grants - Block Payment,University of York,99878442,5677.00,Training Awards - Postgraduates
BEIS,UKRI - AHRC,23/01/2023,Training Awards - Postgraduates,Collabrative Doctoral Grants - Block Payment,University of York,99878442,6480.00,Training Awards - Postgraduates
BEIS,UKRI - AHRC,23/01/2023,Training Awards - Postgraduates,Collabrative Doctoral Grants - Block Payment,University of Westminster,99878443,5927.00,Training Awards - Postgraduates
BEIS,UKRI - AHRC,23/01/2023,Training Awards - Postgraduates,Collabrative Doctoral Grants - Block Payment,University of Westminster,99878443,6730.00,Training Awards - Postgraduates
BEIS,UKRI - AHRC,23/01/2023,Training Awards - Postgraduates,Collabrative Doctoral Grants - Block Payment,University College London,99878444,5927.00,Training Awards - Postgraduates
BEIS,UKRI - AHRC,23/01/2023,Training Awards - Postgraduates,Collabrative Doctoral Grants - Block Payment,University College London,99878444,6730.00,Training Awards - Postgraduates
BEIS,UKRI - AHRC,23/01/2023,Training Awards - Postgraduates,Collabrative Doctoral Grants - Block Payment,Teesside University,99878445,6641.38,Training Awards - Postgraduates
BEIS,UKRI - AHRC,23/01/2023,Training Awards - Postgraduates,Collabrative Doctoral Grants - Block Payment,University College London,99878446,5677.00,Training Awards - Postgraduates
BEIS,UKRI - AHRC,23/01/2023,Training Awards - Postgraduates,Collabrative Doctoral Grants - Block Payment,University College London,99878446,6480.00,Training Awards - Postgraduates
BEIS,UKRI - AHRC,23/01/2023,Training Awards - Postgraduates,Collabrative Doctoral Grants - Block Payment,University of Leeds,99878447,5677.00,Training Awards - Postgraduates
BEIS,UKRI - AHRC,23/01/2023,Training Awards - Postgraduates,Collabrative Doctoral Grants - Block Payment,University of Leeds,99878447,6480.00,Training Awards - Postgraduates
BEIS,UKRI - AHRC,23/01/2023,Training Awards - Postgraduates,Collabrative Doctoral Grants - Block Payment,University of Edinburgh,99878448,6230.00,Training Awards - Postgraduates
BEIS,UKRI - AHRC,23/01/2023,Training Awards - Postgraduates,Collabrative Doctoral Grants - Block Payment,University of Durham,99878449,5677.00,Training Awards - Postgraduates
BEIS,UKRI - AHRC,23/01/2023,Training Awards - Postgraduates,Collabrative Doctoral Grants - Block Payment,University of Durham,99878449,6480.00,Training Awards - Postgraduates
BEIS,UKRI - AHRC,23/01/2023,Training Awards - Postgraduates,Collabrative Doctoral Grants - Block Payment,University of Stirling,99878450,5427.00,Training Awards - Postgraduates
BEIS,UKRI - AHRC,23/01/2023,Training Awards - Postgraduates,Collabrative Doctoral Grants - Block Payment,University of Stirling,99878450,6230.00,Training Awards - Postgraduates
BEIS,UKRI - AHRC,23/01/2023,Training Awards - Postgraduates,Collabrative Doctoral Grants - Block Payment,University of Liverpool,99878451,5677.00,Training Awards - Postgraduates
BEIS,UKRI - AHRC,23/01/2023,Training Awards - Postgraduates,Collabrative Doctoral Grants - Block Payment,University of Liverpool,99878451,5677.00,Training Awards - Postgraduates
BEIS,UKRI - AHRC,23/01/2023,Training Awards - Postgraduates,Collabrative Doctoral Grants - Block Payment,University of Kent,99878452,5677.00,Training Awards - Postgraduates
BEIS,UKRI - AHRC,23/01/2023,Training Awards - Postgraduates,Collabrative Doctoral Grants - Block Payment,University of Kent,99878452,6480.00,Training Awards - Postgraduates
BEIS,UKRI - AHRC,23/01/2023,Training Awards - Postgraduates,Collabrative Doctoral Grants - Block Payment,Birkbeck College,99878453,5927.00,Training Awards - Postgraduates
BEIS,UKRI - AHRC,23/01/2023,Training Awards - Postgraduates,Collabrative Doctoral Grants - Block Payment,Birkbeck College,99878453,6730.00,Training Awards - Postgraduates
BEIS,UKRI - AHRC,23/01/2023,Training Awards - Postgraduates,Collabrative Doctoral Grants - Block Payment,University College London,99878454,5927.00,Training Awards - Postgraduates
BEIS,UKRI - AHRC,23/01/2023,Training Awards - Postgraduates,Collabrative Doctoral Grants - Block Payment,University College London,99878454,6730.00,Training Awards - Postgraduates
BEIS,UKRI - AHRC,23/01/2023,Training Awards - Postgraduates,Collabrative Doctoral Grants - Block Payment,King's College London,99878455,5927.00,Training Awards - Postgraduates
BEIS,UKRI - AHRC,23/01/2023,Training Awards - Postgraduates,Collabrative Doctoral Grants - Block Payment,King's College London,99878455,6730.00,Training Awards - Postgraduates
BEIS,UKRI - AHRC,23/01/2023,Training Awards - Postgraduates,Collabrative Doctoral Grants - Block Payment,University of Bristol GRANT,99878456,5427.00,Training Awards - Postgraduates
BEIS,UKRI - AHRC,23/01/2023,Training Awards - Postgraduates,Collabrative Doctoral Grants - Block Payment,University of Bristol GRANT,99878456,6230.00,Training Awards - Postgraduates
BEIS,UKRI - AHRC,23/01/2023,Training Awards - Postgraduates,Collabrative Doctoral Grants - Block Payment,University of Leeds,99878457,5677.00,Training Awards - Postgraduates
BEIS,UKRI - AHRC,23/01/2023,Training Awards - Postgraduates,Collabrative Doctoral Grants - Block Payment,University of Leeds,99878457,6480.00,Training Awards - Postgraduates
BEIS,UKRI - AHRC,23/01/2023,Training Awards - Postgraduates,Collabrative Doctoral Grants - Block Payment,University of Warwick,99878458,5677.00,Training Awards - Postgraduates
BEIS,UKRI - AHRC,23/01/2023,Training Awards - Postgraduates,Collabrative Doctoral Grants - Block Payment,University of Warwick,99878458,6480.00,Training Awards - Postgraduates
BEIS,UKRI - AHRC,23/01/2023,Training Awards - Postgraduates,Collabrative Doctoral Grants - Block Payment,University of Durham,99878459,5677.00,Training Awards - Postgraduates
BEIS,UKRI - AHRC,23/01/2023,Training Awards - Postgraduates,Collabrative Doctoral Grants - Block Payment,University of Durham,99878459,6480.00,Training Awards - Postgraduates
BEIS,UKRI - AHRC,23/01/2023,Training Awards - Postgraduates,Collabrative Doctoral Grants - Block Payment,University of Bristol GRANT,99878460,5427.00,Training Awards - Postgraduates
BEIS,UKRI - AHRC,23/01/2023,Training Awards - Postgraduates,Collabrative Doctoral Grants - Block Payment,University of Bristol GRANT,99878460,6230.00,Training Awards - Postgraduates
BEIS,UKRI - AHRC,23/01/2023,Training Awards - Postgraduates,Collabrative Doctoral Grants - Block Payment,University of Reading,99878461,5677.00,Training Awards - Postgraduates
BEIS,UKRI - AHRC,23/01/2023,Training Awards - Postgraduates,Collabrative Doctoral Grants - Block Payment,University of Reading,99878461,6480.00,Training Awards - Postgraduates
BEIS,UKRI - AHRC,23/01/2023,Training Awards - Postgraduates,International Placement Scheme,University of Cambridge,99878462,11500.00,Training Awards - Postgraduates
BEIS,UKRI - AHRC,23/01/2023,Training Awards - Postgraduates,Collabrative Doctoral Grants - Block Payment,University of Sussex,99878463,6047.99,Training Awards - Postgraduates
BEIS,UKRI - AHRC,23/01/2023,Training Awards - Postgraduates,Collabrative Doctoral Grants - Block Payment,University of Southampton GRANT,99878464,6047.99,Training Awards - Postgraduates
BEIS,UKRI - AHRC,23/01/2023,Training Awards - Postgraduates,Collabrative Doctoral Grants - Block Payment,University of Cambridge,99878465,750.00,Training Awards - Postgraduates
BEIS,UKRI - AHRC,23/01/2023,Training Awards - Postgraduates,Collabrative Doctoral Grants - Block Payment,University of Cambridge,99878465,6047.99,Training Awards - Postgraduates
BEIS,UKRI - AHRC,23/01/2023,Training Awards - Postgraduates,Collabrative Doctoral Grants - Block Payment,Bournemouth University,99878466,5646.50,Training Awards - Postgraduates
BEIS,UKRI - AHRC,23/01/2023,Training Awards - Postgraduates,Collabrative Doctoral Grants - Block Payment,Bournemouth University,99878467,5646.50,Training Awards - Postgraduates
BEIS,UKRI - AHRC,23/01/2023,Training Awards - Postgraduates,Collabrative Doctoral Grants - Block Payment,Birkbeck College,99878468,6297.99,Training Awards - Postgraduates
BEIS,UKRI - AHRC,23/01/2023,Training Awards - Postgraduates,Collabrative Doctoral Grants - Block Payment,King's College London,99878469,6297.51,Training Awards - Postgraduates
BEIS,UKRI - AHRC,23/01/2023,Training Awards - Postgraduates,Collabrative Doctoral Grants - Block Payment,University of Warwick,99878470,6047.99,Training Awards - Postgraduates
BEIS,UKRI - AHRC,23/01/2023,Training Awards - Postgraduates,Collabrative Doctoral Grants - Block Payment,University of York,99878471,2556.40,Training Awards - Postgraduates
BEIS,UKRI - AHRC,23/01/2023,Training Awards - Postgraduates,Collabrative Doctoral Grants - Block Payment,University of York,99878471,5797.99,Training Awards - Postgraduates
BEIS,UKRI - AHRC,23/01/2023,Training Awards - Postgraduates,Collabrative Doctoral Grants - Block Payment,University of Oxford,99878472,6047.99,Training Awards - Postgraduates
BEIS,UKRI - AHRC,23/01/2023,Training Awards - Postgraduates,Collabrative Doctoral Grants - Block Payment,Birkbeck College,99878473,6297.99,Training Awards - Postgraduates
BEIS,UKRI - AHRC,23/01/2023,Training Awards - Postgraduates,Collabrative Doctoral Grants - Block Payment,University of Leicester,99878474,5646.50,Training Awards - Postgraduates
BEIS,UKRI - AHRC,23/01/2023,Training Awards - Postgraduates,Collabrative Doctoral Grants - Block Payment,University of Durham,99878475,6047.99,Training Awards - Postgraduates
BEIS,UKRI - AHRC,23/01/2023,Training Awards - Postgraduates,Collabrative Doctoral Grants - Block Payment,University of Edinburgh,99878476,5797.99,Training Awards - Postgraduates
BEIS,UKRI - AHRC,23/01/2023,Training Awards - Postgraduates,Collabrative Doctoral Grants - Block Payment,University College London,99878477,6297.99,Training Awards - Postgraduates
BEIS,UKRI - AHRC,23/01/2023,Training Awards - Postgraduates,Collabrative Doctoral Grants - Block Payment,Birkbeck College,99878478,6297.99,Training Awards - Postgraduates
BEIS,UKRI - AHRC,23/01/2023,Training Awards - Postgraduates,Collabrative Doctoral Grants - Block Payment,University of Southampton GRANT,99878479,6047.99,Training Awards - Postgraduates
BEIS,UKRI - AHRC,23/01/2023,Training Awards - Postgraduates,Collabrative Doctoral Grants - Block Payment,University of Leeds,99878480,6047.99,Training Awards - Postgraduates
BEIS,UKRI - AHRC,23/01/2023,Training Awards - Postgraduates,Collabrative Doctoral Grants - Block Payment,University College London,99878481,6297.99,Training Awards - Postgraduates
BEIS,UKRI - AHRC,23/01/2023,Training Awards - Postgraduates,Collabrative Doctoral Grants - Block Payment,University College London,99878482,6297.99,Training Awards - Postgraduates
BEIS,UKRI - AHRC,23/01/2023,Training Awards - Postgraduates,Collabrative Doctoral Grants - Block Payment,University of Edinburgh,99878483,5797.99,Training Awards - Postgraduates
BEIS,UKRI - AHRC,23/01/2023,Training Awards - Postgraduates,Collabrative Doctoral Grants - Block Payment,Courtauld Institute of Art,99878484,5896.50,Training Awards - Postgraduates
BEIS,UKRI - AHRC,23/01/2023,Training Awards - Postgraduates,Collabrative Doctoral Grants - Block Payment,University of Southampton GRANT,99878485,6047.99,Training Awards - Postgraduates
BEIS,UKRI - AHRC,23/01/2023,Training Awards - Postgraduates,Collabrative Doctoral Grants - Block Payment,University of Leeds,99878486,5797.99,Training Awards - Postgraduates
BEIS,UKRI - AHRC,23/01/2023,Training Awards - Postgraduates,Collabrative Doctoral Grants - Block Payment,University of Exeter,99878487,6047.99,Training Awards - Postgraduates
BEIS,UKRI - AHRC,23/01/2023,Training Awards - Postgraduates,Collabrative Doctoral Grants - Block Payment,University of Exeter,99878488,6047.99,Training Awards - Postgraduates
BEIS,UKRI - AHRC,23/01/2023,Training Awards - Postgraduates,Collabrative Doctoral Grants - Block Payment,University of Newcastle Upon Tyne,99878489,6047.99,Training Awards - Postgraduates
BEIS,UKRI - AHRC,23/01/2023,Training Awards - Postgraduates,Collabrative Doctoral Grants - Block Payment,"Royal Holloway, University of London",99878490,6297.99,Training Awards - Postgraduates
BEIS,UKRI - AHRC,23/01/2023,Training Awards - Postgraduates,Collabrative Doctoral Grants - Block Payment,University of Hull,99878491,6047.99,Training Awards - Postgraduates
BEIS,UKRI - AHRC,23/01/2023,Training Awards - Postgraduates,Collabrative Doctoral Grants - Block Payment,University of Exeter,99878492,5797.99,Training Awards - Postgraduates
BEIS,UKRI - AHRC,23/01/2023,Training Awards - Postgraduates,Collabrative Doctoral Grants - Block Payment,University of Essex,99878493,6047.99,Training Awards - Postgraduates
BEIS,UKRI - AHRC,23/01/2023,Training Awards - Postgraduates,Collabrative Doctoral Grants - Block Payment,Edge Hill University College,99878494,5646.50,Training Awards - Postgraduates
BEIS,UKRI - AHRC,23/01/2023,Training Awards - Postgraduates,Collabrative Doctoral Grants - Block Payment,Royal Northern College of Music,99878495,5646.50,Training Awards - Postgraduates
BEIS,UKRI - AHRC,23/01/2023,Training Awards - Postgraduates,Collabrative Doctoral Grants - Block Payment,University of Liverpool,99878496,5941.24,Training Awards - Postgraduates
BEIS,UKRI - AHRC,23/01/2023,Training Awards - Postgraduates,Collabrative Doctoral Grants - Block Payment,University of East Anglia,99878497,6047.99,Training Awards - Postgraduates
BEIS,UKRI - AHRC,23/01/2023,Training Awards - Postgraduates,Collabrative Doctoral Grants - Block Payment,University of Edinburgh,99878498,2326.60,Training Awards - Postgraduates
BEIS,UKRI - AHRC,23/01/2023,Training Awards - Postgraduates,Collabrative Doctoral Grants - Block Payment,University of Edinburgh,99878498,5948.45,Training Awards - Postgraduates
BEIS,UKRI - AHRC,23/01/2023,Training Awards - Postgraduates,Collabrative Doctoral Grants - Block Payment,University of Edinburgh,99878499,5797.99,Training Awards - Postgraduates
BEIS,UKRI - AHRC,23/01/2023,Training Awards - Postgraduates,Collabrative Doctoral Grants - Block Payment,University of Leeds,99878500,6108.30,Training Awards - Postgraduates
BEIS,UKRI - AHRC,23/01/2023,Training Awards - Postgraduates,Collabrative Doctoral Grants - Block Payment,University of Brighton,99878501,5797.99,Training Awards - Postgraduates
BEIS,UKRI - AHRC,23/01/2023,Training Awards - Postgraduates,Collabrative Doctoral Grants - Block Payment,The University of Manchester,99878502,6047.99,Training Awards - Postgraduates
BEIS,UKRI - AHRC,23/01/2023,Training Awards - Postgraduates,Collabrative Doctoral Grants - Block Payment,University of York,99878503,6030.49,Training Awards - Postgraduates
BEIS,UKRI - AHRC,23/01/2023,Training Awards - Postgraduates,Collabrative Doctoral Grants - Block Payment,Cardiff University,99878504,5780.49,Training Awards - Postgraduates
BEIS,UKRI - AHRC,23/01/2023,Training Awards - Postgraduates,Collabrative Doctoral Grants - Block Payment,University of Sheffield,99878505,6030.49,Training Awards - Postgraduates
BEIS,UKRI - AHRC,23/01/2023,Training Awards - Postgraduates,Collabrative Doctoral Grants - Block Payment,Heriot Watt University,99878506,5379.00,Training Awards - Postgraduates
BEIS,UKRI - AHRC,23/01/2023,Training Awards - Postgraduates,Collabrative Doctoral Grants - Block Payment,University of Stirling,99878507,5281.00,Training Awards - Postgraduates
BEIS,UKRI - AHRC,23/01/2023,Training Awards - Postgraduates,Collabrative Doctoral Grants - Block Payment,University of Stirling,99878507,5281.00,Training Awards - Postgraduates
BEIS,UKRI - AHRC,23/01/2023,Training Awards - Postgraduates,Collabrative Doctoral Grants - Block Payment,University of Stirling,99878507,5281.00,Training Awards - Postgraduates
BEIS,UKRI - AHRC,23/01/2023,Training Awards - Postgraduates,Collabrative Doctoral Grants - Block Payment,University of Stirling,99878507,5379.00,Training Awards - Postgraduates
BEIS,UKRI - AHRC,23/01/2023,Training Awards - Postgraduates,Collabrative Doctoral Grants - Block Payment,University of Stirling,99878507,5281.00,Training Awards - Postgraduates
BEIS,UKRI - AHRC,23/01/2023,Training Awards - Postgraduates,Collabrative Doctoral Grants - Block Payment,University of Stirling,99878507,5379.00,Training Awards - Postgraduates
BEIS,UKRI - AHRC,23/01/2023,Training Awards - Postgraduates,Collabrative Doctoral Grants - Block Payment,University of Durham,99878508,6030.49,Training Awards - Postgraduates
BEIS,UKRI - AHRC,23/01/2023,Training Awards - Postgraduates,Collabrative Doctoral Grants - Block Payment,University of East Anglia,99878509,5780.49,Training Awards - Postgraduates
BEIS,UKRI - AHRC,23/01/2023,Training Awards - Postgraduates,Collabrative Doctoral Grants - Block Payment,University of East Anglia,99878510,6030.49,Training Awards - Postgraduates
BEIS,UKRI - AHRC,23/01/2023,Training Awards - Postgraduates,Collabrative Doctoral Grants - Block Payment,University of Reading,99878511,5780.49,Training Awards - Postgraduates
BEIS,UKRI - AHRC,23/01/2023,Training Awards - Postgraduates,Collabrative Doctoral Grants - Block Payment,University of Bristol GRANT,99878512,6030.49,Training Awards - Postgraduates
BEIS,UKRI - AHRC,23/01/2023,Training Awards - Postgraduates,Collabrative Doctoral Grants - Block Payment,Birkbeck College,99878513,6280.49,Training Awards - Postgraduates
BEIS,UKRI - AHRC,23/01/2023,Training Awards - Postgraduates,Collabrative Doctoral Grants - Block Payment,University of Lincoln,99878514,6030.49,Training Awards - Postgraduates
BEIS,UKRI - AHRC,23/01/2023,Training Awards - Postgraduates,Collabrative Doctoral Grants - Block Payment,"Royal Holloway, University of London",99878515,6280.49,Training Awards - Postgraduates
BEIS,UKRI - AHRC,23/01/2023,Training Awards - Postgraduates,Collabrative Doctoral Grants - Block Payment,University of Cambridge,99878516,6030.49,Training Awards - Postgraduates
BEIS,UKRI - AHRC,23/01/2023,Training Awards - Postgraduates,Collabrative Doctoral Grants - Block Payment,University of Sheffield,99878517,5780.49,Training Awards - Postgraduates
BEIS,UKRI - AHRC,23/01/2023,Training Awards - Postgraduates,Collabrative Doctoral Grants - Block Payment,University of Cambridge,99878518,6030.49,Training Awards - Postgraduates
BEIS,UKRI - AHRC,23/01/2023,Training Awards - Postgraduates,Collabrative Doctoral Grants - Block Payment,Queen Mary University of London,99878519,5879.00,Training Awards - Postgraduates
BEIS,UKRI - AHRC,23/01/2023,Training Awards - Postgraduates,Collabrative Doctoral Grants - Block Payment,Birkbeck College,99878520,6280.49,Training Awards - Postgraduates
BEIS,UKRI - AHRC,23/01/2023,Training Awards - Postgraduates,Collabrative Doctoral Grants - Block Payment,University of Reading,99878521,6030.49,Training Awards - Postgraduates
BEIS,UKRI - AHRC,23/01/2023,Training Awards - Postgraduates,Collabrative Doctoral Grants - Block Payment,Birkbeck College,99878522,6280.49,Training Awards - Postgraduates
BEIS,UKRI - AHRC,23/01/2023,Training Awards - Postgraduates,Collabrative Doctoral Grants - Block Payment,University of Bath,99878523,5780.49,Training Awards - Postgraduates
BEIS,UKRI - AHRC,23/01/2023,Training Awards - Postgraduates,Collabrative Doctoral Grants - Block Payment,Queen Mary University of London,99878524,6280.49,Training Awards - Postgraduates
BEIS,UKRI - AHRC,23/01/2023,Training Awards - Postgraduates,Collabrative Doctoral Grants - Block Payment,University of Leeds,99878525,6030.49,Training Awards - Postgraduates
BEIS,UKRI - AHRC,23/01/2023,Training Awards - Postgraduates,Collabrative Doctoral Grants - Block Payment,University of Durham,99878526,6030.49,Training Awards - Postgraduates
BEIS,UKRI - AHRC,23/01/2023,Training Awards - Postgraduates,Collabrative Doctoral Grants - Block Payment,Manchester Metropolitan University,99878527,5780.49,Training Awards - Postgraduates
BEIS,UKRI - AHRC,23/01/2023,Training Awards - Postgraduates,Collabrative Doctoral Grants - Block Payment,Birkbeck College,99878528,6280.49,Training Awards - Postgraduates
BEIS,UKRI - AHRC,23/01/2023,Training Awards - Postgraduates,Collabrative Doctoral Grants - Block Payment,Birkbeck College,99878529,6280.49,Training Awards - Postgraduates
BEIS,UKRI - AHRC,23/01/2023,Training Awards - Postgraduates,Collabrative Doctoral Grants - Block Payment,University of London,99878530,6280.49,Training Awards - Postgraduates
BEIS,UKRI - AHRC,23/01/2023,Training Awards - Postgraduates,Collabrative Doctoral Grants - Block Payment,University of London,99878531,6280.49,Training Awards - Postgraduates
BEIS,UKRI - AHRC,23/01/2023,Training Awards - Postgraduates,Collabrative Doctoral Grants - Block Payment,University of Portsmouth,99878532,5629.00,Training Awards - Postgraduates
BEIS,UKRI - AHRC,23/01/2023,Training Awards - Postgraduates,Collabrative Doctoral Grants - Block Payment,Northumbria University,99878533,5780.49,Training Awards - Postgraduates
BEIS,UKRI - AHRC,23/01/2023,Training Awards - Postgraduates,Collabrative Doctoral Grants - Block Payment,University of Winchester,99878534,5629.00,Training Awards - Postgraduates
BEIS,UKRI - AHRC,23/01/2023,Training Awards - Postgraduates,Collabrative Doctoral Grants - Block Payment,Birkbeck College,99878535,6280.49,Training Awards - Postgraduates
BEIS,UKRI - AHRC,23/01/2023,Training Awards - Postgraduates,Collabrative Doctoral Grants - Block Payment,Cardiff University,99878536,6030.49,Training Awards - Postgraduates
BEIS,UKRI - AHRC,23/01/2023,Training Awards - Postgraduates,Collabrative Doctoral Grants - Block Payment,Manchester Metropolitan University,99878537,6030.49,Training Awards - Postgraduates
BEIS,UKRI - AHRC,23/01/2023,Training Awards - Postgraduates,Collabrative Doctoral Grants - Block Payment,University of Reading,99878538,6030.49,Training Awards - Postgraduates
BEIS,UKRI - AHRC,23/01/2023,Training Awards - Postgraduates,Collabrative Doctoral Grants - Block Payment,Northumbria University,99878539,1172.00,Training Awards - Postgraduates
BEIS,UKRI - AHRC,23/01/2023,Training Awards - Postgraduates,Collabrative Doctoral Grants - Block Payment,Northumbria University,99878539,5932.49,Training Awards - Postgraduates
BEIS,UKRI - AHRC,23/01/2023,Training Awards - Postgraduates,Collabrative Doctoral Grants - Block Payment,London School of Economics and Political Science,99878540,5879.00,Training Awards - Postgraduates
BEIS,UKRI - AHRC,23/01/2023,Training Awards - Postgraduates,Collabrative Doctoral Grants - Block Payment,University of Exeter,99878541,10436.61,Training Awards - Postgraduates
BEIS,UKRI - AHRC,23/01/2023,Training Awards - Postgraduates,Collabrative Doctoral Grants - Block Payment,University of Warwick,99878542,5780.49,Training Awards - Postgraduates
BEIS,UKRI - AHRC,23/01/2023,Training Awards - Postgraduates,Collabrative Doctoral Grants - Block Payment,Canterbury Christ Church University GRANT,99878543,6030.49,Training Awards - Postgraduates
BEIS,UKRI - AHRC,23/01/2023,Training Awards - Postgraduates,Collabrative Doctoral Grants - Block Payment,University College London,99878544,6280.49,Training Awards - Postgraduates
BEIS,UKRI - AHRC,23/01/2023,Training Awards - Postgraduates,Collabrative Doctoral Grants - Block Payment,University of Glasgow,99878545,5780.49,Training Awards - Postgraduates
BEIS,UKRI - AHRC,23/01/2023,Training Awards - Postgraduates,Collabrative Doctoral Grants - Block Payment,University of York,99878546,6030.49,Training Awards - Postgraduates
BEIS,UKRI - AHRC,23/01/2023,Training Awards - Postgraduates,Collabrative Doctoral Grants - Block Payment,University of Exeter,99878547,6030.49,Training Awards - Postgraduates
BEIS,UKRI - AHRC,23/01/2023,Training Awards - Postgraduates,Collabrative Doctoral Grants - Block Payment,University of Edinburgh,99878548,5780.49,Training Awards - Postgraduates
BEIS,UKRI - AHRC,23/01/2023,Training Awards - Postgraduates,Collabrative Doctoral Grants - Block Payment,University of Glasgow,99878549,5780.49,Training Awards - Postgraduates
BEIS,UKRI - AHRC,23/01/2023,Training Awards - Postgraduates,Collabrative Doctoral Grants - Block Payment,University of Edinburgh,99878550,5780.49,Training Awards - Postgraduates
BEIS,UKRI - AHRC,23/01/2023,Training Awards - Postgraduates,International Placement Scheme,University of Leeds,99878551,1500.00,Training Awards - Postgraduates
BEIS,UKRI - AHRC,23/01/2023,Training Awards - Postgraduates,International Placement Scheme,University of Leeds,99878551,4935.00,Training Awards - Postgraduates
BEIS,UKRI - AHRC,23/01/2023,Training Awards - Postgraduates,Collabrative Doctoral Grants - Block Payment,"Royal Holloway, University of London",99878552,6280.49,Training Awards - Postgraduates
BEIS,UKRI - AHRC,23/01/2023,Training Awards - Postgraduates,International Placement Scheme,Kingston University,99878553,6120.00,Training Awards - Postgraduates
BEIS,UKRI - AHRC,23/01/2023,Training Awards - Postgraduates,Collabrative Doctoral Grants - Block Payment,University of Brighton,99878554,3041.17,Training Awards - Postgraduates
BEIS,UKRI - AHRC,23/01/2023,Training Awards - Postgraduates,Collabrative Doctoral Grants - Block Payment,Cardiff University,99878555,4889.04,Training Awards - Postgraduates
BEIS,UKRI - AHRC,23/01/2023,Training Awards - Postgraduates,Collabrative Doctoral Grants - Block Payment,University College London,99878556,3541.11,Training Awards - Postgraduates
BEIS,UKRI - AHRC,23/01/2023,Training Awards - Postgraduates,Collabrative Doctoral Grants - Block Payment,University of Leicester,99878557,2639.68,Training Awards - Postgraduates
BEIS,UKRI - AHRC,23/01/2023,Training Awards - Postgraduates,Collabrative Doctoral Grants - Block Payment,University of Leeds,99878558,2911.09,Training Awards - Postgraduates
BEIS,UKRI - AHRC,23/01/2023,Training Awards - Postgraduates,Collabrative Doctoral Grants - Block Payment,Birkbeck College,99878559,3541.11,Training Awards - Postgraduates
BEIS,UKRI - AHRC,23/01/2023,Training Awards - Postgraduates,Collabrative Doctoral Grants - Block Payment,University of Hertfordshire,99878560,4889.04,Training Awards - Postgraduates
BEIS,UKRI - AHRC,23/01/2023,Training Awards - Postgraduates,Collabrative Doctoral Grants - Block Payment,Goldsmiths College University of London,99878561,3541.11,Training Awards - Postgraduates
BEIS,UKRI - AHRC,23/01/2023,Training Awards - Postgraduates,Collabrative Doctoral Grants - Block Payment,University of Brighton,99878562,3041.17,Training Awards - Postgraduates
BEIS,UKRI - AHRC,23/01/2023,Training Awards - Postgraduates,Collabrative Doctoral Grants - Block Payment,The Open University,99878563,3041.17,Training Awards - Postgraduates
BEIS,UKRI - AHRC,23/01/2023,Training Awards - Postgraduates,Collabrative Doctoral Grants - Block Payment,University of Bristol GRANT,99878564,3023.50,Training Awards - Postgraduates
BEIS,UKRI - AHRC,23/01/2023,Training Awards - Postgraduates,Collabrative Doctoral Grants - Block Payment,University of Bristol GRANT,99878565,2871.34,Training Awards - Postgraduates
BEIS,UKRI - AHRC,23/01/2023,Training Awards - Postgraduates,Collabrative Doctoral Grants - Block Payment,University of Oxford,99878566,3041.17,Training Awards - Postgraduates
BEIS,UKRI - AHRC,23/01/2023,Training Awards - Postgraduates,Collabrative Doctoral Grants - Block Payment,De Montfort University,99878567,4622.04,Training Awards - Postgraduates
BEIS,UKRI - AHRC,23/01/2023,Training Awards - Postgraduates,Collabrative Doctoral Grants - Block Payment,University of Kent,99878568,2842.45,Training Awards - Postgraduates
BEIS,UKRI - AHRC,23/01/2023,Training Awards - Postgraduates,Collabrative Doctoral Grants - Block Payment,University of East Anglia,99878569,2486.37,Training Awards - Postgraduates
BEIS,UKRI - AHRC,23/01/2023,Training Awards - Postgraduates,Collabrative Doctoral Grants - Block Payment,University of East Anglia,99878569,3041.17,Training Awards - Postgraduates
BEIS,UKRI - AHRC,23/01/2023,Training Awards - Postgraduates,Collabrative Doctoral Grants - Block Payment,University of East Anglia,99878570,2911.09,Training Awards - Postgraduates
BEIS,UKRI - AHRC,23/01/2023,Training Awards - Postgraduates,Collabrative Doctoral Grants - Block Payment,University of East Anglia,99878571,2911.09,Training Awards - Postgraduates
BEIS,UKRI - AHRC,23/01/2023,Training Awards - Postgraduates,Collabrative Doctoral Grants - Block Payment,University of Edinburgh,99878572,3041.17,Training Awards - Postgraduates
BEIS,UKRI - AHRC,23/01/2023,Training Awards - Postgraduates,Collabrative Doctoral Grants - Block Payment,University of Southampton GRANT,99878573,2639.68,Training Awards - Postgraduates
BEIS,UKRI - AHRC,23/01/2023,Training Awards - Postgraduates,Collabrative Doctoral Grants - Block Payment,University of London,99878574,3541.11,Training Awards - Postgraduates
BEIS,UKRI - AHRC,23/01/2023,Training Awards - Postgraduates,Collabrative Doctoral Grants - Block Payment,University of Glasgow,99878575,4065.88,Training Awards - Postgraduates
BEIS,UKRI - AHRC,23/01/2023,Training Awards - Postgraduates,Collabrative Doctoral Grants - Block Payment,University of Glasgow,99878575,4065.93,Training Awards - Postgraduates
BEIS,UKRI - AHRC,23/01/2023,Training Awards - Postgraduates,Collabrative Doctoral Grants - Block Payment,University of Glasgow,99878575,4065.93,Training Awards - Postgraduates
BEIS,UKRI - AHRC,23/01/2023,Training Awards - Postgraduates,Collabrative Doctoral Grants - Block Payment,University of Glasgow,99878575,4467.43,Training Awards - Postgraduates
BEIS,UKRI - AHRC,23/01/2023,Training Awards - Postgraduates,Collabrative Doctoral Grants - Block Payment,University of Nottingham,99878576,2972.92,Training Awards - Postgraduates
BEIS,UKRI - AHRC,23/01/2023,Training Awards - Postgraduates,Collabrative Doctoral Grants - Block Payment,University of Brighton,99878577,3041.17,Training Awards - Postgraduates
BEIS,UKRI - AHRC,23/01/2023,Training Awards - Postgraduates,Collabrative Doctoral Grants - Block Payment,Imperial College London,99878578,3541.11,Training Awards - Postgraduates
BEIS,UKRI - AHRC,23/01/2023,Training Awards - Postgraduates,Collabrative Doctoral Grants - Block Payment,Sheffield Hallam University,99878579,3041.17,Training Awards - Postgraduates
BEIS,UKRI - AHRC,23/01/2023,Training Awards - Postgraduates,Collabrative Doctoral Grants - Block Payment,University of Glasgow,99878580,428.40,Training Awards - Postgraduates
BEIS,UKRI - AHRC,23/01/2023,Training Awards - Postgraduates,Collabrative Doctoral Grants - Block Payment,University of Glasgow,99878580,3041.17,Training Awards - Postgraduates
BEIS,UKRI - AHRC,23/01/2023,Training Awards - Postgraduates,Collabrative Doctoral Grants - Block Payment,University College London,99878581,3139.62,Training Awards - Postgraduates
BEIS,UKRI - AHRC,23/01/2023,Training Awards - Postgraduates,Collabrative Doctoral Grants - Block Payment,University of Leeds,99878582,2639.68,Training Awards - Postgraduates
BEIS,UKRI - AHRC,23/01/2023,Training Awards - Postgraduates,Collabrative Doctoral Grants - Block Payment,King's College London,99878583,3541.11,Training Awards - Postgraduates
BEIS,UKRI - AHRC,23/01/2023,Training Awards - Postgraduates,Collabrative Doctoral Grants - Block Payment,King's College London,99878584,3139.62,Training Awards - Postgraduates
BEIS,UKRI - AHRC,23/01/2023,Training Awards - Postgraduates,Collabrative Doctoral Grants - Block Payment,University of Edinburgh,99878585,3041.17,Training Awards - Postgraduates
BEIS,UKRI - AHRC,23/01/2023,Training Awards - Postgraduates,Collabrative Doctoral Grants - Block Payment,University of Leeds,99878586,3041.17,Training Awards - Postgraduates
BEIS,UKRI - AHRC,23/01/2023,Training Awards - Postgraduates,Collabrative Doctoral Grants - Block Payment,University of York,99878587,3041.17,Training Awards - Postgraduates
BEIS,UKRI - AHRC,23/01/2023,Training Awards - Postgraduates,Collabrative Doctoral Grants - Block Payment,University of Durham,99878588,3041.17,Training Awards - Postgraduates
BEIS,UKRI - AHRC,23/01/2023,Training Awards - Postgraduates,Collabrative Doctoral Grants - Block Payment,University College London,99878589,5389.02,Training Awards - Postgraduates
BEIS,UKRI - AHRC,23/01/2023,Training Awards - Postgraduates,Collabrative Doctoral Grants - Block Payment,University of the Arts London,99878590,3541.11,Training Awards - Postgraduates
BEIS,UKRI - AHRC,23/01/2023,Training Awards - Postgraduates,Collabrative Doctoral Grants - Block Payment,University of the Arts London,99878591,3541.11,Training Awards - Postgraduates
BEIS,UKRI - AHRC,23/01/2023,Training Awards - Postgraduates,Collabrative Doctoral Grants - Block Payment,University of Warwick,99878592,3041.17,Training Awards - Postgraduates
BEIS,UKRI - AHRC,23/01/2023,Training Awards - Postgraduates,Collabrative Doctoral Grants - Block Payment,University of Strathclyde,99878593,3041.17,Training Awards - Postgraduates
BEIS,UKRI - AHRC,23/01/2023,Training Awards - Postgraduates,Collabrative Doctoral Grants - Block Payment,Goldsmiths College University of London,99878594,3291.11,Training Awards - Postgraduates
BEIS,UKRI - AHRC,23/01/2023,Training Awards - Postgraduates,Collabrative Doctoral Grants - Block Payment,University of St Andrews,99878595,3041.17,Training Awards - Postgraduates
BEIS,UKRI - AHRC,23/01/2023,Training Awards - Postgraduates,Collabrative Doctoral Grants - Block Payment,University College London,99878596,3541.11,Training Awards - Postgraduates
BEIS,UKRI - AHRC,23/01/2023,Training Awards - Postgraduates,Collabrative Doctoral Grants - Block Payment,University College London,99878597,3541.11,Training Awards - Postgraduates
BEIS,UKRI - AHRC,23/01/2023,Training Awards - Postgraduates,Collabrative Doctoral Grants - Block Payment,University of Hull,99878598,3041.17,Training Awards - Postgraduates
BEIS,UKRI - AHRC,23/01/2023,Training Awards - Postgraduates,Collabrative Doctoral Grants - Block Payment,"City, University of London",99878599,3541.11,Training Awards - Postgraduates
BEIS,UKRI - AHRC,23/01/2023,Training Awards - Postgraduates,Collabrative Doctoral Grants - Block Payment,Glasgow Caledonian University,99878600,2868.94,Training Awards - Postgraduates
BEIS,UKRI - AHRC,23/01/2023,Training Awards - Postgraduates,Collabrative Doctoral Grants - Block Payment,University of Leicester,99878601,3041.17,Training Awards - Postgraduates
BEIS,UKRI - AHRC,23/01/2023,Training Awards - Postgraduates,Collabrative Doctoral Grants - Block Payment,University of York,99878602,1500.00,Training Awards - Postgraduates
BEIS,UKRI - AHRC,23/01/2023,Training Awards - Postgraduates,Collabrative Doctoral Grants - Block Payment,University of York,99878602,3003.85,Training Awards - Postgraduates
BEIS,UKRI - AHRC,23/01/2023,Training Awards - Postgraduates,Collabrative Doctoral Grants - Block Payment,Loughborough University,99878603,3041.17,Training Awards - Postgraduates
BEIS,UKRI - AHRC,23/01/2023,Training Awards - Postgraduates,Collabrative Doctoral Grants - Block Payment,University of Edinburgh,99878604,3041.17,Training Awards - Postgraduates
BEIS,UKRI - AHRC,23/01/2023,Training Awards - Postgraduates,International Placement Scheme,University of East Anglia,99878605,4470.00,Training Awards - Postgraduates
BEIS,UKRI - AHRC,23/01/2023,Training Awards - Postgraduates,Industrial Strategy Challenge Fund (ISCF) - Skills,"Royal Holloway, University of London",99878606,458.34,Training Awards - Postgraduates
BEIS,UKRI - AHRC,23/01/2023,Training Awards - Postgraduates,Industrial Strategy Challenge Fund (ISCF) - Skills,The University of Manchester,99878607,401.49,Training Awards - Postgraduates
BEIS,UKRI - AHRC,23/01/2023,Training Awards - Postgraduates,Industrial Strategy Challenge Fund (ISCF) - Skills,University of Glasgow,99878608,165.42,Training Awards - Postgraduates
BEIS,UKRI - AHRC,23/01/2023,Training Awards - Postgraduates,Industrial Strategy Challenge Fund (ISCF) - Skills,University of Newcastle Upon Tyne,99878609,401.49,Training Awards - Postgraduates
BEIS,UKRI - AHRC,23/01/2023,Training Awards - Postgraduates,Collabrative Doctoral Grants - Block Payment,The British Museum,99878610,16449.99,Training Awards - Postgraduates
BEIS,UKRI - AHRC,23/01/2023,Training Awards - Postgraduates,Collabrative Doctoral Grants - Block Payment,Sheffield Hallam University,99878612,202.77,Training Awards - Postgraduates
BEIS,UKRI - AHRC,23/01/2023,Training Awards - Postgraduates,Collabrative Doctoral Grants - Block Payment,De Montfort University,99878613,401.49,Training Awards - Postgraduates
BEIS,UKRI - AHRC,23/01/2023,Training Awards - Postgraduates,Collabrative Doctoral Grants - Block Payment,Courtauld Institute of Art,99878614,401.49,Training Awards - Postgraduates
BEIS,UKRI - AHRC,23/01/2023,Training Awards - Postgraduates,Collabrative Doctoral Grants - Block Payment,University of the Arts London,99878615,401.49,Training Awards - Postgraduates
BEIS,UKRI - AHRC,23/01/2023,Training Awards - Postgraduates,Collabrative Doctoral Grants - Block Payment,University of Cambridge,99878616,401.49,Training Awards - Postgraduates
BEIS,UKRI - AHRC,23/01/2023,Training Awards - Postgraduates,Collabrative Doctoral Grants - Block Payment,University of Strathclyde,99878617,202.77,Training Awards - Postgraduates
BEIS,UKRI - AHRC,23/01/2023,Training Awards - Postgraduates,Collabrative Doctoral Grants - Block Payment,University of Kent,99878618,68.25,Training Awards - Postgraduates
BEIS,UKRI - AHRC,23/01/2023,Training Awards - Postgraduates,Collabrative Doctoral Grants - Block Payment,University College London,99878619,401.49,Training Awards - Postgraduates
BEIS,UKRI - AHRC,23/01/2023,Training Awards - Postgraduates,Collabrative Doctoral Grants - Block Payment,University of Durham,99878620,654.00,Training Awards - Postgraduates
BEIS,UKRI - AHRC,23/01/2023,Training Awards - Postgraduates,Collabrative Doctoral Grants - Block Payment,University of Durham,99878620,119.25,Training Awards - Postgraduates
BEIS,UKRI - AHRC,23/01/2023,Training Awards - Postgraduates,Collabrative Doctoral Grants - Block Payment,Royal College of Art,99878621,401.49,Training Awards - Postgraduates
BEIS,UKRI - AHRC,23/01/2023,Training Awards - Postgraduates,Collabrative Doctoral Grants - Block Payment,University of Glasgow,99878622,271.41,Training Awards - Postgraduates
BEIS,UKRI - AHRC,23/01/2023,Training Awards - Postgraduates,Collabrative Doctoral Grants - Block Payment,De Montfort University,99878623,401.49,Training Awards - Postgraduates
BEIS,UKRI - AHRC,23/01/2023,Training Awards - Postgraduates,Collabrative Doctoral Grants - Block Payment,University College London,99878624,321.99,Training Awards - Postgraduates
BEIS,UKRI - AHRC,23/01/2023,Training Awards - Postgraduates,Collabrative Doctoral Grants - Block Payment,"City, University of London",99878625,357.33,Training Awards - Postgraduates
BEIS,UKRI - AHRC,23/01/2023,Training Awards - Postgraduates,Collabrative Doctoral Grants - Block Payment,Goldsmiths College University of London,99878626,401.49,Training Awards - Postgraduates
BEIS,UKRI - AHRC,23/01/2023,Training Awards - Postgraduates,Collabrative Doctoral Grants - Block Payment,University of Liverpool,99878627,271.41,Training Awards - Postgraduates
BEIS,UKRI - AHRC,23/01/2023,Training Awards - Postgraduates,Collabrative Doctoral Grants - Block Payment,University of Brighton,99878628,401.49,Training Awards - Postgraduates
BEIS,UKRI - AHRC,23/01/2023,Training Awards - Postgraduates,Collabrative Doctoral Grants - Block Payment,Northumbria University,99878629,202.77,Training Awards - Postgraduates
BEIS,UKRI - AHRC,23/01/2023,Training Awards - Postgraduates,Collabrative Doctoral Grants - Block Payment,"SOAS, University of London",99878630,401.49,Training Awards - Postgraduates
BEIS,UKRI - AHRC,23/01/2023,Training Awards - Postgraduates,Collabrative Doctoral Grants - Block Payment,University of Stirling,99878631,401.49,Training Awards - Postgraduates
BEIS,UKRI - AHRC,23/01/2023,Training Awards - Postgraduates,Collabrative Doctoral Grants - Block Payment,University of Sheffield,99878632,401.49,Training Awards - Postgraduates
BEIS,UKRI - AHRC,23/01/2023,Training Awards - Postgraduates,Collabrative Doctoral Grants - Block Payment,University of London,99878633,401.49,Training Awards - Postgraduates
BEIS,UKRI - AHRC,23/01/2023,Training Awards - Postgraduates,Collabrative Doctoral Grants - Block Payment,University of Sheffield,99878634,401.49,Training Awards - Postgraduates
BEIS,UKRI - AHRC,23/01/2023,Training Awards - Postgraduates,BGP Award,University of Sussex,99878635,2837.18,Training Awards - Postgraduates
BEIS,UKRI - AHRC,23/01/2023,Training Awards - Postgraduates,BGP Award,University of Sussex,99878635,941162.25,Training Awards - Postgraduates
BEIS,UKRI - AHRC,23/01/2023,Training Awards - Postgraduates,BGP Award,The University of Manchester,99878636,743723.34,Training Awards - Postgraduates
BEIS,UKRI - AHRC,23/01/2023,Training Awards - Postgraduates,BGP Award,University of Bristol GRANT,99878637,525710.73,Training Awards - Postgraduates
BEIS,UKRI - AHRC,23/01/2023,Training Awards - Postgraduates,BGP Award,"Royal Holloway, University of London",99878638,14716.43,Training Awards - Postgraduates
BEIS,UKRI - AHRC,23/01/2023,Training Awards - Postgraduates,BGP Award,"Royal Holloway, University of London",99878638,1020037.91,Training Awards - Postgraduates
BEIS,UKRI - AHRC,23/01/2023,Training Awards - Postgraduates,BGP Award,University of York,99878639,817037.33,Training Awards - Postgraduates
BEIS,UKRI - AHRC,23/01/2023,Training Awards - Postgraduates,BGP Award,University of Nottingham,99878640,23964.66,Training Awards - Postgraduates
BEIS,UKRI - AHRC,23/01/2023,Training Awards - Postgraduates,BGP Award,University of Nottingham,99878640,1196702.68,Training Awards - Postgraduates
BEIS,UKRI - AHRC,23/01/2023,Training Awards - Postgraduates,BGP Award,University of Glasgow,99878641,1440.60,Training Awards - Postgraduates
BEIS,UKRI - AHRC,23/01/2023,Training Awards - Postgraduates,BGP Award,University of Glasgow,99878641,960023.50,Training Awards - Postgraduates
BEIS,UKRI - AHRC,23/01/2023,Training Awards - Postgraduates,BGP Award,University of Oxford,99878642,1276776.43,Training Awards - Postgraduates
BEIS,UKRI - AHRC,23/01/2023,Training Awards - Postgraduates,BGP Award,University College London,99878643,13750.90,Training Awards - Postgraduates
BEIS,UKRI - AHRC,23/01/2023,Training Awards - Postgraduates,BGP Award,University College London,99878643,1214500.40,Training Awards - Postgraduates
BEIS,UKRI - AHRC,23/01/2023,Training Awards - Postgraduates,BGP Award,University of Newcastle Upon Tyne,99878644,10154.63,Training Awards - Postgraduates
BEIS,UKRI - AHRC,23/01/2023,Training Awards - Postgraduates,BGP Award,University of Newcastle Upon Tyne,99878644,966012.67,Training Awards - Postgraduates
BEIS,UKRI - AHRC,23/01/2023,Training Awards - Postgraduates,Collabrative Doctoral Grants - Block Payment,Cardiff University,99878645,401.49,Training Awards - Postgraduates
BEIS,UKRI - AHRC,23/01/2023,Training Awards - Postgraduates,Collabrative Doctoral Grants - Block Payment,De Montfort University,99878646,401.49,Training Awards - Postgraduates
BEIS,UKRI - AHRC,23/01/2023,Training Awards - Postgraduates,Collabrative Doctoral Grants - Block Payment,University of Birmingham GRANT,99878647,364.17,Training Awards - Postgraduates
BEIS,UKRI - AHRC,23/01/2023,Training Awards - Postgraduates,Collabrative Doctoral Grants - Block Payment,University of York,99878648,333.24,Training Awards - Postgraduates
BEIS,UKRI - AHRC,23/01/2023,Training Awards - Postgraduates,Collabrative Doctoral Grants - Block Payment,University of York,99878649,271.41,Training Awards - Postgraduates
BEIS,UKRI - AHRC,23/01/2023,Training Awards - Postgraduates,Collabrative Doctoral Grants - Block Payment,University of Nottingham,99878650,61.83,Training Awards - Postgraduates
BEIS,UKRI - AHRC,23/01/2023,Training Awards - Postgraduates,Collabrative Doctoral Grants - Block Payment,University of Nottingham,99878650,61.83,Training Awards - Postgraduates
BEIS,UKRI - AHRC,23/01/2023,Training Awards - Postgraduates,Collabrative Doctoral Grants - Block Payment,University of Bristol GRANT,99878651,169.83,Training Awards - Postgraduates
BEIS,UKRI - AHRC,23/01/2023,Training Awards - Postgraduates,Collabrative Doctoral Grants - Block Payment,University of Kent,99878652,401.49,Training Awards - Postgraduates
BEIS,UKRI - AHRC,23/01/2023,Training Awards - Postgraduates,Collabrative Doctoral Grants - Block Payment,University of Bedfordshire,99878653,202.77,Training Awards - Postgraduates
BEIS,UKRI - AHRC,23/01/2023,Training Awards - Postgraduates,Collabrative Doctoral Grants - Block Payment,University of Lincoln,99878654,401.50,Training Awards - Postgraduates
BEIS,UKRI - AHRC,23/01/2023,Training Awards - Postgraduates,Collabrative Doctoral Grants - Block Payment,University of York,99878655,401.49,Training Awards - Postgraduates
BEIS,UKRI - AHRC,23/01/2023,Training Awards - Postgraduates,Collabrative Doctoral Grants - Block Payment,University of St Andrews,99878656,401.49,Training Awards - Postgraduates
BEIS,UKRI - AHRC,23/01/2023,Training Awards - Postgraduates,BGP Award,"Royal Holloway, University of London",99878657,14875.56,Training Awards - Postgraduates
BEIS,UKRI - AHRC,23/01/2023,Training Awards - Postgraduates,BGP Award,University of Bristol GRANT,99878658,5133.57,Training Awards - Postgraduates
BEIS,UKRI - AHRC,23/01/2023,Training Awards - Postgraduates,BGP Award,University of Newcastle Upon Tyne,99878659,3284.67,Training Awards - Postgraduates
BEIS,UKRI - AHRC,23/01/2023,Training Awards - Postgraduates,BGP Award,University of Glasgow,99878660,540.00,Training Awards - Postgraduates
BEIS,UKRI - AHRC,23/01/2023,Training Awards - Postgraduates,BGP Award,University of Glasgow,99878660,7344.24,Training Awards - Postgraduates
BEIS,UKRI - AHRC,23/01/2023,Training Awards - Postgraduates,BGP Award,The University of Manchester,99878661,3342.09,Training Awards - Postgraduates
BEIS,UKRI - AHRC,23/01/2023,Training Awards - Postgraduates,BGP Award,University of Cambridge,99878662,2221.00,Training Awards - Postgraduates
BEIS,UKRI - AHRC,23/01/2023,Training Awards - Postgraduates,BGP Award,University of Cambridge,99878662,1206.51,Training Awards - Postgraduates
BEIS,UKRI - AHRC,23/01/2023,Training Awards - Postgraduates,BGP Award,University of Oxford,99878663,2356.50,Training Awards - Postgraduates
BEIS,UKRI - AHRC,23/01/2023,Training Awards - Postgraduates,BGP Award,University of Oxford,99878663,3951.15,Training Awards - Postgraduates
BEIS,UKRI - AHRC,23/01/2023,Training Awards - Postgraduates,BGP Award,University College London,99878664,5257.13,Training Awards - Postgraduates
BEIS,UKRI - AHRC,23/01/2023,Training Awards - Postgraduates,BGP Award,University College London,99878664,7493.61,Training Awards - Postgraduates
BEIS,UKRI - AHRC,23/01/2023,Training Awards - Postgraduates,BGP Award,University of Sussex,99878665,5703.59,Training Awards - Postgraduates
BEIS,UKRI - AHRC,23/01/2023,Training Awards - Postgraduates,BGP Award,University of Sussex,99878665,13193.70,Training Awards - Postgraduates
BEIS,UKRI - AHRC,23/01/2023,Training Awards - Postgraduates,BGP Award,University of York,99878666,4795.92,Training Awards - Postgraduates
BEIS,UKRI - AHRC,23/01/2023,Training Awards - Postgraduates,BGP Award,Northumbria University,99878667,2075.76,Training Awards - Postgraduates
BEIS,UKRI - AHRC,23/01/2023,Training Awards - Postgraduates,BGP Award,University College London,99878668,624.33,Training Awards - Postgraduates
BEIS,UKRI - AHRC,23/01/2023,Training Awards - Postgraduates,BGP Award,University of Hull,99878669,1339.02,Training Awards - Postgraduates
BEIS,UKRI - AHRC,23/01/2023,Training Awards - Postgraduates,BGP Award,University of Glasgow,99878670,1605.99,Training Awards - Postgraduates
BEIS,UKRI - AHRC,23/01/2023,Training Awards - Postgraduates,BGP Award,Royal College of Art,99878671,240.00,Training Awards - Postgraduates
BEIS,UKRI - AHRC,23/01/2023,Training Awards - Postgraduates,BGP Award,Royal College of Art,99878671,4143.06,Training Awards - Postgraduates
BEIS,UKRI - AHRC,23/01/2023,Training Awards - Postgraduates,BGP Award,University of Reading,99878672,4017.00,Training Awards - Postgraduates
BEIS,UKRI - AHRC,23/01/2023,Training Awards - Postgraduates,International Placement Scheme,University of Cambridge,99879021,-1500.00,Training Awards - Postgraduates
BEIS,UKRI - AHRC,23/01/2023,Training Awards - Postgraduates,International Placement Scheme,University of Oxford,99879022,2361.44,Training Awards - Postgraduates
BEIS,UKRI - AHRC,23/01/2023,Training Awards - Postgraduates,International Placement Scheme,Lancaster University,99879023,800.00,Training Awards - Postgraduates
BEIS,UKRI - AHRC,23/01/2023,Training Awards - Postgraduates,International Placement Scheme,University of Liverpool,99879024,6870.00,Training Awards - Postgraduates
BEIS,UKRI - AHRC,23/01/2023,Training Awards - Postgraduates,International Placement Scheme,University of Oxford,99879025,5370.00,Training Awards - Postgraduates
BEIS,UKRI - AHRC,23/01/2023,Training Awards - Postgraduates,Industrial Strategy Challenge Fund (ISCF) - Skills,University of Nottingham,99879026,-42669.40,Training Awards - Postgraduates
BEIS,UKRI - AHRC,23/01/2023,Training Awards - Postgraduates,Collabrative Doctoral Grants - Block Payment,Queen Mary University of London,99879027,-13455.68,Training Awards - Postgraduates
BEIS,UKRI - AHRC,23/01/2023,Training Awards - Postgraduates,Collabrative Doctoral Grants - Block Payment,University of Leeds,99879028,2516.67,Training Awards - Postgraduates
BEIS,UKRI - AHRC,23/01/2023,Training Awards - Postgraduates,Collabrative Doctoral Grants - Block Payment,University of Leeds,99879029,1856.22,Training Awards - Postgraduates
BEIS,UKRI - AHRC,23/01/2023,Training Awards - Postgraduates,Collabrative Doctoral Grants - Block Payment,University of Cambridge,99879030,-556.60,Training Awards - Postgraduates
BEIS,UKRI - AHRC,23/01/2023,Training Awards - Postgraduates,Collabrative Doctoral Grants - Block Payment,University of Oxford,99879031,-694.75,Training Awards - Postgraduates
BEIS,UKRI - AHRC,23/01/2023,Training Awards - Postgraduates,Collabrative Doctoral Grants - Block Payment,University of Newcastle Upon Tyne,99879032,-1.00,Training Awards - Postgraduates
BEIS,UKRI - AHRC,23/01/2023,Training Awards - Postgraduates,Collabrative Doctoral Grants - Block Payment,University of York,99879033,-11002.00,Training Awards - Postgraduates
BEIS,UKRI - AHRC,23/01/2023,Training Awards - Postgraduates,Collabrative Doctoral Grants - Block Payment,Birkbeck College,99879034,-11741.78,Training Awards - Postgraduates
BEIS,UKRI - AHRC,23/01/2023,Training Awards - Postgraduates,Collabrative Doctoral Grants - Block Payment,University of Stirling,99879035,-543.25,Training Awards - Postgraduates
BEIS,UKRI - AHRC,23/01/2023,Training Awards - Postgraduates,Collabrative Doctoral Grants - Block Payment,University of Leeds,99879036,2095.36,Training Awards - Postgraduates
BEIS,UKRI - AHRC,23/01/2023,Training Awards - Postgraduates,Collabrative Doctoral Grants - Block Payment,University of Durham,99879037,-782.92,Training Awards - Postgraduates
BEIS,UKRI - AHRC,23/01/2023,Training Awards - Postgraduates,Collabrative Doctoral Grants - Block Payment,King's College London,99879038,-8625.50,Training Awards - Postgraduates
BEIS,UKRI - AHRC,23/01/2023,Training Awards - Postgraduates,Collabrative Doctoral Grants - Block Payment,University College London,99879039,-30935.29,Training Awards - Postgraduates
BEIS,UKRI - AHRC,23/01/2023,Training Awards - Postgraduates,BGP Award,University of Nottingham,99879040,-120095.56,Training Awards - Postgraduates
BEIS,UKRI - AHRC,23/01/2023,Training Awards - Postgraduates,Collabrative Doctoral Grants - Block Payment,University of Liverpool,99879041,-7910.28,Training Awards - Postgraduates
BEIS,UKRI - AHRC,23/01/2023,Training Awards - Postgraduates,Collabrative Doctoral Grants - Block Payment,Manchester Metropolitan University,99879042,-600.00,Training Awards - Postgraduates
BEIS,UKRI - AHRC,23/01/2023,Training Awards - Postgraduates,International Placement Scheme,University of Hull,99879043,-5370.00,Training Awards - Postgraduates
BEIS,UKRI - AHRC,23/01/2023,Training Awards - Postgraduates,International Placement Scheme,University of Liverpool,99879044,-1374.00,Training Awards - Postgraduates
BEIS,UKRI - AHRC,23/01/2023,Training Awards - Postgraduates,Collabrative Doctoral Grants - Block Payment,Royal College of Art,99879045,76969.00,Training Awards - Postgraduates
BEIS,UKRI - AHRC,23/01/2023,Training Awards - Postgraduates,Collabrative Doctoral Grants - Block Payment,The University of Manchester,99879046,69969.00,Training Awards - Postgraduates
BEIS,UKRI - AHRC,23/01/2023,Fees (Including College Members),Operations,Unspecified,99883271,170.00,Fees (Including College Members)
BEIS,UKRI - AHRC,23/01/2023,Fees (Including College Members),Operations,Unspecified,99883272,170.00,Fees (Including College Members)
BEIS,UKRI - AHRC,23/01/2023,Fees (Including College Members),Operations,Unspecified,99883273,170.00,Fees (Including College Members)
BEIS,UKRI - AHRC,23/01/2023,Fees (Including College Members),Operations,Unspecified,99883274,170.00,Fees (Including College Members)
BEIS,UKRI - AHRC,23/01/2023,Fees (Including College Members),Operations,Unspecified,99883275,170.00,Fees (Including College Members)
BEIS,UKRI - AHRC,23/01/2023,Fees (Including College Members),Operations,Unspecified,99883338,170.00,Fees (Including College Members)
BEIS,UKRI - AHRC,24/01/2023,Training Awards - Postgraduates,Collabrative Doctoral Grants - Block Payment,The National Archives,99878611,0.06,Training Awards - Postgraduates
BEIS,UKRI - AHRC,24/01/2023,T&S UK - Subsistence,Public and Stakeholder Engagement,Unspecified,99884006,25.00,T&S UK - Subsistence
BEIS,UKRI - AHRC,24/01/2023,T&S UK - Subsistence,Public and Stakeholder Engagement,Unspecified,99884006,14.55,T&S UK - Subsistence
BEIS,UKRI - AHRC,24/01/2023,Fees (Including College Members),Operations,Unspecified,99884519,170.00,Fees (Including College Members)
BEIS,UKRI - AHRC,24/01/2023,Fees (Including College Members),Operations,Unspecified,99884520,170.00,Fees (Including College Members)
BEIS,UKRI - AHRC,24/01/2023,Fees (Including College Members),Operations,Unspecified,99884521,170.00,Fees (Including College Members)
BEIS,UKRI - AHRC,24/01/2023,Fees (Including College Members),Operations,Unspecified,99884522,170.00,Fees (Including College Members)
BEIS,UKRI - AHRC,24/01/2023,Unspecified,Infrastructure Fund - RICHeS,Alexander Mann Solutions Ltd,99884604,1386.12,Legal & Professional Services
BEIS,UKRI - AHRC,26/01/2023,Fees (Including College Members),Operations,Unspecified,99885553,170.00,Fees (Including College Members)
BEIS,UKRI - AHRC,26/01/2023,T&S UK - Public Transport,AI&Design,Unspecified,99886571,5.00,T&S UK - Public Transport
BEIS,UKRI - AHRC,26/01/2023,T&S UK - Subsistence,AI&Design,Unspecified,99886571,2.10,T&S UK - Subsistence
BEIS,UKRI - AHRC,26/01/2023,T&S UK - Subsistence,International Development and Area Studies,Unspecified,99886572,25.00,T&S UK - Subsistence
BEIS,UKRI - AHRC,27/01/2023,Other Programme Costs,Commissioned Research,Design Council,99867217,80000.00,Other Programme Costs
BEIS,UKRI - AHRC,27/01/2023,Conferences & Seminars,"Heritage, Culture & Creative Arts (HCCA)",Calder Conference Ltd,99879464,168.00,Conferences & Seminars
BEIS,UKRI - AHRC,27/01/2023,T&S UK - Subsistence,SMT,Unspecified,99886205,19.92,T&S UK - Subsistence
BEIS,UKRI - AHRC,27/01/2023,Other Programme Costs,TSB Knowledge Transfer Partnerships,Technology Strategy Board (Innovate UK),99886318,-9188.79,Other Programme Costs
BEIS,UKRI - AHRC,27/01/2023,Fees (Including College Members),Operations,Unspecified,99886660,170.00,Fees (Including College Members)
BEIS,UKRI - AHRC,30/01/2023,Other Programme Costs,Public Engagement,BRITISH BROADCASTING CORPORATION,99886281,44740.00,Other Programme Costs
BEIS,UKRI - AHRC,31/01/2023,Fees (Including College Members),Operations,Unspecified,99888451,170.00,Fees (Including College Members)
BEIS,UKRI - AHRC,31/01/2023,Fees (Including College Members),Operations,Unspecified,99888452,170.00,Fees (Including College Members)
BEIS,UKRI - AHRC,31/01/2023,T&S UK - Subsistence,International Development and Area Studies,Unspecified,99888587,25.00,T&S UK - Subsistence
BEIS,UKRI - BBSRC,04/01/2023,Conferences & Seminars,CE - IRU,Alan Inglis T/A Alan Inglis Photography,99871246,125.00,Conferences & Seminars
BEIS,UKRI - BBSRC,05/01/2023,Corporate Events,CE - Chief Executive,Calder Conference Ltd,99871591,1947.34,Corporate Events
BEIS,UKRI - BBSRC,05/01/2023,Security Services,FG - Estates,Babraham Institute,99872752,8400.00,Security Services
BEIS,UKRI - BBSRC,06/01/2023,Conferences & Seminars,CIMG - Director,Earlham Institute,99840701,7067.04,Conferences & Seminars
BEIS,UKRI - BBSRC,06/01/2023,Conferences & Seminars,CIMG - Director,Earlham Institute,99871490,-7067.04,Conferences & Seminars
BEIS,UKRI - BBSRC,06/01/2023,Conferences & Seminars,CIMG - Director,Earlham Institute,99871492,6563.48,Conferences & Seminars
BEIS,UKRI - BBSRC,06/01/2023,Conferences & Seminars,Science Group,Calder Conference Ltd,99871593,298.00,Conferences & Seminars
BEIS,UKRI - BBSRC,06/01/2023,Other Programme Costs,Innovation and Skills Group CDSU,NNFCC Ltd,99871916,8895.18,Other Programme Costs
BEIS,UKRI - BBSRC,06/01/2023,Fees (Including College Members),Science Group – Admin Function,Unspecified,99872861,340.00,Fees (Including College Members)
BEIS,UKRI - BBSRC,06/01/2023,Fees (Including College Members),Science Group – Admin Function,Unspecified,99872862,340.00,Fees (Including College Members)
BEIS,UKRI - BBSRC,06/01/2023,Fees (Including College Members),Science Group – Admin Function,Unspecified,99872863,340.00,Fees (Including College Members)
BEIS,UKRI - BBSRC,06/01/2023,Fees (Including College Members),Science Group – Admin Function,Unspecified,99872864,340.00,Fees (Including College Members)
BEIS,UKRI - BBSRC,06/01/2023,Fees (Including College Members),Science Group – Admin Function,Unspecified,99872865,340.00,Fees (Including College Members)
BEIS,UKRI - BBSRC,06/01/2023,Fees (Including College Members),Science Group – Admin Function,Unspecified,99872866,340.00,Fees (Including College Members)
BEIS,UKRI - BBSRC,06/01/2023,Fees (Including College Members),Science Group – Admin Function,Unspecified,99872867,340.00,Fees (Including College Members)
BEIS,UKRI - BBSRC,06/01/2023,Fees (Including College Members),Science Group – Admin Function,Unspecified,99872868,340.00,Fees (Including College Members)
BEIS,UKRI - BBSRC,06/01/2023,Fees (Including College Members),Science Group – Admin Function,Unspecified,99872869,340.00,Fees (Including College Members)
BEIS,UKRI - BBSRC,06/01/2023,Research Grant Expenditure,SPF W1 EMBL EBI,EMBL (European Molecular Biology Laboratory),99873048,2599.83,Research Grant Expenditure
BEIS,UKRI - BBSRC,06/01/2023,T&S UK - Public Transport,Science Group,Unspecified,99874087,104.70,T&S UK - Public Transport
BEIS,UKRI - BBSRC,06/01/2023,T&S UK - Other Charges,Science Group,Unspecified,99874088,39.99,T&S UK - Other Charges
BEIS,UKRI - BBSRC,09/01/2023,Other Programme Costs,Research: Strategic,Mills and Reeve LLP,99870250,2025.12,Other Programme Costs
BEIS,UKRI - BBSRC,09/01/2023,Consultancy Services,CE - CPS,Warwick Economics and Development Ltd,99873156,26964.00,Consultancy Services
BEIS,UKRI - BBSRC,09/01/2023,T&S UK - Other Charges,CIMG - Information Management,Unspecified,99873484,39.99,T&S UK - Other Charges
BEIS,UKRI - BBSRC,10/01/2023,T&S UK - Vehicle Hire,FG - Director,Enterprise Rent-A-Car UK Ltd,99867937,54.03,T&S UK - Vehicle Hire
BEIS,UKRI - BBSRC,10/01/2023,T&S UK - Vehicle Hire,FG - Director,Enterprise Rent-A-Car UK Ltd,99867937,10.81,T&S UK - Vehicle Hire
BEIS,UKRI - BBSRC,10/01/2023,T&S UK - Vehicle Hire,FG - Director,Enterprise Rent-A-Car UK Ltd,99871255,54.03,T&S UK - Vehicle Hire
BEIS,UKRI - BBSRC,10/01/2023,T&S UK - Vehicle Hire,FG - Director,Enterprise Rent-A-Car UK Ltd,99871255,10.81,T&S UK - Vehicle Hire
BEIS,UKRI - BBSRC,10/01/2023,Research Institutes - Capital Grants: Minor Works,Mid-Range Equipment,The Pirbright Institute,99871904,103658.00,Research Institutes - Capital Grants: Minor Works
BEIS,UKRI - BBSRC,10/01/2023,Unspecified,FG - Estates,Womble Bond Dickinson LLP,99874288,140.12,Legal & Professional Services
BEIS,UKRI - BBSRC,10/01/2023,Unspecified,FG - Estates,Womble Bond Dickinson LLP,99874289,5629.34,Legal & Professional Services
BEIS,UKRI - BBSRC,10/01/2023,Unspecified,FG - Estates,Womble Bond Dickinson LLP,99874291,1325.64,Legal & Professional Services
BEIS,UKRI - BBSRC,10/01/2023,Unspecified,Science Group – Admin Function,Unspecified,99874316,170.00,Council & Committee Honoraria
BEIS,UKRI - BBSRC,10/01/2023,Non-staff travel and subsistance,Science Group – Admin Function,Unspecified,99874317,210.00,Non-staff travel and subsistance
BEIS,UKRI - BBSRC,10/01/2023,Unspecified,Science Group – Admin Function,Unspecified,99874318,690.00,Council & Committee Honoraria
BEIS,UKRI - BBSRC,10/01/2023,Non-staff travel and subsistance,Science Group – Admin Function,Unspecified,99874319,220.40,Non-staff travel and subsistance
BEIS,UKRI - BBSRC,10/01/2023,Non-staff travel and subsistance,Science Group – Admin Function,Unspecified,99874320,94.58,Non-staff travel and subsistance
BEIS,UKRI - BBSRC,10/01/2023,Unspecified,Science Group – Admin Function,Unspecified,99874321,510.00,Council & Committee Honoraria
BEIS,UKRI - BBSRC,10/01/2023,Non-staff travel and subsistance,Science Group – Admin Function,Unspecified,99874343,48.03,Non-staff travel and subsistance
BEIS,UKRI - BBSRC,10/01/2023,Non-staff travel and subsistance,Science Group – Admin Function,Unspecified,99874344,177.50,Non-staff travel and subsistance
BEIS,UKRI - BBSRC,10/01/2023,Non-staff travel and subsistance,Science Group – Admin Function,Unspecified,99874345,19.00,Non-staff travel and subsistance
BEIS,UKRI - BBSRC,10/01/2023,Non-staff travel and subsistance,Science Group – Admin Function,Unspecified,99874346,117.50,Non-staff travel and subsistance
BEIS,UKRI - BBSRC,10/01/2023,Non-staff travel and subsistance,Science Group – Admin Function,Unspecified,99874347,101.50,Non-staff travel and subsistance
BEIS,UKRI - BBSRC,10/01/2023,Non-staff travel and subsistance,Science Group – Admin Function,Unspecified,99874348,83.24,Non-staff travel and subsistance
BEIS,UKRI - BBSRC,10/01/2023,Non-staff travel and subsistance,Science Group – Admin Function,Unspecified,99874349,44.60,Non-staff travel and subsistance
BEIS,UKRI - BBSRC,10/01/2023,Non-staff travel and subsistance,Science Group – Admin Function,Unspecified,99874350,135.50,Non-staff travel and subsistance
BEIS,UKRI - BBSRC,10/01/2023,Non-staff travel and subsistance,Science Group – Admin Function,Unspecified,99874351,152.41,Non-staff travel and subsistance
BEIS,UKRI - BBSRC,10/01/2023,Non-staff travel and subsistance,Science Group – Admin Function,Unspecified,99874352,61.40,Non-staff travel and subsistance
BEIS,UKRI - BBSRC,10/01/2023,Unspecified,Science Group – Admin Function,Unspecified,99874353,510.00,Council & Committee Honoraria
BEIS,UKRI - BBSRC,10/01/2023,Non-staff travel and subsistance,Science Group – Admin Function,Unspecified,99874354,287.69,Non-staff travel and subsistance
BEIS,UKRI - BBSRC,10/01/2023,Non-staff travel and subsistance,Science Group - Delivery Function,Unspecified,99874355,1697.54,Non-staff travel and subsistance
BEIS,UKRI - BBSRC,10/01/2023,Non-staff travel and subsistance,Science Group – Admin Function,Unspecified,99874356,132.08,Non-staff travel and subsistance
BEIS,UKRI - BBSRC,10/01/2023,Non-staff travel and subsistance,Science Group – Admin Function,Unspecified,99874357,292.00,Non-staff travel and subsistance
BEIS,UKRI - BBSRC,10/01/2023,Unspecified,FG - Estates,Womble Bond Dickinson LLP,99874388,243.60,Legal & Professional Services
BEIS,UKRI - BBSRC,10/01/2023,T&S UK - Public Transport,Innovation and Skills Group,Unspecified,99875334,114.30,T&S UK - Public Transport
BEIS,UKRI - BBSRC,10/01/2023,Health & Safety (inc. Medicals & Opticians),Science Group,Unspecified,99875335,16.99,Health & Safety (inc. Medicals & Opticians)
BEIS,UKRI - BBSRC,10/01/2023,T&S UK - Other Charges,Innovation and Skills Group CDSU,Unspecified,99875336,100.00,T&S UK - Other Charges
BEIS,UKRI - BBSRC,11/01/2023,Unspecified,SPF W2 Food Systems,ICF Consulting Services Ltd,99874507,71802.00,Council & Committee Honoraria
BEIS,UKRI - BBSRC,11/01/2023,Research Institutes - Capital Grants: Minor Works,Mid-Range Equipment,The Pirbright Institute,99875666,47009.60,Research Institutes - Capital Grants: Minor Works
BEIS,UKRI - BBSRC,11/01/2023,T&S UK - Accommodation,Science Group,Unspecified,99876372,241.74,T&S UK - Accommodation
BEIS,UKRI - BBSRC,11/01/2023,T&S UK - Subsistence,Science Group,Unspecified,99876372,3.50,T&S UK - Subsistence
BEIS,UKRI - BBSRC,11/01/2023,T&S UK - Subsistence,Science Group,Unspecified,99876372,13.66,T&S UK - Subsistence
BEIS,UKRI - BBSRC,12/01/2023,Unspecified,Balance Sheet,HM Revenue & Customs,99874479,86478.09,PAYE Payable Salaries
BEIS,UKRI - BBSRC,12/01/2023,Unspecified,Balance Sheet,HM Revenue & Customs,99874480,6392.00,Student Loans
BEIS,UKRI - BBSRC,12/01/2023,Unspecified,Balance Sheet,HM Revenue & Customs,99874481,103741.72,NI Payable Salaries
BEIS,UKRI - BBSRC,12/01/2023,Unspecified,FG - Accounts & Business Planning,HM Revenue & Customs,99874482,2821.00,Apprenticeship Levy
BEIS,UKRI - BBSRC,12/01/2023,Unspecified,Balance Sheet,HM Revenue & Customs,99874498,2682.88,PAYE Payable Salaries
BEIS,UKRI - BBSRC,12/01/2023,Unspecified,Balance Sheet,HM Revenue & Customs,99874499,57.18,NI Payable Salaries
BEIS,UKRI - BBSRC,12/01/2023,Unspecified,FG - Accounts & Business Planning,HM Revenue & Customs,99874500,38.00,Apprenticeship Levy
BEIS,UKRI - BBSRC,12/01/2023,T&S UK - Public Transport,Science Group,Unspecified,99877761,16.70,T&S UK - Public Transport
BEIS,UKRI - BBSRC,12/01/2023,T&S UK - Parking Tolls Congestion Charges,Innovation and Skills Group,Unspecified,99877762,4.00,T&S UK - Parking Tolls Congestion Charges
BEIS,UKRI - BBSRC,12/01/2023,T&S UK - Public Transport,Innovation and Skills Group,Unspecified,99877762,4.00,T&S UK - Public Transport
BEIS,UKRI - BBSRC,12/01/2023,T&S UK - Subsistence,Innovation and Skills Group,Unspecified,99877762,16.75,T&S UK - Subsistence
BEIS,UKRI - BBSRC,12/01/2023,T&S UK - Subsistence,Innovation and Skills Group,Unspecified,99877762,7.75,T&S UK - Subsistence
BEIS,UKRI - BBSRC,13/01/2023,Research Institutes - Capital Grants: Minor Works,World Class Labs,Rothamsted Research Ltd,99873949,54772.12,Research Institutes - Capital Grants: Minor Works
BEIS,UKRI - BBSRC,13/01/2023,Union Deductions,Balance Sheet,PCS Union,99874483,45.21,Union Deductions
BEIS,UKRI - BBSRC,13/01/2023,Voluntary Deductions,Balance Sheet,Swindon Office Sports and Social Club,99874484,42.00,Voluntary Deductions
BEIS,UKRI - BBSRC,13/01/2023,Unspecified,Balance Sheet,Unspecified,99874485,20451.06,Ees Pension Deductions - JSS
BEIS,UKRI - BBSRC,13/01/2023,Unspecified,Balance Sheet,Unspecified,99874486,84831.53,Ers Pension Deductions - JSS
BEIS,UKRI - BBSRC,13/01/2023,Unspecified,Balance Sheet,Scottish Widows Life Assurance,99874487,447.16,Partnership Pension Deductions
BEIS,UKRI - BBSRC,13/01/2023,Unspecified,Balance Sheet,Scottish Widows Life Assurance,99874488,10.00,Other Pension Deductions
BEIS,UKRI - BBSRC,13/01/2023,Unspecified,Balance Sheet,Cabinet Office RM Shared Services,99874489,13.30,Ers Pension Deductions - JSS
BEIS,UKRI - BBSRC,13/01/2023,Unspecified,Balance Sheet,Cabinet Office RM Shared Services,99874490,13173.39,Ees Pension Deductions - MyCSP
BEIS,UKRI - BBSRC,13/01/2023,Unspecified,Balance Sheet,Cabinet Office RM Shared Services,99874491,65702.15,Ers Pension Deductions - MyCSP
BEIS,UKRI - BBSRC,13/01/2023,Nursery Deductions,Balance Sheet,UKRI - Engineering & Physical Sciences Research Council,99874492,1033.00,Nursery Deductions
BEIS,UKRI - BBSRC,13/01/2023,Unspecified,Balance Sheet,Unspecified,99874493,388.26,Ees Pension Deductions - MRC
BEIS,UKRI - BBSRC,13/01/2023,Unspecified,Balance Sheet,Unspecified,99874494,955.72,Ers Pension Deductions - MRC
BEIS,UKRI - BBSRC,13/01/2023,Unspecified,Science Group – Admin Function,Unspecified,99876718,170.00,Council & Committee Honoraria
BEIS,UKRI - BBSRC,13/01/2023,Non-staff travel and subsistance,Science Group – Admin Function,Unspecified,99876719,437.08,Non-staff travel and subsistance
BEIS,UKRI - BBSRC,13/01/2023,Non-staff travel and subsistance,Science Group – Admin Function,Unspecified,99876720,210.59,Non-staff travel and subsistance
BEIS,UKRI - BBSRC,13/01/2023,Non-staff travel and subsistance,Science Group – Admin Function,Unspecified,99876721,84.80,Non-staff travel and subsistance
BEIS,UKRI - BBSRC,13/01/2023,Non-staff travel and subsistance,Science Group – Admin Function,Unspecified,99876722,53.90,Non-staff travel and subsistance
BEIS,UKRI - BBSRC,13/01/2023,Non-staff travel and subsistance,Science Group – Admin Function,Unspecified,99876723,70.90,Non-staff travel and subsistance
BEIS,UKRI - BBSRC,13/01/2023,Non-staff travel and subsistance,Science Group – Admin Function,Unspecified,99876724,87.99,Non-staff travel and subsistance
BEIS,UKRI - BBSRC,13/01/2023,Research Institutes - Capital Grants: Minor Works,Rothamsted Research,Rothamsted Research Ltd,99878187,6667.57,Research Institutes - Capital Grants: Minor Works
BEIS,UKRI - BBSRC,13/01/2023,Research Institutes - Capital Grants: Minor Works,Mid-Range Equipment,Rothamsted Research Ltd,99878189,7295.90,Research Institutes - Capital Grants: Minor Works
BEIS,UKRI - BBSRC,13/01/2023,Research Institutes - Capital Grants: Minor Works,World Class Labs,Rothamsted Research Ltd,99878238,8514.76,Research Institutes - Capital Grants: Minor Works
BEIS,UKRI - BBSRC,13/01/2023,Research Institutes - Capital Grants: Minor Works,Rothamsted Research,Rothamsted Research Ltd,99878243,10676.74,Research Institutes - Capital Grants: Minor Works
BEIS,UKRI - BBSRC,13/01/2023,T&S UK - Subsistence,Science Group,Unspecified,99878351,4.99,T&S UK - Subsistence
BEIS,UKRI - BBSRC,16/01/2023,Conferences & Seminars,Science Group,Calder Conference Ltd,99872185,5320.80,Conferences & Seminars
BEIS,UKRI - BBSRC,16/01/2023,Conferences & Seminars,Science Group,Calder Conference Ltd,99874859,7822.20,Conferences & Seminars
BEIS,UKRI - BBSRC,16/01/2023,Non-staff travel and subsistance,CE - Chief Executive,Unspecified,99878685,56.25,Non-staff travel and subsistance
BEIS,UKRI - BBSRC,16/01/2023,Non-staff travel and subsistance,CE - Chief Executive,Unspecified,99878686,156.50,Non-staff travel and subsistance
BEIS,UKRI - BBSRC,16/01/2023,Fees (Including College Members),Science Group – Admin Function,Unspecified,99878851,340.00,Fees (Including College Members)
BEIS,UKRI - BBSRC,16/01/2023,Research Grant Expenditure,SPF W1 EMBL EBI,EMBL (European Molecular Biology Laboratory),99879381,600.00,Research Grant Expenditure
BEIS,UKRI - BBSRC,16/01/2023,Research Grant Expenditure,SPF W1 EMBL EBI,EMBL (European Molecular Biology Laboratory),99879390,163744.82,Research Grant Expenditure
BEIS,UKRI - BBSRC,16/01/2023,Health & Safety (inc. Medicals & Opticians),CE - CPS,Unspecified,99879966,100.00,Health & Safety (inc. Medicals & Opticians)
BEIS,UKRI - BBSRC,17/01/2023,T&S UK - Other Charges,Science Group,Unspecified,99880313,3.30,T&S UK - Other Charges
BEIS,UKRI - BBSRC,17/01/2023,T&S UK - Subsistence,Science Group,Unspecified,99880313,16.15,T&S UK - Subsistence
BEIS,UKRI - BBSRC,17/01/2023,T&S Overseas - Public Transport,Science Group,Unspecified,99880314,18.92,T&S Overseas - Public Transport
BEIS,UKRI - BBSRC,17/01/2023,T&S Overseas - Public Transport,Science Group,Unspecified,99880314,10.71,T&S Overseas - Public Transport
BEIS,UKRI - BBSRC,17/01/2023,T&S UK - Other Charges,Science Group,Unspecified,99880315,8.69,T&S UK - Other Charges
BEIS,UKRI - BBSRC,17/01/2023,T&S UK - Public Transport,Science Group,Unspecified,99880315,24.00,T&S UK - Public Transport
BEIS,UKRI - BBSRC,17/01/2023,T&S UK - Subsistence,Science Group,Unspecified,99880316,9.80,T&S UK - Subsistence
BEIS,UKRI - BBSRC,17/01/2023,Health & Safety (inc. Medicals & Opticians),Innovation and Skills Group CDSU,Unspecified,99880317,9.95,Health & Safety (inc. Medicals & Opticians)
BEIS,UKRI - BBSRC,17/01/2023,T&S UK - Subsistence,Innovation and Skills Group,Unspecified,99880318,7.89,T&S UK - Subsistence
BEIS,UKRI - BBSRC,18/01/2023,International Subscriptions,International,INRAE,99866243,5414.51,International Subscriptions
BEIS,UKRI - BBSRC,18/01/2023,Non-staff travel and subsistance,Science Group – Admin Function,CIP International Potato Center,99873979,170.00,Non-staff travel and subsistance
BEIS,UKRI - BBSRC,18/01/2023,Training Awards - Postgraduates,Innovation and Skills Group,UKRI - Economic & Social Research Council,99880332,75972.36,Training Awards - Postgraduates
BEIS,UKRI - BBSRC,18/01/2023,T&S UK - Vehicle Hire,FG - Estates,Enterprise Rent-A-Car UK Ltd,99880397,103.94,T&S UK - Vehicle Hire
BEIS,UKRI - BBSRC,18/01/2023,Research Grant Expenditure,SPF W1 EMBL EBI,EMBL (European Molecular Biology Laboratory),99880473,-8662.07,Research Grant Expenditure
BEIS,UKRI - BBSRC,18/01/2023,Unspecified,Science Group - Delivery Function,Unspecified,99881089,340.00,Council & Committee Honoraria
BEIS,UKRI - BBSRC,18/01/2023,Conferences & Seminars,CIMG - Director,Unspecified,99881090,283.90,Conferences & Seminars
BEIS,UKRI - BBSRC,18/01/2023,Conferences & Seminars,CIMG - Director,Unspecified,99881091,340.00,Conferences & Seminars
BEIS,UKRI - BBSRC,18/01/2023,Research Grant Expenditure,SPF W1 EMBL EBI,EMBL (European Molecular Biology Laboratory),99881302,12996.47,Research Grant Expenditure
BEIS,UKRI - BBSRC,18/01/2023,Research Grant Expenditure,SPF W1 EMBL EBI,EMBL (European Molecular Biology Laboratory),99881327,81425.94,Research Grant Expenditure
BEIS,UKRI - BBSRC,19/01/2023,Research Grant Expenditure,Impact & Knowledge Exchange,ABERYSTWYTH INNOVATION AND ENTERPRISE CAMPUS LTD (AIEC),99848700,2969.33,Research Grant Expenditure
BEIS,UKRI - BBSRC,19/01/2023,Research Institutes - Competitive Strategic Grant,Research: Strategic National Capability,John Innes Centre,99871657,187544.17,Research Institutes - Competitive Strategic Grant
BEIS,UKRI - BBSRC,19/01/2023,Research Institutes - Competitive Strategic Grant,Research: Strategic National Capability,Quadram Institute Bioscience,99871661,41446.66,Research Institutes - Competitive Strategic Grant
BEIS,UKRI - BBSRC,19/01/2023,Research Institutes - Competitive Strategic Grant,Research: Strategic National Capability,Earlham Institute,99871678,31910.00,Research Institutes - Competitive Strategic Grant
BEIS,UKRI - BBSRC,19/01/2023,Research Institutes - Competitive Strategic Grant,Research: Strategic National Capability,Babraham Institute,99872374,64751.75,Research Institutes - Competitive Strategic Grant
BEIS,UKRI - BBSRC,19/01/2023,Institute Grant Expenditure,Research: Strategic National Capability,Rothamsted Research Ltd,99873057,50000.00,Institute Grant Expenditure
BEIS,UKRI - BBSRC,19/01/2023,Research Institutes - Competitive Strategic Grant,Research: Strategic National Capability,Rothamsted Research Ltd,99873058,96687.50,Research Institutes - Competitive Strategic Grant
BEIS,UKRI - BBSRC,19/01/2023,Institute Grant Expenditure,Research: Strategic National Capability,Rothamsted Research Ltd,99873060,53166.66,Institute Grant Expenditure
BEIS,UKRI - BBSRC,19/01/2023,Research Institutes - Competitive Strategic Grant,Research: Strategic National Capability,Rothamsted Research Ltd,99873436,111253.33,Research Institutes - Competitive Strategic Grant
BEIS,UKRI - BBSRC,19/01/2023,Research Institutes - Competitive Strategic Grant,Research: Strategic National Capability,Rothamsted Research Ltd,99873436,418416.67,Research Institutes - Competitive Strategic Grant
BEIS,UKRI - BBSRC,19/01/2023,Research Institutes - Competitive Strategic Grant,Research: Strategic National Capability,Rothamsted Research Ltd,99873436,64666.67,Research Institutes - Competitive Strategic Grant
BEIS,UKRI - BBSRC,19/01/2023,Research Institutes - Competitive Strategic Grant,Research: Strategic National Capability,Rothamsted Research Ltd,99873436,197000.00,Research Institutes - Competitive Strategic Grant
BEIS,UKRI - BBSRC,19/01/2023,Research Institutes - Competitive Strategic Grant,Research: Strategic National Capability,Rothamsted Research Ltd,99873436,7083.33,Research Institutes - Competitive Strategic Grant
BEIS,UKRI - BBSRC,19/01/2023,Research Institutes - Competitive Strategic Grant,Research: Strategic National Capability,Quadram Institute Bioscience,99874003,23624.41,Research Institutes - Competitive Strategic Grant
BEIS,UKRI - BBSRC,19/01/2023,Research Institutes - Competitive Strategic Grant,Research: Strategic National Capability,Quadram Institute Bioscience,99874003,347920.37,Research Institutes - Competitive Strategic Grant
BEIS,UKRI - BBSRC,19/01/2023,Research Institutes - Competitive Strategic Grant,Research: Strategic National Capability,Quadram Institute Bioscience,99874003,46083.32,Research Institutes - Competitive Strategic Grant
BEIS,UKRI - BBSRC,19/01/2023,Research Institutes - Competitive Strategic Grant,Research: Strategic National Capability,Quadram Institute Bioscience,99874003,261521.57,Research Institutes - Competitive Strategic Grant
BEIS,UKRI - BBSRC,19/01/2023,Research Institutes - Competitive Strategic Grant,Research: Strategic National Capability,Quadram Institute Bioscience,99874003,5833.33,Research Institutes - Competitive Strategic Grant
BEIS,UKRI - BBSRC,19/01/2023,Research Institutes - Competitive Strategic Grant,Research: Strategic National Capability,John Innes Centre,99874004,21999.99,Research Institutes - Competitive Strategic Grant
BEIS,UKRI - BBSRC,19/01/2023,Research Institutes - Competitive Strategic Grant,Research: Strategic National Capability,John Innes Centre,99874004,511416.52,Research Institutes - Competitive Strategic Grant
BEIS,UKRI - BBSRC,19/01/2023,Research Institutes - Competitive Strategic Grant,Research: Strategic National Capability,John Innes Centre,99874004,65333.31,Research Institutes - Competitive Strategic Grant
BEIS,UKRI - BBSRC,19/01/2023,Research Institutes - Competitive Strategic Grant,Research: Strategic National Capability,John Innes Centre,99874004,501249.85,Research Institutes - Competitive Strategic Grant
BEIS,UKRI - BBSRC,19/01/2023,Research Institutes - Competitive Strategic Grant,Research: Strategic National Capability,John Innes Centre,99874004,7083.33,Research Institutes - Competitive Strategic Grant
BEIS,UKRI - BBSRC,19/01/2023,Research Institutes - Competitive Strategic Grant,Research: Strategic National Capability,Babraham Institute,99874005,352459.91,Research Institutes - Competitive Strategic Grant
BEIS,UKRI - BBSRC,19/01/2023,Research Institutes - Competitive Strategic Grant,Research: Strategic National Capability,Babraham Institute,99874005,48750.01,Research Institutes - Competitive Strategic Grant
BEIS,UKRI - BBSRC,19/01/2023,Research Institutes - Competitive Strategic Grant,Research: Strategic National Capability,Babraham Institute,99874005,395666.75,Research Institutes - Competitive Strategic Grant
BEIS,UKRI - BBSRC,19/01/2023,Research Institutes - Competitive Strategic Grant,Research: Strategic National Capability,Babraham Institute,99874005,5833.33,Research Institutes - Competitive Strategic Grant
BEIS,UKRI - BBSRC,19/01/2023,Research Institutes - Competitive Strategic Grant,Research: Strategic National Capability,Earlham Institute,99874006,163172.03,Research Institutes - Competitive Strategic Grant
BEIS,UKRI - BBSRC,19/01/2023,Research Institutes - Competitive Strategic Grant,Research: Strategic National Capability,Earlham Institute,99874006,81239.48,Research Institutes - Competitive Strategic Grant
BEIS,UKRI - BBSRC,19/01/2023,Research Institutes - Competitive Strategic Grant,Research: Strategic National Capability,Earlham Institute,99874006,42166.70,Research Institutes - Competitive Strategic Grant
BEIS,UKRI - BBSRC,19/01/2023,Research Institutes - Competitive Strategic Grant,Research: Strategic National Capability,Earlham Institute,99874006,33333.36,Research Institutes - Competitive Strategic Grant
BEIS,UKRI - BBSRC,19/01/2023,Research Institutes - Competitive Strategic Grant,Research: Strategic National Capability,Earlham Institute,99874006,121088.76,Research Institutes - Competitive Strategic Grant
BEIS,UKRI - BBSRC,19/01/2023,Research Institutes - Competitive Strategic Grant,Research: Strategic National Capability,Earlham Institute,99874006,2916.67,Research Institutes - Competitive Strategic Grant
BEIS,UKRI - BBSRC,19/01/2023,Research Institutes - Competitive Strategic Grant,Research: Strategic National Capability,The Pirbright Institute,99874851,204682.50,Research Institutes - Competitive Strategic Grant
BEIS,UKRI - BBSRC,19/01/2023,Research Institutes - Competitive Strategic Grant,Research: Strategic National Capability,Aberystwyth University,99875567,5595.00,Research Institutes - Competitive Strategic Grant
BEIS,UKRI - BBSRC,19/01/2023,Research Institutes - Competitive Strategic Grant,Research: Strategic National Capability,Aberystwyth University,99876452,86360.99,Research Institutes - Competitive Strategic Grant
BEIS,UKRI - BBSRC,19/01/2023,Research Institutes - Competitive Strategic Grant,Research: Strategic National Capability,Aberystwyth University,99876452,46980.67,Research Institutes - Competitive Strategic Grant
BEIS,UKRI - BBSRC,19/01/2023,Research Institutes - Competitive Strategic Grant,Research: Strategic National Capability,Aberystwyth University,99876452,2916.67,Research Institutes - Competitive Strategic Grant
BEIS,UKRI - BBSRC,19/01/2023,Training Awards - Postgraduates,FG - Accounts & Business Planning,University of Southampton GRANT,99876702,-19438.81,Training Awards - Postgraduates
BEIS,UKRI - BBSRC,19/01/2023,Training Awards - Postgraduates,FG - Accounts & Business Planning,University of Nottingham,99877767,6623.97,Training Awards - Postgraduates
BEIS,UKRI - BBSRC,19/01/2023,Training Awards - Postgraduates,FG - Accounts & Business Planning,University of Nottingham,99877767,6624.00,Training Awards - Postgraduates
BEIS,UKRI - BBSRC,19/01/2023,Training Awards - Postgraduates,FG - Accounts & Business Planning,University of Newcastle Upon Tyne,99877768,397.09,Training Awards - Postgraduates
BEIS,UKRI - BBSRC,19/01/2023,Training Awards - Postgraduates,FG - Accounts & Business Planning,University of Newcastle Upon Tyne,99877768,7021.08,Training Awards - Postgraduates
BEIS,UKRI - BBSRC,19/01/2023,Training Awards - Postgraduates,FG - Accounts & Business Planning,Imperial College London,99877769,401.51,Training Awards - Postgraduates
BEIS,UKRI - BBSRC,19/01/2023,Training Awards - Postgraduates,FG - Accounts & Business Planning,Imperial College London,99877769,7525.49,Training Awards - Postgraduates
BEIS,UKRI - BBSRC,19/01/2023,Training Awards - Postgraduates,FG - Accounts & Business Planning,Queen Mary University of London,99877770,7123.96,Training Awards - Postgraduates
BEIS,UKRI - BBSRC,19/01/2023,Training Awards - Postgraduates,FG - Accounts & Business Planning,Queen Mary University of London,99877770,7124.00,Training Awards - Postgraduates
BEIS,UKRI - BBSRC,19/01/2023,Training Awards - Postgraduates,FG - Accounts & Business Planning,Queen Mary University of London,99877771,7123.96,Training Awards - Postgraduates
BEIS,UKRI - BBSRC,19/01/2023,Training Awards - Postgraduates,FG - Accounts & Business Planning,Queen Mary University of London,99877771,7124.00,Training Awards - Postgraduates
BEIS,UKRI - BBSRC,19/01/2023,Training Awards - Postgraduates,FG - Accounts & Business Planning,Queen Mary University of London,99877772,7123.96,Training Awards - Postgraduates
BEIS,UKRI - BBSRC,19/01/2023,Training Awards - Postgraduates,FG - Accounts & Business Planning,Queen Mary University of London,99877772,7124.00,Training Awards - Postgraduates
BEIS,UKRI - BBSRC,19/01/2023,Training Awards - Postgraduates,FG - Accounts & Business Planning,Queen Mary University of London,99877773,7123.96,Training Awards - Postgraduates
BEIS,UKRI - BBSRC,19/01/2023,Training Awards - Postgraduates,FG - Accounts & Business Planning,Queen Mary University of London,99877773,7124.00,Training Awards - Postgraduates
BEIS,UKRI - BBSRC,19/01/2023,Training Awards - Postgraduates,FG - Accounts & Business Planning,Queen Mary University of London,99877774,7123.96,Training Awards - Postgraduates
BEIS,UKRI - BBSRC,19/01/2023,Training Awards - Postgraduates,FG - Accounts & Business Planning,Queen Mary University of London,99877774,7124.00,Training Awards - Postgraduates
BEIS,UKRI - BBSRC,19/01/2023,Training Awards - Postgraduates,FG - Accounts & Business Planning,University of Warwick,99877775,401.51,Training Awards - Postgraduates
BEIS,UKRI - BBSRC,19/01/2023,Training Awards - Postgraduates,FG - Accounts & Business Planning,University of Warwick,99877775,7025.49,Training Awards - Postgraduates
BEIS,UKRI - BBSRC,19/01/2023,Training Awards - Postgraduates,FG - Accounts & Business Planning,University of Cambridge,99877776,401.51,Training Awards - Postgraduates
BEIS,UKRI - BBSRC,19/01/2023,Training Awards - Postgraduates,FG - Accounts & Business Planning,University of Cambridge,99877776,7025.49,Training Awards - Postgraduates
BEIS,UKRI - BBSRC,19/01/2023,Training Awards - Postgraduates,FG - Accounts & Business Planning,University of Cambridge,99877777,401.51,Training Awards - Postgraduates
BEIS,UKRI - BBSRC,19/01/2023,Training Awards - Postgraduates,FG - Accounts & Business Planning,University of Cambridge,99877777,7025.49,Training Awards - Postgraduates
BEIS,UKRI - BBSRC,19/01/2023,Training Awards - Postgraduates,FG - Accounts & Business Planning,University of Nottingham,99877778,7025.48,Training Awards - Postgraduates
BEIS,UKRI - BBSRC,19/01/2023,Training Awards - Postgraduates,FG - Accounts & Business Planning,University of Nottingham,99877778,7025.49,Training Awards - Postgraduates
BEIS,UKRI - BBSRC,19/01/2023,Training Awards - Postgraduates,FG - Accounts & Business Planning,Harper Adams University College,99877779,401.51,Training Awards - Postgraduates
BEIS,UKRI - BBSRC,19/01/2023,Training Awards - Postgraduates,FG - Accounts & Business Planning,Harper Adams University College,99877779,7025.49,Training Awards - Postgraduates
BEIS,UKRI - BBSRC,19/01/2023,Training Awards - Postgraduates,FG - Accounts & Business Planning,University of Nottingham,99877780,401.51,Training Awards - Postgraduates
BEIS,UKRI - BBSRC,19/01/2023,Training Awards - Postgraduates,FG - Accounts & Business Planning,University of Nottingham,99877780,7025.49,Training Awards - Postgraduates
BEIS,UKRI - BBSRC,19/01/2023,Training Awards - Postgraduates,FG - Accounts & Business Planning,The James Hutton Institute,99877781,6623.97,Training Awards - Postgraduates
BEIS,UKRI - BBSRC,19/01/2023,Training Awards - Postgraduates,FG - Accounts & Business Planning,The James Hutton Institute,99877781,6624.00,Training Awards - Postgraduates
BEIS,UKRI - BBSRC,19/01/2023,Training Awards - Postgraduates,FG - Accounts & Business Planning,The James Hutton Institute,99877782,6623.97,Training Awards - Postgraduates
BEIS,UKRI - BBSRC,19/01/2023,Training Awards - Postgraduates,FG - Accounts & Business Planning,The James Hutton Institute,99877782,6624.00,Training Awards - Postgraduates
BEIS,UKRI - BBSRC,19/01/2023,Training Awards - Postgraduates,FG - Accounts & Business Planning,The James Hutton Institute,99877783,6623.97,Training Awards - Postgraduates
BEIS,UKRI - BBSRC,19/01/2023,Training Awards - Postgraduates,FG - Accounts & Business Planning,The James Hutton Institute,99877783,6624.00,Training Awards - Postgraduates
BEIS,UKRI - BBSRC,19/01/2023,Training Awards - Postgraduates,FG - Accounts & Business Planning,University of Nottingham,99877784,401.51,Training Awards - Postgraduates
BEIS,UKRI - BBSRC,19/01/2023,Training Awards - Postgraduates,FG - Accounts & Business Planning,University of Nottingham,99877784,7025.49,Training Awards - Postgraduates
BEIS,UKRI - BBSRC,19/01/2023,Training Awards - Postgraduates,FG - Accounts & Business Planning,The James Hutton Institute,99877785,6623.97,Training Awards - Postgraduates
BEIS,UKRI - BBSRC,19/01/2023,Training Awards - Postgraduates,FG - Accounts & Business Planning,The James Hutton Institute,99877785,6624.00,Training Awards - Postgraduates
BEIS,UKRI - BBSRC,19/01/2023,Training Awards - Postgraduates,FG - Accounts & Business Planning,Harper Adams University College,99877786,401.51,Training Awards - Postgraduates
BEIS,UKRI - BBSRC,19/01/2023,Training Awards - Postgraduates,FG - Accounts & Business Planning,Harper Adams University College,99877786,7025.49,Training Awards - Postgraduates
BEIS,UKRI - BBSRC,19/01/2023,Training Awards - Postgraduates,FG - Accounts & Business Planning,University of Newcastle Upon Tyne,99877787,401.51,Training Awards - Postgraduates
BEIS,UKRI - BBSRC,19/01/2023,Training Awards - Postgraduates,FG - Accounts & Business Planning,University of Newcastle Upon Tyne,99877787,7025.49,Training Awards - Postgraduates
BEIS,UKRI - BBSRC,19/01/2023,Training Awards - Postgraduates,FG - Accounts & Business Planning,Babraham Institute,99877788,397.09,Training Awards - Postgraduates
BEIS,UKRI - BBSRC,19/01/2023,Training Awards - Postgraduates,FG - Accounts & Business Planning,Babraham Institute,99877788,7021.08,Training Awards - Postgraduates
BEIS,UKRI - BBSRC,19/01/2023,Training Awards - Postgraduates,FG - Accounts & Business Planning,Babraham Institute,99877789,397.09,Training Awards - Postgraduates
BEIS,UKRI - BBSRC,19/01/2023,Training Awards - Postgraduates,FG - Accounts & Business Planning,Babraham Institute,99877789,7021.08,Training Awards - Postgraduates
BEIS,UKRI - BBSRC,19/01/2023,Training Awards - Postgraduates,FG - Accounts & Business Planning,Babraham Institute,99877790,397.09,Training Awards - Postgraduates
BEIS,UKRI - BBSRC,19/01/2023,Training Awards - Postgraduates,FG - Accounts & Business Planning,Babraham Institute,99877790,7021.08,Training Awards - Postgraduates
BEIS,UKRI - BBSRC,19/01/2023,Training Awards - Postgraduates,FG - Accounts & Business Planning,Babraham Institute,99877791,397.09,Training Awards - Postgraduates
BEIS,UKRI - BBSRC,19/01/2023,Training Awards - Postgraduates,FG - Accounts & Business Planning,Babraham Institute,99877791,7021.08,Training Awards - Postgraduates
BEIS,UKRI - BBSRC,19/01/2023,Training Awards - Postgraduates,FG - Accounts & Business Planning,Babraham Institute,99877792,397.09,Training Awards - Postgraduates
BEIS,UKRI - BBSRC,19/01/2023,Training Awards - Postgraduates,FG - Accounts & Business Planning,Babraham Institute,99877792,7021.08,Training Awards - Postgraduates
BEIS,UKRI - BBSRC,19/01/2023,Training Awards - Postgraduates,FG - Accounts & Business Planning,Babraham Institute,99877793,397.09,Training Awards - Postgraduates
BEIS,UKRI - BBSRC,19/01/2023,Training Awards - Postgraduates,FG - Accounts & Business Planning,Babraham Institute,99877793,7021.08,Training Awards - Postgraduates
BEIS,UKRI - BBSRC,19/01/2023,Training Awards - Postgraduates,FG - Accounts & Business Planning,The University of Manchester,99877794,6624.00,Training Awards - Postgraduates
BEIS,UKRI - BBSRC,19/01/2023,Training Awards - Postgraduates,FG - Accounts & Business Planning,University of Nottingham,99877795,401.51,Training Awards - Postgraduates
BEIS,UKRI - BBSRC,19/01/2023,Training Awards - Postgraduates,FG - Accounts & Business Planning,University of Nottingham,99877795,7025.49,Training Awards - Postgraduates
BEIS,UKRI - BBSRC,19/01/2023,Training Awards - Postgraduates,FG - Accounts & Business Planning,Imperial College London,99877796,401.51,Training Awards - Postgraduates
BEIS,UKRI - BBSRC,19/01/2023,Training Awards - Postgraduates,FG - Accounts & Business Planning,Imperial College London,99877796,7525.49,Training Awards - Postgraduates
BEIS,UKRI - BBSRC,19/01/2023,Training Awards - Postgraduates,FG - Accounts & Business Planning,University of Liverpool,99877797,401.51,Training Awards - Postgraduates
BEIS,UKRI - BBSRC,19/01/2023,Training Awards - Postgraduates,FG - Accounts & Business Planning,University of Liverpool,99877797,7025.49,Training Awards - Postgraduates
BEIS,UKRI - BBSRC,19/01/2023,Training Awards - Postgraduates,FG - Accounts & Business Planning,University of Liverpool,99877798,401.51,Training Awards - Postgraduates
BEIS,UKRI - BBSRC,19/01/2023,Training Awards - Postgraduates,FG - Accounts & Business Planning,University of Liverpool,99877798,7025.49,Training Awards - Postgraduates
BEIS,UKRI - BBSRC,19/01/2023,Training Awards - Postgraduates,FG - Accounts & Business Planning,University of Oxford,99877799,401.51,Training Awards - Postgraduates
BEIS,UKRI - BBSRC,19/01/2023,Training Awards - Postgraduates,FG - Accounts & Business Planning,University of Oxford,99877799,7025.49,Training Awards - Postgraduates
BEIS,UKRI - BBSRC,19/01/2023,Training Awards - Postgraduates,FG - Accounts & Business Planning,University of Newcastle Upon Tyne,99877800,401.51,Training Awards - Postgraduates
BEIS,UKRI - BBSRC,19/01/2023,Training Awards - Postgraduates,FG - Accounts & Business Planning,University of Newcastle Upon Tyne,99877800,7025.49,Training Awards - Postgraduates
BEIS,UKRI - BBSRC,19/01/2023,Training Awards - Postgraduates,FG - Accounts & Business Planning,University of Glasgow,99877801,6624.00,Training Awards - Postgraduates
BEIS,UKRI - BBSRC,19/01/2023,Training Awards - Postgraduates,FG - Accounts & Business Planning,University of Newcastle Upon Tyne,99877802,401.51,Training Awards - Postgraduates
BEIS,UKRI - BBSRC,19/01/2023,Training Awards - Postgraduates,FG - Accounts & Business Planning,University of Newcastle Upon Tyne,99877802,7025.49,Training Awards - Postgraduates
BEIS,UKRI - BBSRC,19/01/2023,Training Awards - Postgraduates,FG - Accounts & Business Planning,University of Oxford,99877803,6624.00,Training Awards - Postgraduates
BEIS,UKRI - BBSRC,19/01/2023,Training Awards - Postgraduates,FG - Accounts & Business Planning,University of Oxford,99877804,6624.00,Training Awards - Postgraduates
BEIS,UKRI - BBSRC,19/01/2023,Training Awards - Postgraduates,FG - Accounts & Business Planning,University of Durham,99877805,7025.48,Training Awards - Postgraduates
BEIS,UKRI - BBSRC,19/01/2023,Training Awards - Postgraduates,FG - Accounts & Business Planning,University of Durham,99877805,7025.49,Training Awards - Postgraduates
BEIS,UKRI - BBSRC,19/01/2023,Training Awards - Postgraduates,FG - Accounts & Business Planning,University of Durham,99877806,7025.48,Training Awards - Postgraduates
BEIS,UKRI - BBSRC,19/01/2023,Training Awards - Postgraduates,FG - Accounts & Business Planning,University of Durham,99877806,7025.49,Training Awards - Postgraduates
BEIS,UKRI - BBSRC,19/01/2023,Training Awards - Postgraduates,FG - Accounts & Business Planning,University of Durham,99877807,7025.48,Training Awards - Postgraduates
BEIS,UKRI - BBSRC,19/01/2023,Training Awards - Postgraduates,FG - Accounts & Business Planning,University of Durham,99877807,7025.49,Training Awards - Postgraduates
BEIS,UKRI - BBSRC,19/01/2023,Training Awards - Postgraduates,FG - Accounts & Business Planning,University of Newcastle Upon Tyne,99877808,6623.97,Training Awards - Postgraduates
BEIS,UKRI - BBSRC,19/01/2023,Training Awards - Postgraduates,FG - Accounts & Business Planning,University of Newcastle Upon Tyne,99877808,6624.00,Training Awards - Postgraduates
BEIS,UKRI - BBSRC,19/01/2023,Training Awards - Postgraduates,FG - Accounts & Business Planning,University College London,99877809,7525.47,Training Awards - Postgraduates
BEIS,UKRI - BBSRC,19/01/2023,Training Awards - Postgraduates,FG - Accounts & Business Planning,University College London,99877809,7525.49,Training Awards - Postgraduates
BEIS,UKRI - BBSRC,19/01/2023,Training Awards - Postgraduates,FG - Accounts & Business Planning,University College London,99877810,7525.47,Training Awards - Postgraduates
BEIS,UKRI - BBSRC,19/01/2023,Training Awards - Postgraduates,FG - Accounts & Business Planning,University College London,99877810,7525.49,Training Awards - Postgraduates
BEIS,UKRI - BBSRC,19/01/2023,Training Awards - Postgraduates,FG - Accounts & Business Planning,University College London,99877811,401.51,Training Awards - Postgraduates
BEIS,UKRI - BBSRC,19/01/2023,Training Awards - Postgraduates,FG - Accounts & Business Planning,University College London,99877811,7525.49,Training Awards - Postgraduates
BEIS,UKRI - BBSRC,19/01/2023,Training Awards - Postgraduates,FG - Accounts & Business Planning,Imperial College London,99877812,401.51,Training Awards - Postgraduates
BEIS,UKRI - BBSRC,19/01/2023,Training Awards - Postgraduates,FG - Accounts & Business Planning,Imperial College London,99877812,7525.49,Training Awards - Postgraduates
BEIS,UKRI - BBSRC,19/01/2023,Training Awards - Postgraduates,FG - Accounts & Business Planning,University of Strathclyde,99877813,6495.56,Training Awards - Postgraduates
BEIS,UKRI - BBSRC,19/01/2023,Training Awards - Postgraduates,FG - Accounts & Business Planning,National Institute For Agricultural Botany (NIAB),99877814,6897.05,Training Awards - Postgraduates
BEIS,UKRI - BBSRC,19/01/2023,Training Awards - Postgraduates,FG - Accounts & Business Planning,The University of Manchester,99877815,6897.05,Training Awards - Postgraduates
BEIS,UKRI - BBSRC,19/01/2023,Training Awards - Postgraduates,FG - Accounts & Business Planning,National Institute For Agricultural Botany (NIAB),99877816,6897.05,Training Awards - Postgraduates
BEIS,UKRI - BBSRC,19/01/2023,Training Awards - Postgraduates,FG - Accounts & Business Planning,National Institute For Agricultural Botany (NIAB),99877817,6897.05,Training Awards - Postgraduates
BEIS,UKRI - BBSRC,19/01/2023,Training Awards - Postgraduates,FG - Accounts & Business Planning,University of Edinburgh,99877818,6495.59,Training Awards - Postgraduates
BEIS,UKRI - BBSRC,19/01/2023,Training Awards - Postgraduates,FG - Accounts & Business Planning,University of Edinburgh,99877818,6495.56,Training Awards - Postgraduates
BEIS,UKRI - BBSRC,19/01/2023,Training Awards - Postgraduates,FG - Accounts & Business Planning,University of Edinburgh,99877818,6897.07,Training Awards - Postgraduates
BEIS,UKRI - BBSRC,19/01/2023,Training Awards - Postgraduates,FG - Accounts & Business Planning,University of Edinburgh,99877818,6897.05,Training Awards - Postgraduates
BEIS,UKRI - BBSRC,19/01/2023,Training Awards - Postgraduates,FG - Accounts & Business Planning,National Institute For Agricultural Botany (NIAB),99877819,6897.05,Training Awards - Postgraduates
BEIS,UKRI - BBSRC,19/01/2023,Training Awards - Postgraduates,FG - Accounts & Business Planning,National Institute For Agricultural Botany (NIAB),99877820,6897.05,Training Awards - Postgraduates
BEIS,UKRI - BBSRC,19/01/2023,Training Awards - Postgraduates,FG - Accounts & Business Planning,National Institute For Agricultural Botany (NIAB),99877821,6897.05,Training Awards - Postgraduates
BEIS,UKRI - BBSRC,19/01/2023,Training Awards - Postgraduates,FG - Accounts & Business Planning,National Institute For Agricultural Botany (NIAB),99877822,6897.05,Training Awards - Postgraduates
BEIS,UKRI - BBSRC,19/01/2023,Training Awards - Postgraduates,FG - Accounts & Business Planning,National Institute For Agricultural Botany (NIAB),99877823,6897.05,Training Awards - Postgraduates
BEIS,UKRI - BBSRC,19/01/2023,Training Awards - Postgraduates,FG - Accounts & Business Planning,University of Reading,99877824,4251.08,Training Awards - Postgraduates
BEIS,UKRI - BBSRC,19/01/2023,Training Awards - Postgraduates,FG - Accounts & Business Planning,University of Reading,99877824,4251.08,Training Awards - Postgraduates
BEIS,UKRI - BBSRC,19/01/2023,Training Awards - Postgraduates,FG - Accounts & Business Planning,University of Reading,99877824,4251.08,Training Awards - Postgraduates
BEIS,UKRI - BBSRC,19/01/2023,Training Awards - Postgraduates,FG - Accounts & Business Planning,University of Reading,99877824,4251.08,Training Awards - Postgraduates
BEIS,UKRI - BBSRC,19/01/2023,Training Awards - Postgraduates,FG - Accounts & Business Planning,University of Reading,99877824,4251.08,Training Awards - Postgraduates
BEIS,UKRI - BBSRC,19/01/2023,Training Awards - Postgraduates,FG - Accounts & Business Planning,University of Reading,99877824,4251.08,Training Awards - Postgraduates
BEIS,UKRI - BBSRC,19/01/2023,Training Awards - Postgraduates,FG - Accounts & Business Planning,University of Reading,99877824,4652.59,Training Awards - Postgraduates
BEIS,UKRI - BBSRC,19/01/2023,Training Awards - Postgraduates,FG - Accounts & Business Planning,University of Reading,99877824,4251.08,Training Awards - Postgraduates
BEIS,UKRI - BBSRC,19/01/2023,Training Awards - Postgraduates,FG - Accounts & Business Planning,University of Reading,99877824,4251.08,Training Awards - Postgraduates
BEIS,UKRI - BBSRC,19/01/2023,Training Awards - Postgraduates,FG - Accounts & Business Planning,University of Reading,99877824,4652.57,Training Awards - Postgraduates
BEIS,UKRI - BBSRC,19/01/2023,Training Awards - Postgraduates,FG - Accounts & Business Planning,Queen Mary University of London,99877825,7278.12,Training Awards - Postgraduates
BEIS,UKRI - BBSRC,19/01/2023,Training Awards - Postgraduates,FG - Accounts & Business Planning,King's College London,99877826,6995.56,Training Awards - Postgraduates
BEIS,UKRI - BBSRC,19/01/2023,Training Awards - Postgraduates,FG - Accounts & Business Planning,King's College London,99877826,6995.56,Training Awards - Postgraduates
BEIS,UKRI - BBSRC,19/01/2023,Training Awards - Postgraduates,FG - Accounts & Business Planning,King's College London,99877826,6995.56,Training Awards - Postgraduates
BEIS,UKRI - BBSRC,19/01/2023,Training Awards - Postgraduates,FG - Accounts & Business Planning,King's College London,99877826,6995.58,Training Awards - Postgraduates
BEIS,UKRI - BBSRC,19/01/2023,Training Awards - Postgraduates,FG - Accounts & Business Planning,King's College London,99877826,6995.56,Training Awards - Postgraduates
BEIS,UKRI - BBSRC,19/01/2023,Training Awards - Postgraduates,FG - Accounts & Business Planning,The University of Manchester,99877827,6897.05,Training Awards - Postgraduates
BEIS,UKRI - BBSRC,19/01/2023,Training Awards - Postgraduates,FG - Accounts & Business Planning,University of York,99877828,6897.05,Training Awards - Postgraduates
BEIS,UKRI - BBSRC,19/01/2023,Training Awards - Postgraduates,FG - Accounts & Business Planning,University of Warwick,99877829,6897.05,Training Awards - Postgraduates
BEIS,UKRI - BBSRC,19/01/2023,Training Awards - Postgraduates,FG - Accounts & Business Planning,University of Nottingham,99877830,6495.56,Training Awards - Postgraduates
BEIS,UKRI - BBSRC,19/01/2023,Training Awards - Postgraduates,FG - Accounts & Business Planning,University of Nottingham,99877831,6897.05,Training Awards - Postgraduates
BEIS,UKRI - BBSRC,19/01/2023,Training Awards - Postgraduates,FG - Accounts & Business Planning,University of Liverpool,99877832,6897.05,Training Awards - Postgraduates
BEIS,UKRI - BBSRC,19/01/2023,Training Awards - Postgraduates,FG - Accounts & Business Planning,University of Liverpool,99877833,6897.05,Training Awards - Postgraduates
BEIS,UKRI - BBSRC,19/01/2023,Training Awards - Postgraduates,FG - Accounts & Business Planning,University of Exeter,99877834,6897.05,Training Awards - Postgraduates
BEIS,UKRI - BBSRC,19/01/2023,Training Awards - Postgraduates,FG - Accounts & Business Planning,Teesside University,99877835,6897.05,Training Awards - Postgraduates
BEIS,UKRI - BBSRC,19/01/2023,Training Awards - Postgraduates,FG - Accounts & Business Planning,Quadram Institute Bioscience,99877836,6495.56,Training Awards - Postgraduates
BEIS,UKRI - BBSRC,19/01/2023,Training Awards - Postgraduates,FG - Accounts & Business Planning,Queen Mary University of London,99877837,7397.05,Training Awards - Postgraduates
BEIS,UKRI - BBSRC,19/01/2023,Training Awards - Postgraduates,FG - Accounts & Business Planning,University of Leeds,99877838,6495.56,Training Awards - Postgraduates
BEIS,UKRI - BBSRC,19/01/2023,Training Awards - Postgraduates,FG - Accounts & Business Planning,University of Leeds,99877838,6495.56,Training Awards - Postgraduates
BEIS,UKRI - BBSRC,19/01/2023,Training Awards - Postgraduates,FG - Accounts & Business Planning,University of Leeds,99877838,6495.59,Training Awards - Postgraduates
BEIS,UKRI - BBSRC,19/01/2023,Training Awards - Postgraduates,FG - Accounts & Business Planning,University of Leeds,99877838,6495.56,Training Awards - Postgraduates
BEIS,UKRI - BBSRC,19/01/2023,Training Awards - Postgraduates,FG - Accounts & Business Planning,University of Leeds,99877838,6495.56,Training Awards - Postgraduates
BEIS,UKRI - BBSRC,19/01/2023,Training Awards - Postgraduates,FG - Accounts & Business Planning,University of Leeds,99877838,6495.56,Training Awards - Postgraduates
BEIS,UKRI - BBSRC,19/01/2023,Training Awards - Postgraduates,FG - Accounts & Business Planning,University of Leeds,99877839,6495.56,Training Awards - Postgraduates
BEIS,UKRI - BBSRC,19/01/2023,Training Awards - Postgraduates,FG - Accounts & Business Planning,University of Leeds,99877839,6495.56,Training Awards - Postgraduates
BEIS,UKRI - BBSRC,19/01/2023,Training Awards - Postgraduates,FG - Accounts & Business Planning,University of Leeds,99877839,6495.59,Training Awards - Postgraduates
BEIS,UKRI - BBSRC,19/01/2023,Training Awards - Postgraduates,FG - Accounts & Business Planning,University of Leeds,99877839,6495.56,Training Awards - Postgraduates
BEIS,UKRI - BBSRC,19/01/2023,Training Awards - Postgraduates,FG - Accounts & Business Planning,University of Leeds,99877839,6495.56,Training Awards - Postgraduates
BEIS,UKRI - BBSRC,19/01/2023,Training Awards - Postgraduates,FG - Accounts & Business Planning,University of Leeds,99877839,6495.56,Training Awards - Postgraduates
BEIS,UKRI - BBSRC,19/01/2023,Training Awards - Postgraduates,FG - Accounts & Business Planning,University of Cambridge,99877840,6897.05,Training Awards - Postgraduates
BEIS,UKRI - BBSRC,19/01/2023,Training Awards - Postgraduates,FG - Accounts & Business Planning,University of York,99877841,6897.05,Training Awards - Postgraduates
BEIS,UKRI - BBSRC,19/01/2023,Training Awards - Postgraduates,FG - Accounts & Business Planning,University of Strathclyde,99877842,6495.56,Training Awards - Postgraduates
BEIS,UKRI - BBSRC,19/01/2023,Training Awards - Postgraduates,FG - Accounts & Business Planning,University of Strathclyde,99877843,6897.05,Training Awards - Postgraduates
BEIS,UKRI - BBSRC,19/01/2023,Training Awards - Postgraduates,FG - Accounts & Business Planning,University of Strathclyde,99877844,6495.56,Training Awards - Postgraduates
BEIS,UKRI - BBSRC,19/01/2023,Training Awards - Postgraduates,FG - Accounts & Business Planning,University of Strathclyde,99877844,6495.56,Training Awards - Postgraduates
BEIS,UKRI - BBSRC,19/01/2023,Training Awards - Postgraduates,FG - Accounts & Business Planning,University of Strathclyde,99877844,6495.59,Training Awards - Postgraduates
BEIS,UKRI - BBSRC,19/01/2023,Training Awards - Postgraduates,FG - Accounts & Business Planning,University of Strathclyde,99877844,6495.56,Training Awards - Postgraduates
BEIS,UKRI - BBSRC,19/01/2023,Training Awards - Postgraduates,FG - Accounts & Business Planning,University of Strathclyde,99877844,6495.56,Training Awards - Postgraduates
BEIS,UKRI - BBSRC,19/01/2023,Training Awards - Postgraduates,FG - Accounts & Business Planning,University of Strathclyde,99877844,6495.56,Training Awards - Postgraduates
BEIS,UKRI - BBSRC,19/01/2023,Training Awards - Postgraduates,FG - Accounts & Business Planning,University of Stirling,99877845,6495.56,Training Awards - Postgraduates
BEIS,UKRI - BBSRC,19/01/2023,Training Awards - Postgraduates,FG - Accounts & Business Planning,University of Stirling,99877845,6495.56,Training Awards - Postgraduates
BEIS,UKRI - BBSRC,19/01/2023,Training Awards - Postgraduates,FG - Accounts & Business Planning,University of Stirling,99877845,6495.59,Training Awards - Postgraduates
BEIS,UKRI - BBSRC,19/01/2023,Training Awards - Postgraduates,FG - Accounts & Business Planning,University of Stirling,99877845,6495.56,Training Awards - Postgraduates
BEIS,UKRI - BBSRC,19/01/2023,Training Awards - Postgraduates,FG - Accounts & Business Planning,University of Stirling,99877845,6495.56,Training Awards - Postgraduates
BEIS,UKRI - BBSRC,19/01/2023,Training Awards - Postgraduates,FG - Accounts & Business Planning,University of Stirling,99877845,6495.56,Training Awards - Postgraduates
BEIS,UKRI - BBSRC,19/01/2023,Training Awards - Postgraduates,FG - Accounts & Business Planning,Robert Gordon University,99877846,6897.05,Training Awards - Postgraduates
BEIS,UKRI - BBSRC,19/01/2023,Training Awards - Postgraduates,FG - Accounts & Business Planning,Northumbria University,99877847,6495.56,Training Awards - Postgraduates
BEIS,UKRI - BBSRC,19/01/2023,Training Awards - Postgraduates,FG - Accounts & Business Planning,The University of Manchester,99877848,6897.05,Training Awards - Postgraduates
BEIS,UKRI - BBSRC,19/01/2023,Training Awards - Postgraduates,FG - Accounts & Business Planning,University of Edinburgh,99877849,6897.05,Training Awards - Postgraduates
BEIS,UKRI - BBSRC,19/01/2023,Training Awards - Postgraduates,FG - Accounts & Business Planning,University of Edinburgh,99877850,6897.05,Training Awards - Postgraduates
BEIS,UKRI - BBSRC,19/01/2023,Training Awards - Postgraduates,FG - Accounts & Business Planning,University of Edinburgh,99877851,6897.05,Training Awards - Postgraduates
BEIS,UKRI - BBSRC,19/01/2023,Training Awards - Postgraduates,FG - Accounts & Business Planning,University of Edinburgh,99877852,6897.05,Training Awards - Postgraduates
BEIS,UKRI - BBSRC,19/01/2023,Training Awards - Postgraduates,FG - Accounts & Business Planning,University of York,99877853,6897.05,Training Awards - Postgraduates
BEIS,UKRI - BBSRC,19/01/2023,Training Awards - Postgraduates,FG - Accounts & Business Planning,Lancaster University,99877854,6495.56,Training Awards - Postgraduates
BEIS,UKRI - BBSRC,19/01/2023,Training Awards - Postgraduates,FG - Accounts & Business Planning,University College London,99877855,6995.56,Training Awards - Postgraduates
BEIS,UKRI - BBSRC,19/01/2023,Training Awards - Postgraduates,FG - Accounts & Business Planning,University College London,99877856,6995.56,Training Awards - Postgraduates
BEIS,UKRI - BBSRC,19/01/2023,Training Awards - Postgraduates,FG - Accounts & Business Planning,Kingston University,99877857,7397.05,Training Awards - Postgraduates
BEIS,UKRI - BBSRC,19/01/2023,Training Awards - Postgraduates,FG - Accounts & Business Planning,University College London,99877858,7354.19,Training Awards - Postgraduates
BEIS,UKRI - BBSRC,19/01/2023,Training Awards - Postgraduates,FG - Accounts & Business Planning,Imperial College London,99877859,7397.05,Training Awards - Postgraduates
BEIS,UKRI - BBSRC,19/01/2023,Training Awards - Postgraduates,FG - Accounts & Business Planning,Imperial College London,99877860,6995.56,Training Awards - Postgraduates
BEIS,UKRI - BBSRC,19/01/2023,Training Awards - Postgraduates,FG - Accounts & Business Planning,University of Nottingham,99877861,6495.56,Training Awards - Postgraduates
BEIS,UKRI - BBSRC,19/01/2023,Training Awards - Postgraduates,FG - Accounts & Business Planning,University of Nottingham,99877862,6897.05,Training Awards - Postgraduates
BEIS,UKRI - BBSRC,19/01/2023,Training Awards - Postgraduates,FG - Accounts & Business Planning,University of Liverpool,99877863,6897.05,Training Awards - Postgraduates
BEIS,UKRI - BBSRC,19/01/2023,Training Awards - Postgraduates,FG - Accounts & Business Planning,University of Leeds,99877864,6897.05,Training Awards - Postgraduates
BEIS,UKRI - BBSRC,19/01/2023,Training Awards - Postgraduates,FG - Accounts & Business Planning,University of Glasgow,99877865,6897.05,Training Awards - Postgraduates
BEIS,UKRI - BBSRC,19/01/2023,Training Awards - Postgraduates,FG - Accounts & Business Planning,Babraham Institute,99877866,6897.05,Training Awards - Postgraduates
BEIS,UKRI - BBSRC,19/01/2023,Training Awards - Postgraduates,FG - Accounts & Business Planning,University of Sheffield,99877867,6897.05,Training Awards - Postgraduates
BEIS,UKRI - BBSRC,19/01/2023,Training Awards - Postgraduates,FG - Accounts & Business Planning,University of Nottingham,99877868,6897.05,Training Awards - Postgraduates
BEIS,UKRI - BBSRC,19/01/2023,Training Awards - Postgraduates,FG - Accounts & Business Planning,University of Birmingham GRANT,99877869,2932.60,Training Awards - Postgraduates
BEIS,UKRI - BBSRC,19/01/2023,Training Awards - Postgraduates,FG - Accounts & Business Planning,University of Birmingham GRANT,99877869,6897.05,Training Awards - Postgraduates
BEIS,UKRI - BBSRC,19/01/2023,Training Awards - Postgraduates,FG - Accounts & Business Planning,University College London,99877870,7397.05,Training Awards - Postgraduates
BEIS,UKRI - BBSRC,19/01/2023,Training Awards - Postgraduates,FG - Accounts & Business Planning,University College London,99877871,7397.05,Training Awards - Postgraduates
BEIS,UKRI - BBSRC,19/01/2023,Training Awards - Postgraduates,FG - Accounts & Business Planning,University College London,99877872,4434.72,Training Awards - Postgraduates
BEIS,UKRI - BBSRC,19/01/2023,Training Awards - Postgraduates,FG - Accounts & Business Planning,University College London,99877872,7397.05,Training Awards - Postgraduates
BEIS,UKRI - BBSRC,19/01/2023,Training Awards - Postgraduates,FG - Accounts & Business Planning,Institute of Cancer Research,99877873,7397.05,Training Awards - Postgraduates
BEIS,UKRI - BBSRC,19/01/2023,Training Awards - Postgraduates,FG - Accounts & Business Planning,Brunel University London,99877874,7397.05,Training Awards - Postgraduates
BEIS,UKRI - BBSRC,19/01/2023,Training Awards - Postgraduates,FG - Accounts & Business Planning,Queen Mary University of London,99877875,7397.05,Training Awards - Postgraduates
BEIS,UKRI - BBSRC,19/01/2023,Training Awards - Postgraduates,FG - Accounts & Business Planning,Imperial College London,99877876,7397.05,Training Awards - Postgraduates
BEIS,UKRI - BBSRC,19/01/2023,Training Awards - Postgraduates,FG - Accounts & Business Planning,Imperial College London,99877877,7397.05,Training Awards - Postgraduates
BEIS,UKRI - BBSRC,19/01/2023,Training Awards - Postgraduates,FG - Accounts & Business Planning,Imperial College London,99877878,6995.56,Training Awards - Postgraduates
BEIS,UKRI - BBSRC,19/01/2023,Training Awards - Postgraduates,FG - Accounts & Business Planning,University of Sheffield,99877879,6897.05,Training Awards - Postgraduates
BEIS,UKRI - BBSRC,19/01/2023,Training Awards - Postgraduates,FG - Accounts & Business Planning,The University of Manchester,99877880,6897.05,Training Awards - Postgraduates
BEIS,UKRI - BBSRC,19/01/2023,Training Awards - Postgraduates,FG - Accounts & Business Planning,University of Cambridge,99877881,6897.05,Training Awards - Postgraduates
BEIS,UKRI - BBSRC,19/01/2023,Training Awards - Postgraduates,FG - Accounts & Business Planning,Babraham Institute,99877882,6897.05,Training Awards - Postgraduates
BEIS,UKRI - BBSRC,19/01/2023,Training Awards - Postgraduates,FG - Accounts & Business Planning,University of Newcastle Upon Tyne,99877883,6778.12,Training Awards - Postgraduates
BEIS,UKRI - BBSRC,19/01/2023,Training Awards - Postgraduates,FG - Accounts & Business Planning,University of Aberdeen,99877884,6778.12,Training Awards - Postgraduates
BEIS,UKRI - BBSRC,19/01/2023,Training Awards - Postgraduates,FG - Accounts & Business Planning,University of Cambridge,99877885,6778.11,Training Awards - Postgraduates
BEIS,UKRI - BBSRC,19/01/2023,Training Awards - Postgraduates,FG - Accounts & Business Planning,The University of Manchester,99877886,401.51,Training Awards - Postgraduates
BEIS,UKRI - BBSRC,19/01/2023,Training Awards - Postgraduates,FG - Accounts & Business Planning,The University of Manchester,99877886,6778.11,Training Awards - Postgraduates
BEIS,UKRI - BBSRC,19/01/2023,Training Awards - Postgraduates,FG - Accounts & Business Planning,Queen Mary University of London,99877887,7278.11,Training Awards - Postgraduates
BEIS,UKRI - BBSRC,19/01/2023,Training Awards - Postgraduates,FG - Accounts & Business Planning,King's College London,99877888,7278.11,Training Awards - Postgraduates
BEIS,UKRI - BBSRC,19/01/2023,Training Awards - Postgraduates,FG - Accounts & Business Planning,University of Southampton GRANT,99877889,6778.11,Training Awards - Postgraduates
BEIS,UKRI - BBSRC,19/01/2023,Training Awards - Postgraduates,FG - Accounts & Business Planning,University of Southampton GRANT,99877890,6778.11,Training Awards - Postgraduates
BEIS,UKRI - BBSRC,19/01/2023,Training Awards - Postgraduates,FG - Accounts & Business Planning,National Institute For Agricultural Botany (NIAB),99877891,6778.11,Training Awards - Postgraduates
BEIS,UKRI - BBSRC,19/01/2023,Training Awards - Postgraduates,FG - Accounts & Business Planning,National Institute For Agricultural Botany (NIAB),99877892,6778.11,Training Awards - Postgraduates
BEIS,UKRI - BBSRC,19/01/2023,Training Awards - Postgraduates,FG - Accounts & Business Planning,National Institute For Agricultural Botany (NIAB),99877893,6778.11,Training Awards - Postgraduates
BEIS,UKRI - BBSRC,19/01/2023,Training Awards - Postgraduates,FG - Accounts & Business Planning,National Institute For Agricultural Botany (NIAB),99877894,6778.11,Training Awards - Postgraduates
BEIS,UKRI - BBSRC,19/01/2023,Training Awards - Postgraduates,FG - Accounts & Business Planning,National Institute For Agricultural Botany (NIAB),99877895,6778.11,Training Awards - Postgraduates
BEIS,UKRI - BBSRC,19/01/2023,Training Awards - Postgraduates,FG - Accounts & Business Planning,National Institute For Agricultural Botany (NIAB),99877896,6778.11,Training Awards - Postgraduates
BEIS,UKRI - BBSRC,19/01/2023,Training Awards - Postgraduates,FG - Accounts & Business Planning,University of Reading,99877897,6778.11,Training Awards - Postgraduates
BEIS,UKRI - BBSRC,19/01/2023,Training Awards - Postgraduates,FG - Accounts & Business Planning,University of Reading,99877898,6778.11,Training Awards - Postgraduates
BEIS,UKRI - BBSRC,19/01/2023,Training Awards - Postgraduates,FG - Accounts & Business Planning,University of Reading,99877899,6778.11,Training Awards - Postgraduates
BEIS,UKRI - BBSRC,19/01/2023,Training Awards - Postgraduates,FG - Accounts & Business Planning,Lancaster University,99877900,6778.11,Training Awards - Postgraduates
BEIS,UKRI - BBSRC,19/01/2023,Training Awards - Postgraduates,FG - Accounts & Business Planning,Lancaster University,99877901,6778.11,Training Awards - Postgraduates
BEIS,UKRI - BBSRC,19/01/2023,Training Awards - Postgraduates,FG - Accounts & Business Planning,Lancaster University,99877902,6778.11,Training Awards - Postgraduates
BEIS,UKRI - BBSRC,19/01/2023,Training Awards - Postgraduates,FG - Accounts & Business Planning,University of Oxford,99877903,6778.11,Training Awards - Postgraduates
BEIS,UKRI - BBSRC,19/01/2023,Training Awards - Postgraduates,FG - Accounts & Business Planning,University of Warwick,99877904,6778.11,Training Awards - Postgraduates
BEIS,UKRI - BBSRC,19/01/2023,Training Awards - Postgraduates,FG - Accounts & Business Planning,Queen Mary University of London,99877905,7278.11,Training Awards - Postgraduates
BEIS,UKRI - BBSRC,19/01/2023,Training Awards - Postgraduates,FG - Accounts & Business Planning,King's College London,99877906,7278.11,Training Awards - Postgraduates
BEIS,UKRI - BBSRC,19/01/2023,Training Awards - Postgraduates,FG - Accounts & Business Planning,King's College London,99877907,5465.19,Training Awards - Postgraduates
BEIS,UKRI - BBSRC,19/01/2023,Training Awards - Postgraduates,FG - Accounts & Business Planning,King's College London,99877908,7278.11,Training Awards - Postgraduates
BEIS,UKRI - BBSRC,19/01/2023,Training Awards - Postgraduates,FG - Accounts & Business Planning,Imperial College London,99877909,7278.11,Training Awards - Postgraduates
BEIS,UKRI - BBSRC,19/01/2023,Training Awards - Postgraduates,FG - Accounts & Business Planning,Imperial College London,99877910,7278.11,Training Awards - Postgraduates
BEIS,UKRI - BBSRC,19/01/2023,Training Awards - Postgraduates,FG - Accounts & Business Planning,University College London,99877911,7278.11,Training Awards - Postgraduates
BEIS,UKRI - BBSRC,19/01/2023,Training Awards - Postgraduates,FG - Accounts & Business Planning,University College London,99877912,7278.11,Training Awards - Postgraduates
BEIS,UKRI - BBSRC,19/01/2023,Training Awards - Postgraduates,FG - Accounts & Business Planning,Imperial College London,99877913,7278.11,Training Awards - Postgraduates
BEIS,UKRI - BBSRC,19/01/2023,Training Awards - Postgraduates,FG - Accounts & Business Planning,University of Reading,99877914,2584.00,Training Awards - Postgraduates
BEIS,UKRI - BBSRC,19/01/2023,Training Awards - Postgraduates,FG - Accounts & Business Planning,University of Sheffield,99877915,6778.11,Training Awards - Postgraduates
BEIS,UKRI - BBSRC,19/01/2023,Training Awards - Postgraduates,FG - Accounts & Business Planning,University of Nottingham,99877916,6778.11,Training Awards - Postgraduates
BEIS,UKRI - BBSRC,19/01/2023,Training Awards - Postgraduates,FG - Accounts & Business Planning,University of Glasgow,99877917,6778.11,Training Awards - Postgraduates
BEIS,UKRI - BBSRC,19/01/2023,Training Awards - Postgraduates,FG - Accounts & Business Planning,University of Leeds,99877918,6778.11,Training Awards - Postgraduates
BEIS,UKRI - BBSRC,19/01/2023,Training Awards - Postgraduates,FG - Accounts & Business Planning,University of Cambridge,99877919,6778.11,Training Awards - Postgraduates
BEIS,UKRI - BBSRC,19/01/2023,Training Awards - Postgraduates,FG - Accounts & Business Planning,University of Cambridge,99877920,6778.11,Training Awards - Postgraduates
BEIS,UKRI - BBSRC,19/01/2023,Training Awards - Postgraduates,FG - Accounts & Business Planning,University of Cambridge,99877921,6778.11,Training Awards - Postgraduates
BEIS,UKRI - BBSRC,19/01/2023,Training Awards - Postgraduates,FG - Accounts & Business Planning,University of Cambridge,99877922,6778.11,Training Awards - Postgraduates
BEIS,UKRI - BBSRC,19/01/2023,Training Awards - Postgraduates,FG - Accounts & Business Planning,University of St Andrews,99877923,6778.11,Training Awards - Postgraduates
BEIS,UKRI - BBSRC,19/01/2023,Training Awards - Postgraduates,FG - Accounts & Business Planning,The University of Manchester,99877924,6778.11,Training Awards - Postgraduates
BEIS,UKRI - BBSRC,19/01/2023,Training Awards - Postgraduates,FG - Accounts & Business Planning,University of Exeter,99877925,6778.11,Training Awards - Postgraduates
BEIS,UKRI - BBSRC,19/01/2023,Training Awards - Postgraduates,FG - Accounts & Business Planning,University of Exeter,99877926,6778.11,Training Awards - Postgraduates
BEIS,UKRI - BBSRC,19/01/2023,Training Awards - Postgraduates,FG - Accounts & Business Planning,Keele University,99877927,6778.11,Training Awards - Postgraduates
BEIS,UKRI - BBSRC,19/01/2023,Training Awards - Postgraduates,FG - Accounts & Business Planning,University of Edinburgh,99877928,6778.11,Training Awards - Postgraduates
BEIS,UKRI - BBSRC,19/01/2023,Training Awards - Postgraduates,FG - Accounts & Business Planning,Wellcome Trust Sanger Institute,99877929,6778.11,Training Awards - Postgraduates
BEIS,UKRI - BBSRC,19/01/2023,Training Awards - Postgraduates,FG - Accounts & Business Planning,University of Glasgow,99877930,6778.11,Training Awards - Postgraduates
BEIS,UKRI - BBSRC,19/01/2023,Training Awards - Postgraduates,FG - Accounts & Business Planning,University of Sheffield,99877931,6778.11,Training Awards - Postgraduates
BEIS,UKRI - BBSRC,19/01/2023,Training Awards - Postgraduates,FG - Accounts & Business Planning,University of Oxford,99877932,6778.11,Training Awards - Postgraduates
BEIS,UKRI - BBSRC,19/01/2023,Training Awards - Postgraduates,FG - Accounts & Business Planning,Queen's University Belfast GRANT,99877933,5886.11,Training Awards - Postgraduates
BEIS,UKRI - BBSRC,19/01/2023,Training Awards - Postgraduates,FG - Accounts & Business Planning,University of Birmingham GRANT,99877934,787.50,Training Awards - Postgraduates
BEIS,UKRI - BBSRC,19/01/2023,Training Awards - Postgraduates,FG - Accounts & Business Planning,University of Birmingham GRANT,99877934,6778.11,Training Awards - Postgraduates
BEIS,UKRI - BBSRC,19/01/2023,Training Awards - Postgraduates,FG - Accounts & Business Planning,The University of Manchester,99877935,6778.11,Training Awards - Postgraduates
BEIS,UKRI - BBSRC,19/01/2023,Training Awards - Postgraduates,FG - Accounts & Business Planning,University of Exeter,99877936,6778.11,Training Awards - Postgraduates
BEIS,UKRI - BBSRC,19/01/2023,Training Awards - Postgraduates,FG - Accounts & Business Planning,University of Exeter,99877937,1657.80,Training Awards - Postgraduates
BEIS,UKRI - BBSRC,19/01/2023,Training Awards - Postgraduates,FG - Accounts & Business Planning,University of Exeter,99877937,6069.60,Training Awards - Postgraduates
BEIS,UKRI - BBSRC,19/01/2023,Training Awards - Postgraduates,FG - Accounts & Business Planning,University of Cambridge,99877938,6778.11,Training Awards - Postgraduates
BEIS,UKRI - BBSRC,19/01/2023,Training Awards - Postgraduates,FG - Accounts & Business Planning,University of Cambridge,99877939,6778.11,Training Awards - Postgraduates
BEIS,UKRI - BBSRC,19/01/2023,Training Awards - Postgraduates,FG - Accounts & Business Planning,Babraham Institute,99877940,6778.11,Training Awards - Postgraduates
BEIS,UKRI - BBSRC,19/01/2023,Training Awards - Postgraduates,FG - Accounts & Business Planning,University of Nottingham,99877941,6778.11,Training Awards - Postgraduates
BEIS,UKRI - BBSRC,19/01/2023,Training Awards - Postgraduates,FG - Accounts & Business Planning,University of Huddersfield,99877942,6778.11,Training Awards - Postgraduates
BEIS,UKRI - BBSRC,19/01/2023,Training Awards - Postgraduates,FG - Accounts & Business Planning,University of Leeds,99877943,6778.11,Training Awards - Postgraduates
BEIS,UKRI - BBSRC,19/01/2023,Training Awards - Postgraduates,FG - Accounts & Business Planning,University of Glasgow,99877944,6778.11,Training Awards - Postgraduates
BEIS,UKRI - BBSRC,19/01/2023,Training Awards - Postgraduates,FG - Accounts & Business Planning,University of Edinburgh,99877945,6778.11,Training Awards - Postgraduates
BEIS,UKRI - BBSRC,19/01/2023,Training Awards - Postgraduates,FG - Accounts & Business Planning,University of Strathclyde,99877946,6778.11,Training Awards - Postgraduates
BEIS,UKRI - BBSRC,19/01/2023,Training Awards - Postgraduates,FG - Accounts & Business Planning,University of Sheffield,99877947,5941.34,Training Awards - Postgraduates
BEIS,UKRI - BBSRC,19/01/2023,Training Awards - Postgraduates,FG - Accounts & Business Planning,University of Strathclyde,99877948,401.51,Training Awards - Postgraduates
BEIS,UKRI - BBSRC,19/01/2023,Training Awards - Postgraduates,FG - Accounts & Business Planning,University of Strathclyde,99877948,6778.11,Training Awards - Postgraduates
BEIS,UKRI - BBSRC,19/01/2023,Training Awards - Postgraduates,FG - Accounts & Business Planning,University of Edinburgh,99877949,6778.11,Training Awards - Postgraduates
BEIS,UKRI - BBSRC,19/01/2023,Training Awards - Postgraduates,FG - Accounts & Business Planning,University of Aberdeen,99877950,6778.11,Training Awards - Postgraduates
BEIS,UKRI - BBSRC,19/01/2023,Training Awards - Postgraduates,FG - Accounts & Business Planning,University of York,99877951,6778.11,Training Awards - Postgraduates
BEIS,UKRI - BBSRC,19/01/2023,Training Awards - Postgraduates,FG - Accounts & Business Planning,University of Edinburgh,99877952,6778.11,Training Awards - Postgraduates
BEIS,UKRI - BBSRC,19/01/2023,Training Awards - Postgraduates,FG - Accounts & Business Planning,Heriot Watt University,99877953,6778.11,Training Awards - Postgraduates
BEIS,UKRI - BBSRC,19/01/2023,Training Awards - Postgraduates,FG - Accounts & Business Planning,University of Edinburgh,99877954,6778.11,Training Awards - Postgraduates
BEIS,UKRI - BBSRC,19/01/2023,Training Awards - Postgraduates,FG - Accounts & Business Planning,University of Greenwich,99877955,191940.76,Training Awards - Postgraduates
BEIS,UKRI - BBSRC,19/01/2023,Training Awards - Postgraduates,FG - Accounts & Business Planning,The University of Manchester,99877956,6668.93,Training Awards - Postgraduates
BEIS,UKRI - BBSRC,19/01/2023,Training Awards - Postgraduates,FG - Accounts & Business Planning,The University of Manchester,99877957,6668.93,Training Awards - Postgraduates
BEIS,UKRI - BBSRC,19/01/2023,Training Awards - Postgraduates,FG - Accounts & Business Planning,The University of Manchester,99877958,6470.21,Training Awards - Postgraduates
BEIS,UKRI - BBSRC,19/01/2023,Training Awards - Postgraduates,FG - Accounts & Business Planning,University of Warwick,99877959,6668.93,Training Awards - Postgraduates
BEIS,UKRI - BBSRC,19/01/2023,Training Awards - Postgraduates,FG - Accounts & Business Planning,University of Nottingham,99877960,6668.93,Training Awards - Postgraduates
BEIS,UKRI - BBSRC,19/01/2023,Training Awards - Postgraduates,FG - Accounts & Business Planning,University of Durham,99877961,6668.93,Training Awards - Postgraduates
BEIS,UKRI - BBSRC,19/01/2023,Training Awards - Postgraduates,FG - Accounts & Business Planning,University of Cambridge,99877962,6668.93,Training Awards - Postgraduates
BEIS,UKRI - BBSRC,19/01/2023,Training Awards - Postgraduates,FG - Accounts & Business Planning,National Institute For Agricultural Botany (NIAB),99877963,6668.93,Training Awards - Postgraduates
BEIS,UKRI - BBSRC,19/01/2023,Training Awards - Postgraduates,FG - Accounts & Business Planning,National Institute For Agricultural Botany (NIAB),99877964,6668.93,Training Awards - Postgraduates
BEIS,UKRI - BBSRC,19/01/2023,Training Awards - Postgraduates,FG - Accounts & Business Planning,University of Exeter,99877965,5415.44,Training Awards - Postgraduates
BEIS,UKRI - BBSRC,19/01/2023,Training Awards - Postgraduates,FG - Accounts & Business Planning,University of Reading,99877966,6668.93,Training Awards - Postgraduates
BEIS,UKRI - BBSRC,19/01/2023,Training Awards - Postgraduates,FG - Accounts & Business Planning,National Institute For Agricultural Botany (NIAB),99877967,6668.93,Training Awards - Postgraduates
BEIS,UKRI - BBSRC,19/01/2023,Training Awards - Postgraduates,FG - Accounts & Business Planning,National Institute For Agricultural Botany (NIAB),99877968,6668.93,Training Awards - Postgraduates
BEIS,UKRI - BBSRC,19/01/2023,Training Awards - Postgraduates,FG - Accounts & Business Planning,National Institute For Agricultural Botany (NIAB),99877969,6668.93,Training Awards - Postgraduates
BEIS,UKRI - BBSRC,19/01/2023,Training Awards - Postgraduates,FG - Accounts & Business Planning,Quadram Institute Bioscience,99877970,401.51,Training Awards - Postgraduates
BEIS,UKRI - BBSRC,19/01/2023,Training Awards - Postgraduates,FG - Accounts & Business Planning,Quadram Institute Bioscience,99877970,6668.93,Training Awards - Postgraduates
BEIS,UKRI - BBSRC,19/01/2023,Training Awards - Postgraduates,FG - Accounts & Business Planning,University College London,99877971,6745.98,Training Awards - Postgraduates
BEIS,UKRI - BBSRC,19/01/2023,Training Awards - Postgraduates,FG - Accounts & Business Planning,Lancaster University,99877972,6668.93,Training Awards - Postgraduates
BEIS,UKRI - BBSRC,19/01/2023,Training Awards - Postgraduates,FG - Accounts & Business Planning,University of Nottingham,99877973,5276.15,Training Awards - Postgraduates
BEIS,UKRI - BBSRC,19/01/2023,Training Awards - Postgraduates,FG - Accounts & Business Planning,University of Liverpool,99877974,6668.93,Training Awards - Postgraduates
BEIS,UKRI - BBSRC,19/01/2023,Training Awards - Postgraduates,FG - Accounts & Business Planning,University of Strathclyde,99877975,6668.93,Training Awards - Postgraduates
BEIS,UKRI - BBSRC,19/01/2023,Training Awards - Postgraduates,FG - Accounts & Business Planning,"Royal Holloway, University of London",99877976,2818.41,Training Awards - Postgraduates
BEIS,UKRI - BBSRC,19/01/2023,Training Awards - Postgraduates,FG - Accounts & Business Planning,Lancaster University,99877977,6668.93,Training Awards - Postgraduates
BEIS,UKRI - BBSRC,19/01/2023,Training Awards - Postgraduates,FG - Accounts & Business Planning,University of Reading,99877978,6668.93,Training Awards - Postgraduates
BEIS,UKRI - BBSRC,19/01/2023,Training Awards - Postgraduates,FG - Accounts & Business Planning,Lancaster University,99877979,6668.93,Training Awards - Postgraduates
BEIS,UKRI - BBSRC,19/01/2023,Training Awards - Postgraduates,FG - Accounts & Business Planning,Lancaster University,99877980,6668.93,Training Awards - Postgraduates
BEIS,UKRI - BBSRC,19/01/2023,Training Awards - Postgraduates,FG - Accounts & Business Planning,Lancaster University,99877981,6668.93,Training Awards - Postgraduates
BEIS,UKRI - BBSRC,19/01/2023,Training Awards - Postgraduates,FG - Accounts & Business Planning,University of Liverpool,99877982,6668.93,Training Awards - Postgraduates
BEIS,UKRI - BBSRC,19/01/2023,Training Awards - Postgraduates,FG - Accounts & Business Planning,Queen Mary University of London,99877983,6983.44,Training Awards - Postgraduates
BEIS,UKRI - BBSRC,19/01/2023,Training Awards - Postgraduates,FG - Accounts & Business Planning,King's College London,99877984,7168.93,Training Awards - Postgraduates
BEIS,UKRI - BBSRC,19/01/2023,Training Awards - Postgraduates,FG - Accounts & Business Planning,University of Birmingham GRANT,99877985,6668.93,Training Awards - Postgraduates
BEIS,UKRI - BBSRC,19/01/2023,Training Awards - Postgraduates,FG - Accounts & Business Planning,University of Strathclyde,99877986,6668.93,Training Awards - Postgraduates
BEIS,UKRI - BBSRC,19/01/2023,Training Awards - Postgraduates,FG - Accounts & Business Planning,University of Strathclyde,99877987,6668.93,Training Awards - Postgraduates
BEIS,UKRI - BBSRC,19/01/2023,Training Awards - Postgraduates,FG - Accounts & Business Planning,University of York,99877988,1080.00,Training Awards - Postgraduates
BEIS,UKRI - BBSRC,19/01/2023,Training Awards - Postgraduates,FG - Accounts & Business Planning,University of York,99877988,4161.95,Training Awards - Postgraduates
BEIS,UKRI - BBSRC,19/01/2023,Training Awards - Postgraduates,FG - Accounts & Business Planning,University of Newcastle Upon Tyne,99877989,6668.93,Training Awards - Postgraduates
BEIS,UKRI - BBSRC,19/01/2023,Training Awards - Postgraduates,FG - Accounts & Business Planning,University of Edinburgh,99877990,6668.93,Training Awards - Postgraduates
BEIS,UKRI - BBSRC,19/01/2023,Training Awards - Postgraduates,FG - Accounts & Business Planning,Lancaster University,99877991,6668.93,Training Awards - Postgraduates
BEIS,UKRI - BBSRC,19/01/2023,Training Awards - Postgraduates,FG - Accounts & Business Planning,University of Newcastle Upon Tyne,99877992,6668.93,Training Awards - Postgraduates
BEIS,UKRI - BBSRC,19/01/2023,Training Awards - Postgraduates,FG - Accounts & Business Planning,The University of Manchester,99877993,6668.93,Training Awards - Postgraduates
BEIS,UKRI - BBSRC,19/01/2023,Training Awards - Postgraduates,FG - Accounts & Business Planning,The Scottish Association for Marine Science (SAMS Group),99877994,6668.93,Training Awards - Postgraduates
BEIS,UKRI - BBSRC,19/01/2023,Training Awards - Postgraduates,FG - Accounts & Business Planning,University of Edinburgh,99877995,6668.93,Training Awards - Postgraduates
BEIS,UKRI - BBSRC,19/01/2023,Training Awards - Postgraduates,FG - Accounts & Business Planning,University of Edinburgh,99877996,6668.93,Training Awards - Postgraduates
BEIS,UKRI - BBSRC,19/01/2023,Training Awards - Postgraduates,FG - Accounts & Business Planning,The University of Manchester,99877997,6668.93,Training Awards - Postgraduates
BEIS,UKRI - BBSRC,19/01/2023,Training Awards - Postgraduates,FG - Accounts & Business Planning,University of Sheffield,99877998,6668.93,Training Awards - Postgraduates
BEIS,UKRI - BBSRC,19/01/2023,Training Awards - Postgraduates,FG - Accounts & Business Planning,University of Sheffield,99877999,6668.93,Training Awards - Postgraduates
BEIS,UKRI - BBSRC,19/01/2023,Training Awards - Postgraduates,FG - Accounts & Business Planning,University of Cambridge,99878000,6668.93,Training Awards - Postgraduates
BEIS,UKRI - BBSRC,19/01/2023,Training Awards - Postgraduates,FG - Accounts & Business Planning,King's College London,99878001,7168.93,Training Awards - Postgraduates
BEIS,UKRI - BBSRC,19/01/2023,Training Awards - Postgraduates,FG - Accounts & Business Planning,Sheffield Hallam University,99878002,6668.93,Training Awards - Postgraduates
BEIS,UKRI - BBSRC,19/01/2023,Training Awards - Postgraduates,FG - Accounts & Business Planning,University of Leeds,99878003,6668.93,Training Awards - Postgraduates
BEIS,UKRI - BBSRC,19/01/2023,Training Awards - Postgraduates,FG - Accounts & Business Planning,Babraham Institute,99878004,6668.93,Training Awards - Postgraduates
BEIS,UKRI - BBSRC,19/01/2023,Training Awards - Postgraduates,FG - Accounts & Business Planning,The University of Manchester,99878005,5222.60,Training Awards - Postgraduates
BEIS,UKRI - BBSRC,19/01/2023,Training Awards - Postgraduates,FG - Accounts & Business Planning,The University of Manchester,99878006,4858.34,Training Awards - Postgraduates
BEIS,UKRI - BBSRC,19/01/2023,Training Awards - Postgraduates,FG - Accounts & Business Planning,The University of Manchester,99878007,6668.93,Training Awards - Postgraduates
BEIS,UKRI - BBSRC,19/01/2023,Training Awards - Postgraduates,FG - Accounts & Business Planning,University of Nottingham,99878008,6668.93,Training Awards - Postgraduates
BEIS,UKRI - BBSRC,19/01/2023,Training Awards - Postgraduates,FG - Accounts & Business Planning,University of Nottingham,99878009,5624.35,Training Awards - Postgraduates
BEIS,UKRI - BBSRC,19/01/2023,Training Awards - Postgraduates,FG - Accounts & Business Planning,University of Nottingham,99878010,6668.93,Training Awards - Postgraduates
BEIS,UKRI - BBSRC,19/01/2023,Training Awards - Postgraduates,FG - Accounts & Business Planning,Cardiff University,99878011,6668.93,Training Awards - Postgraduates
BEIS,UKRI - BBSRC,19/01/2023,Training Awards - Postgraduates,FG - Accounts & Business Planning,Queen's University Belfast GRANT,99878012,6668.93,Training Awards - Postgraduates
BEIS,UKRI - BBSRC,19/01/2023,Training Awards - Postgraduates,FG - Accounts & Business Planning,University of Cambridge,99878013,6668.93,Training Awards - Postgraduates
BEIS,UKRI - BBSRC,19/01/2023,Training Awards - Postgraduates,FG - Accounts & Business Planning,University of Glasgow,99878014,6668.93,Training Awards - Postgraduates
BEIS,UKRI - BBSRC,19/01/2023,Training Awards - Postgraduates,FG - Accounts & Business Planning,University of Glasgow,99878015,6668.93,Training Awards - Postgraduates
BEIS,UKRI - BBSRC,19/01/2023,Training Awards - Postgraduates,FG - Accounts & Business Planning,University of Glasgow,99878016,6668.93,Training Awards - Postgraduates
BEIS,UKRI - BBSRC,19/01/2023,Training Awards - Postgraduates,FG - Accounts & Business Planning,University College London,99878017,7168.93,Training Awards - Postgraduates
BEIS,UKRI - BBSRC,19/01/2023,Training Awards - Postgraduates,FG - Accounts & Business Planning,University College London,99878018,7168.93,Training Awards - Postgraduates
BEIS,UKRI - BBSRC,19/01/2023,Training Awards - Postgraduates,FG - Accounts & Business Planning,European Bioinformatics Institute,99878019,6668.93,Training Awards - Postgraduates
BEIS,UKRI - BBSRC,19/01/2023,Training Awards - Postgraduates,FG - Accounts & Business Planning,Rothamsted Research Ltd,99878020,6668.93,Training Awards - Postgraduates
BEIS,UKRI - BBSRC,19/01/2023,Training Awards - Postgraduates,FG - Accounts & Business Planning,University of Newcastle Upon Tyne,99878021,6668.93,Training Awards - Postgraduates
BEIS,UKRI - BBSRC,19/01/2023,Training Awards - Postgraduates,FG - Accounts & Business Planning,University of Newcastle Upon Tyne,99878022,6668.93,Training Awards - Postgraduates
BEIS,UKRI - BBSRC,19/01/2023,Training Awards - Postgraduates,FG - Accounts & Business Planning,University of Newcastle Upon Tyne,99878023,6668.93,Training Awards - Postgraduates
BEIS,UKRI - BBSRC,19/01/2023,Training Awards - Postgraduates,FG - Accounts & Business Planning,University of Bristol GRANT,99878024,6668.93,Training Awards - Postgraduates
BEIS,UKRI - BBSRC,19/01/2023,Training Awards - Postgraduates,FG - Accounts & Business Planning,University of Exeter,99878025,3535.21,Training Awards - Postgraduates
BEIS,UKRI - BBSRC,19/01/2023,Training Awards - Postgraduates,FG - Accounts & Business Planning,University of Birmingham GRANT,99878026,6668.93,Training Awards - Postgraduates
BEIS,UKRI - BBSRC,19/01/2023,Training Awards - Postgraduates,FG - Accounts & Business Planning,University of Birmingham GRANT,99878027,6668.93,Training Awards - Postgraduates
BEIS,UKRI - BBSRC,19/01/2023,Training Awards - Postgraduates,FG - Accounts & Business Planning,University of York,99878028,6668.93,Training Awards - Postgraduates
BEIS,UKRI - BBSRC,19/01/2023,Training Awards - Postgraduates,FG - Accounts & Business Planning,University of York,99878029,6668.93,Training Awards - Postgraduates
BEIS,UKRI - BBSRC,19/01/2023,Training Awards - Postgraduates,FG - Accounts & Business Planning,Queen Mary University of London,99878030,7168.93,Training Awards - Postgraduates
BEIS,UKRI - BBSRC,19/01/2023,Training Awards - Postgraduates,FG - Accounts & Business Planning,University of Edinburgh,99878031,6668.93,Training Awards - Postgraduates
BEIS,UKRI - BBSRC,19/01/2023,Training Awards - Postgraduates,FG - Accounts & Business Planning,University of Reading,99878032,6668.93,Training Awards - Postgraduates
BEIS,UKRI - BBSRC,19/01/2023,Training Awards - Postgraduates,FG - Accounts & Business Planning,University of Leeds,99878033,6668.93,Training Awards - Postgraduates
BEIS,UKRI - BBSRC,19/01/2023,Training Awards - Postgraduates,FG - Accounts & Business Planning,University of Durham,99878034,6668.93,Training Awards - Postgraduates
BEIS,UKRI - BBSRC,19/01/2023,Training Awards - Postgraduates,FG - Accounts & Business Planning,Keele University,99878035,6668.93,Training Awards - Postgraduates
BEIS,UKRI - BBSRC,19/01/2023,Training Awards - Postgraduates,FG - Accounts & Business Planning,King's College London,99878036,7168.93,Training Awards - Postgraduates
BEIS,UKRI - BBSRC,19/01/2023,Training Awards - Postgraduates,FG - Accounts & Business Planning,King's College London,99878037,7168.93,Training Awards - Postgraduates
BEIS,UKRI - BBSRC,19/01/2023,Training Awards - Postgraduates,FG - Accounts & Business Planning,Imperial College London,99878038,7624.44,Training Awards - Postgraduates
BEIS,UKRI - BBSRC,19/01/2023,Training Awards - Postgraduates,FG - Accounts & Business Planning,Imperial College London,99878039,7168.93,Training Awards - Postgraduates
BEIS,UKRI - BBSRC,19/01/2023,Training Awards - Postgraduates,FG - Accounts & Business Planning,Imperial College London,99878040,7168.93,Training Awards - Postgraduates
BEIS,UKRI - BBSRC,19/01/2023,Training Awards - Postgraduates,FG - Accounts & Business Planning,University of Liverpool,99878041,6668.93,Training Awards - Postgraduates
BEIS,UKRI - BBSRC,19/01/2023,Training Awards - Postgraduates,FG - Accounts & Business Planning,University of Cambridge,99878042,6668.93,Training Awards - Postgraduates
BEIS,UKRI - BBSRC,19/01/2023,Training Awards - Postgraduates,FG - Accounts & Business Planning,University of Sheffield,99878043,5972.54,Training Awards - Postgraduates
BEIS,UKRI - BBSRC,19/01/2023,Training Awards - Postgraduates,FG - Accounts & Business Planning,University of Southampton GRANT,99878044,6668.93,Training Awards - Postgraduates
BEIS,UKRI - BBSRC,19/01/2023,Training Awards - Postgraduates,FG - Accounts & Business Planning,University of Southampton GRANT,99878045,6668.93,Training Awards - Postgraduates
BEIS,UKRI - BBSRC,19/01/2023,Training Awards - Postgraduates,FG - Accounts & Business Planning,University of Hertfordshire,99878046,6668.94,Training Awards - Postgraduates
BEIS,UKRI - BBSRC,19/01/2023,Training Awards - Postgraduates,FG - Accounts & Business Planning,University of Dundee,99878047,6668.93,Training Awards - Postgraduates
BEIS,UKRI - BBSRC,19/01/2023,Training Awards - Postgraduates,FG - Accounts & Business Planning,University of Oxford,99878048,612696.51,Training Awards - Postgraduates
BEIS,UKRI - BBSRC,19/01/2023,Training Awards - Postgraduates,FG - Accounts & Business Planning,University of Reading,99878049,490057.00,Training Awards - Postgraduates
BEIS,UKRI - BBSRC,19/01/2023,Training Awards - Postgraduates,FG - Accounts & Business Planning,University of Southampton GRANT,99878050,472750.51,Training Awards - Postgraduates
BEIS,UKRI - BBSRC,19/01/2023,Training Awards - Postgraduates,FG - Accounts & Business Planning,University of Edinburgh,99878051,2079.00,Training Awards - Postgraduates
BEIS,UKRI - BBSRC,19/01/2023,Training Awards - Postgraduates,FG - Accounts & Business Planning,University of Edinburgh,99878051,830311.89,Training Awards - Postgraduates
BEIS,UKRI - BBSRC,19/01/2023,Training Awards - Postgraduates,FG - Accounts & Business Planning,University of Bristol GRANT,99878052,750.20,Training Awards - Postgraduates
BEIS,UKRI - BBSRC,19/01/2023,Training Awards - Postgraduates,FG - Accounts & Business Planning,University of Bristol GRANT,99878052,591541.50,Training Awards - Postgraduates
BEIS,UKRI - BBSRC,19/01/2023,Training Awards - Postgraduates,FG - Accounts & Business Planning,The University of Manchester,99878053,1501.39,Training Awards - Postgraduates
BEIS,UKRI - BBSRC,19/01/2023,Training Awards - Postgraduates,FG - Accounts & Business Planning,The University of Manchester,99878053,585928.51,Training Awards - Postgraduates
BEIS,UKRI - BBSRC,19/01/2023,Training Awards - Postgraduates,FG - Accounts & Business Planning,John Innes Centre,99878054,612008.51,Training Awards - Postgraduates
BEIS,UKRI - BBSRC,19/01/2023,Training Awards - Postgraduates,FG - Accounts & Business Planning,University College London,99878055,2784.00,Training Awards - Postgraduates
BEIS,UKRI - BBSRC,19/01/2023,Training Awards - Postgraduates,FG - Accounts & Business Planning,University College London,99878055,982922.51,Training Awards - Postgraduates
BEIS,UKRI - BBSRC,19/01/2023,Training Awards - Postgraduates,FG - Accounts & Business Planning,University of Liverpool,99878056,364773.00,Training Awards - Postgraduates
BEIS,UKRI - BBSRC,19/01/2023,Training Awards - Postgraduates,FG - Accounts & Business Planning,University of Nottingham,99878057,4867.61,Training Awards - Postgraduates
BEIS,UKRI - BBSRC,19/01/2023,Training Awards - Postgraduates,FG - Accounts & Business Planning,University of Nottingham,99878057,685807.00,Training Awards - Postgraduates
BEIS,UKRI - BBSRC,19/01/2023,Training Awards - Postgraduates,FG - Accounts & Business Planning,University of Warwick,99878058,2353.12,Training Awards - Postgraduates
BEIS,UKRI - BBSRC,19/01/2023,Training Awards - Postgraduates,FG - Accounts & Business Planning,University of Warwick,99878058,824861.99,Training Awards - Postgraduates
BEIS,UKRI - BBSRC,19/01/2023,Training Awards - Postgraduates,FG - Accounts & Business Planning,University of Leeds,99878059,1314.00,Training Awards - Postgraduates
BEIS,UKRI - BBSRC,19/01/2023,Training Awards - Postgraduates,FG - Accounts & Business Planning,University of Leeds,99878059,460546.01,Training Awards - Postgraduates
BEIS,UKRI - BBSRC,19/01/2023,Training Awards - Postgraduates,FG - Accounts & Business Planning,University of Edinburgh,99878060,401.49,Training Awards - Postgraduates
BEIS,UKRI - BBSRC,19/01/2023,Training Awards - Postgraduates,FG - Accounts & Business Planning,University of Cambridge,99878061,542.83,Training Awards - Postgraduates
BEIS,UKRI - BBSRC,19/01/2023,Training Awards - Postgraduates,FG - Accounts & Business Planning,University College London,99878062,395.07,Training Awards - Postgraduates
BEIS,UKRI - BBSRC,19/01/2023,Training Awards - Postgraduates,FG - Accounts & Business Planning,University of Leeds,99878063,401.49,Training Awards - Postgraduates
BEIS,UKRI - BBSRC,19/01/2023,Training Awards - Postgraduates,FG - Accounts & Business Planning,University of York,99878064,401.50,Training Awards - Postgraduates
BEIS,UKRI - BBSRC,19/01/2023,Training Awards - Postgraduates,FG - Accounts & Business Planning,University of Aberdeen,99878065,401.49,Training Awards - Postgraduates
BEIS,UKRI - BBSRC,19/01/2023,Training Awards - Postgraduates,FG - Accounts & Business Planning,Imperial College London,99878066,7091.12,Training Awards - Postgraduates
BEIS,UKRI - BBSRC,19/01/2023,Training Awards - Postgraduates,FG - Accounts & Business Planning,University of Warwick,99878067,401.49,Training Awards - Postgraduates
BEIS,UKRI - BBSRC,19/01/2023,Training Awards - Postgraduates,FG - Accounts & Business Planning,University of Glasgow,99878068,401.49,Training Awards - Postgraduates
BEIS,UKRI - BBSRC,19/01/2023,Training Awards - Postgraduates,FG - Accounts & Business Planning,University of Cambridge,99878069,5903.39,Training Awards - Postgraduates
BEIS,UKRI - BBSRC,19/01/2023,Training Awards - Postgraduates,FG - Accounts & Business Planning,The University of Manchester,99878070,4210.48,Training Awards - Postgraduates
BEIS,UKRI - BBSRC,19/01/2023,Training Awards - Postgraduates,FG - Accounts & Business Planning,University of Surrey,99878071,6591.12,Training Awards - Postgraduates
BEIS,UKRI - BBSRC,19/01/2023,Training Awards - Postgraduates,FG - Accounts & Business Planning,University of Oxford,99878072,401.49,Training Awards - Postgraduates
BEIS,UKRI - BBSRC,19/01/2023,Training Awards - Postgraduates,FG - Accounts & Business Planning,University of Edinburgh,99878073,6591.12,Training Awards - Postgraduates
BEIS,UKRI - BBSRC,19/01/2023,Training Awards - Postgraduates,FG - Accounts & Business Planning,University of Nottingham,99878074,401.49,Training Awards - Postgraduates
BEIS,UKRI - BBSRC,19/01/2023,Training Awards - Postgraduates,FG - Accounts & Business Planning,University of Aberdeen,99878075,401.49,Training Awards - Postgraduates
BEIS,UKRI - BBSRC,19/01/2023,Training Awards - Postgraduates,FG - Accounts & Business Planning,King's College London,99878076,401.49,Training Awards - Postgraduates
BEIS,UKRI - BBSRC,19/01/2023,Training Awards - Postgraduates,FG - Accounts & Business Planning,University of Sheffield,99878077,5134.73,Training Awards - Postgraduates
BEIS,UKRI - BBSRC,19/01/2023,Training Awards - Postgraduates,FG - Accounts & Business Planning,University of Leeds,99878078,6591.12,Training Awards - Postgraduates
BEIS,UKRI - BBSRC,19/01/2023,Training Awards - Postgraduates,FG - Accounts & Business Planning,The University of Manchester,99878079,1716.84,Training Awards - Postgraduates
BEIS,UKRI - BBSRC,19/01/2023,Training Awards - Postgraduates,FG - Accounts & Business Planning,Liverpool John Moores University,99878080,401.51,Training Awards - Postgraduates
BEIS,UKRI - BBSRC,19/01/2023,Training Awards - Postgraduates,FG - Accounts & Business Planning,Liverpool John Moores University,99878080,401.49,Training Awards - Postgraduates
BEIS,UKRI - BBSRC,19/01/2023,Training Awards - Postgraduates,FG - Accounts & Business Planning,National Institute For Agricultural Botany (NIAB),99878081,401.49,Training Awards - Postgraduates
BEIS,UKRI - BBSRC,19/01/2023,Training Awards - Postgraduates,FG - Accounts & Business Planning,SRUC,99878082,136.51,Training Awards - Postgraduates
BEIS,UKRI - BBSRC,19/01/2023,Training Awards - Postgraduates,FG - Accounts & Business Planning,University of Oxford,99878083,4981.00,Training Awards - Postgraduates
BEIS,UKRI - BBSRC,19/01/2023,Training Awards - Postgraduates,FG - Accounts & Business Planning,University of Oxford,99878083,245862.17,Training Awards - Postgraduates
BEIS,UKRI - BBSRC,19/01/2023,Training Awards - Postgraduates,FG - Accounts & Business Planning,John Innes Centre,99878084,2342.76,Training Awards - Postgraduates
BEIS,UKRI - BBSRC,19/01/2023,Training Awards - Postgraduates,FG - Accounts & Business Planning,John Innes Centre,99878084,243130.76,Training Awards - Postgraduates
BEIS,UKRI - BBSRC,19/01/2023,Training Awards - Postgraduates,FG - Accounts & Business Planning,The University of Manchester,99878085,5594.48,Training Awards - Postgraduates
BEIS,UKRI - BBSRC,19/01/2023,Training Awards - Postgraduates,FG - Accounts & Business Planning,The University of Manchester,99878085,143677.88,Training Awards - Postgraduates
BEIS,UKRI - BBSRC,19/01/2023,Training Awards - Postgraduates,FG - Accounts & Business Planning,University of Cambridge,99878086,822.00,Training Awards - Postgraduates
BEIS,UKRI - BBSRC,19/01/2023,Training Awards - Postgraduates,FG - Accounts & Business Planning,University of Cambridge,99878086,296283.00,Training Awards - Postgraduates
BEIS,UKRI - BBSRC,19/01/2023,Training Awards - Postgraduates,FG - Accounts & Business Planning,University of Newcastle Upon Tyne,99878087,306.00,Training Awards - Postgraduates
BEIS,UKRI - BBSRC,19/01/2023,Training Awards - Postgraduates,FG - Accounts & Business Planning,University of Newcastle Upon Tyne,99878087,87057.61,Training Awards - Postgraduates
BEIS,UKRI - BBSRC,19/01/2023,Training Awards - Postgraduates,FG - Accounts & Business Planning,Imperial College London,99878088,161440.76,Training Awards - Postgraduates
BEIS,UKRI - BBSRC,19/01/2023,Training Awards - Postgraduates,FG - Accounts & Business Planning,University of Warwick,99878089,1938.06,Training Awards - Postgraduates
BEIS,UKRI - BBSRC,19/01/2023,Training Awards - Postgraduates,FG - Accounts & Business Planning,University of Warwick,99878089,265590.40,Training Awards - Postgraduates
BEIS,UKRI - BBSRC,19/01/2023,Training Awards - Postgraduates,FG - Accounts & Business Planning,University of Leeds,99878090,2111.56,Training Awards - Postgraduates
BEIS,UKRI - BBSRC,19/01/2023,Training Awards - Postgraduates,FG - Accounts & Business Planning,University of Leeds,99878090,225051.20,Training Awards - Postgraduates
BEIS,UKRI - BBSRC,19/01/2023,Training Awards - Postgraduates,FG - Accounts & Business Planning,University of Edinburgh,99878091,149739.33,Training Awards - Postgraduates
BEIS,UKRI - BBSRC,19/01/2023,Training Awards - Postgraduates,FG - Accounts & Business Planning,University College London,99878092,317672.32,Training Awards - Postgraduates
BEIS,UKRI - BBSRC,19/01/2023,Training Awards - Postgraduates,FG - Accounts & Business Planning,University of Bristol GRANT,99878093,4456.76,Training Awards - Postgraduates
BEIS,UKRI - BBSRC,19/01/2023,Training Awards - Postgraduates,FG - Accounts & Business Planning,University of Bristol GRANT,99878093,157999.91,Training Awards - Postgraduates
BEIS,UKRI - BBSRC,19/01/2023,Training Awards - Postgraduates,FG - Accounts & Business Planning,University of Nottingham,99878094,4930.11,Training Awards - Postgraduates
BEIS,UKRI - BBSRC,19/01/2023,Training Awards - Postgraduates,FG - Accounts & Business Planning,University of Nottingham,99878094,255306.26,Training Awards - Postgraduates
BEIS,UKRI - BBSRC,19/01/2023,Training Awards - Postgraduates,FG - Accounts & Business Planning,King's College London,99878095,-6155.86,Training Awards - Postgraduates
BEIS,UKRI - BBSRC,19/01/2023,Training Awards - Postgraduates,FG - Accounts & Business Planning,University of Bath,99878096,6189.55,Training Awards - Postgraduates
BEIS,UKRI - BBSRC,19/01/2023,Training Awards - Postgraduates,FG - Accounts & Business Planning,John Innes Centre,99878097,6189.55,Training Awards - Postgraduates
BEIS,UKRI - BBSRC,19/01/2023,Training Awards - Postgraduates,FG - Accounts & Business Planning,University of East Anglia,99878098,5348.05,Training Awards - Postgraduates
BEIS,UKRI - BBSRC,19/01/2023,Training Awards - Postgraduates,FG - Accounts & Business Planning,University of Nottingham,99878099,6094.41,Training Awards - Postgraduates
BEIS,UKRI - BBSRC,19/01/2023,Training Awards - Postgraduates,FG - Accounts & Business Planning,University of Sheffield,99878100,6107.22,Training Awards - Postgraduates
BEIS,UKRI - BBSRC,19/01/2023,Training Awards - Postgraduates,FG - Accounts & Business Planning,National Institute For Agricultural Botany (NIAB),99878101,6005.06,Training Awards - Postgraduates
BEIS,UKRI - BBSRC,19/01/2023,Training Awards - Postgraduates,FG - Accounts & Business Planning,National Institute For Agricultural Botany (NIAB),99878102,3961.73,Training Awards - Postgraduates
BEIS,UKRI - BBSRC,19/01/2023,Training Awards - Postgraduates,FG - Accounts & Business Planning,National Institute For Agricultural Botany (NIAB),99878103,6189.55,Training Awards - Postgraduates
BEIS,UKRI - BBSRC,19/01/2023,Training Awards - Postgraduates,FG - Accounts & Business Planning,Heriot Watt University,99878104,943.81,Training Awards - Postgraduates
BEIS,UKRI - BBSRC,19/01/2023,Training Awards - Postgraduates,FG - Accounts & Business Planning,University of Sheffield,99878105,6184.93,Training Awards - Postgraduates
BEIS,UKRI - BBSRC,19/01/2023,Training Awards - Postgraduates,FG - Accounts & Business Planning,University of Strathclyde,99878106,5632.86,Training Awards - Postgraduates
BEIS,UKRI - BBSRC,19/01/2023,Training Awards - Postgraduates,FG - Accounts & Business Planning,University of Leicester,99878107,5826.18,Training Awards - Postgraduates
BEIS,UKRI - BBSRC,19/01/2023,Training Awards - Postgraduates,FG - Accounts & Business Planning,University of Newcastle Upon Tyne,99878108,6159.80,Training Awards - Postgraduates
BEIS,UKRI - BBSRC,19/01/2023,Training Awards - Postgraduates,FG - Accounts & Business Planning,University of Nottingham,99878109,5125.71,Training Awards - Postgraduates
BEIS,UKRI - BBSRC,19/01/2023,Training Awards - Postgraduates,FG - Accounts & Business Planning,Cardiff University,99878110,6189.55,Training Awards - Postgraduates
BEIS,UKRI - BBSRC,19/01/2023,Training Awards - Postgraduates,FG - Accounts & Business Planning,University of Glasgow,99878111,6189.55,Training Awards - Postgraduates
BEIS,UKRI - BBSRC,19/01/2023,Training Awards - Postgraduates,FG - Accounts & Business Planning,University of Southampton GRANT,99878112,6189.55,Training Awards - Postgraduates
BEIS,UKRI - BBSRC,19/01/2023,Training Awards - Postgraduates,FG - Accounts & Business Planning,University of Oxford,99878113,4023.67,Training Awards - Postgraduates
BEIS,UKRI - BBSRC,19/01/2023,Training Awards - Postgraduates,FG - Accounts & Business Planning,Quadram Institute Bioscience,99878114,5655.69,Training Awards - Postgraduates
BEIS,UKRI - BBSRC,19/01/2023,Training Awards - Postgraduates,FG - Accounts & Business Planning,National Institute For Agricultural Botany (NIAB),99878115,2787.12,Training Awards - Postgraduates
BEIS,UKRI - BBSRC,19/01/2023,Training Awards - Postgraduates,FG - Accounts & Business Planning,University of Edinburgh,99878116,305.07,Training Awards - Postgraduates
BEIS,UKRI - BBSRC,19/01/2023,Training Awards - Postgraduates,FG - Accounts & Business Planning,University of Southampton GRANT,99878117,5120.32,Training Awards - Postgraduates
BEIS,UKRI - BBSRC,19/01/2023,Training Awards - Postgraduates,FG - Accounts & Business Planning,University of Newcastle Upon Tyne,99878118,24614.53,Training Awards - Postgraduates
BEIS,UKRI - BBSRC,19/01/2023,Research Institutes - Competitive Strategic Grant,Research: Strategic National Capability,The Pirbright Institute,99878290,817500.04,Research Institutes - Competitive Strategic Grant
BEIS,UKRI - BBSRC,19/01/2023,Research Institutes - Competitive Strategic Grant,Research: Strategic National Capability,The Pirbright Institute,99878290,231500.01,Research Institutes - Competitive Strategic Grant
BEIS,UKRI - BBSRC,19/01/2023,Research Institutes - Competitive Strategic Grant,Research: Strategic National Capability,The Pirbright Institute,99878290,33333.34,Research Institutes - Competitive Strategic Grant
BEIS,UKRI - BBSRC,19/01/2023,Research Institutes - Competitive Strategic Grant,Research: Strategic National Capability,The Pirbright Institute,99878290,201083.35,Research Institutes - Competitive Strategic Grant
BEIS,UKRI - BBSRC,19/01/2023,Research Institutes - Competitive Strategic Grant,Research: Strategic National Capability,The Pirbright Institute,99878290,4166.67,Research Institutes - Competitive Strategic Grant
BEIS,UKRI - BBSRC,19/01/2023,Research Grant Expenditure,SPF W1 EMBL EBI,EMBL (European Molecular Biology Laboratory),99880789,803.04,Research Grant Expenditure
BEIS,UKRI - BBSRC,19/01/2023,Doctoral Training Accounts,FG - Accounts & Business Planning,UKRI - Engineering & Physical Sciences Research Council,99881652,2649.55,Doctoral Training Accounts
BEIS,UKRI - BBSRC,19/01/2023,Non-staff travel and subsistance,Science Group – Admin Function,Unspecified,99881664,105.00,Non-staff travel and subsistance
BEIS,UKRI - BBSRC,23/01/2023,Conferences & Seminars,CIMG - Director,Calder Conference Ltd,99876549,77726.41,Conferences & Seminars
BEIS,UKRI - BBSRC,23/01/2023,Research Institutes - Capital Grants: Minor Works,World Class Labs,John Innes Centre,99880350,17900.40,Research Institutes - Capital Grants: Minor Works
BEIS,UKRI - BBSRC,23/01/2023,Research Institutes - Capital Grants: Minor Works,Mid-Range Equipment,John Innes Centre,99880398,88993.36,Research Institutes - Capital Grants: Minor Works
BEIS,UKRI - BBSRC,23/01/2023,Research Grant Expenditure,Research: Responsive,UKRI - Medical Research Council,99881923,107885.00,Research Grant Expenditure
BEIS,UKRI - BBSRC,23/01/2023,Research Institutes - Capital Grants: Minor Works,Mid-Range Equipment,Babraham Institute,99882080,2018.75,Research Institutes - Capital Grants: Minor Works
BEIS,UKRI - BBSRC,23/01/2023,Research Institutes - Capital Grants: Minor Works,Babraham Institute,Babraham Institute,99882083,165.00,Research Institutes - Capital Grants: Minor Works
BEIS,UKRI - BBSRC,23/01/2023,Research Institutes - Capital Grants: Minor Works,World Class Labs,Babraham Institute,99882085,5000.00,Research Institutes - Capital Grants: Minor Works
BEIS,UKRI - BBSRC,23/01/2023,Fees (Including College Members),Science Group - Delivery Function,Unspecified,99882160,460.00,Fees (Including College Members)
BEIS,UKRI - BBSRC,23/01/2023,Fees (Including College Members),Science Group – Admin Function,Unspecified,99882161,340.00,Fees (Including College Members)
BEIS,UKRI - BBSRC,23/01/2023,Non-staff travel and subsistance,Science Group – Admin Function,Unspecified,99883239,233.08,Non-staff travel and subsistance
BEIS,UKRI - BBSRC,23/01/2023,Unspecified,Science Group – Admin Function,Unspecified,99883240,170.00,Council & Committee Honoraria
BEIS,UKRI - BBSRC,23/01/2023,Non-staff travel and subsistance,Science Group – Admin Function,Unspecified,99883241,97.60,Non-staff travel and subsistance
BEIS,UKRI - BBSRC,23/01/2023,Unspecified,Science Group – Admin Function,Unspecified,99883242,510.00,Council & Committee Honoraria
BEIS,UKRI - BBSRC,23/01/2023,Non-staff travel and subsistance,Science Group – Admin Function,Unspecified,99883243,790.50,Non-staff travel and subsistance
BEIS,UKRI - BBSRC,23/01/2023,Non-staff travel and subsistance,Science Group – Admin Function,Unspecified,99883244,307.75,Non-staff travel and subsistance
BEIS,UKRI - BBSRC,23/01/2023,Unspecified,Science Group – Admin Function,Unspecified,99883245,510.00,Council & Committee Honoraria
BEIS,UKRI - BBSRC,23/01/2023,Non-staff travel and subsistance,Science Group – Admin Function,Unspecified,99883246,2564.41,Non-staff travel and subsistance
BEIS,UKRI - BBSRC,23/01/2023,Non-staff travel and subsistance,Science Group – Admin Function,Unspecified,99883247,102.30,Non-staff travel and subsistance
BEIS,UKRI - BBSRC,23/01/2023,Non-staff travel and subsistance,Science Group – Admin Function,Unspecified,99883248,114.91,Non-staff travel and subsistance
BEIS,UKRI - BBSRC,23/01/2023,Non-staff travel and subsistance,Science Group – Admin Function,Unspecified,99883249,24.50,Non-staff travel and subsistance
BEIS,UKRI - BBSRC,23/01/2023,Non-staff travel and subsistance,Science Group – Admin Function,Unspecified,99883250,442.85,Non-staff travel and subsistance
BEIS,UKRI - BBSRC,23/01/2023,Non-staff travel and subsistance,Science Group - Delivery Function,Unspecified,99883251,79.50,Non-staff travel and subsistance
BEIS,UKRI - BBSRC,23/01/2023,Unspecified,Science Group – Admin Function,Unspecified,99883252,510.00,Council & Committee Honoraria
BEIS,UKRI - BBSRC,24/01/2023,Research Institutes - Capital Grants: Minor Works,World Class Labs,Babraham Institute,99882081,34575.81,Research Institutes - Capital Grants: Minor Works
BEIS,UKRI - BBSRC,24/01/2023,Research Institutes - Capital Grants: Minor Works,Mid-Range Equipment,Babraham Institute,99882089,36380.13,Research Institutes - Capital Grants: Minor Works
BEIS,UKRI - BBSRC,24/01/2023,Research Institutes - Capital Grants: Minor Works,World Class Labs,Babraham Institute,99882091,648.00,Research Institutes - Capital Grants: Minor Works
BEIS,UKRI - BBSRC,24/01/2023,Research Institutes - Capital Grants: Minor Works,World Class Labs,Babraham Institute,99882092,128.44,Research Institutes - Capital Grants: Minor Works
BEIS,UKRI - BBSRC,24/01/2023,Conferences & Seminars,Innovation and Skills Group,Calder Conference Ltd,99883125,124.63,Conferences & Seminars
BEIS,UKRI - BBSRC,24/01/2023,T&S UK - Other Charges,FG - Estates,Unspecified,99883379,7.51,T&S UK - Other Charges
BEIS,UKRI - BBSRC,24/01/2023,T&S UK - Vehicle Hire,FG - Estates,Unspecified,99883379,49.63,T&S UK - Vehicle Hire
BEIS,UKRI - BBSRC,24/01/2023,T&S UK - Parking Tolls Congestion Charges,CE - Chief Executive,Unspecified,99883381,12.00,T&S UK - Parking Tolls Congestion Charges
BEIS,UKRI - BBSRC,24/01/2023,Research Grant Expenditure,SPF W1 EMBL EBI,EMBL (European Molecular Biology Laboratory),99884744,13866.72,Research Grant Expenditure
BEIS,UKRI - BBSRC,25/01/2023,Research Institutes - Capital Grants: Major Works,John Innes Centre (JIC) - WCL 2020 Uplift,John Innes Centre,99876336,1092739.44,Research Institutes - Capital Grants: Major Works
BEIS,UKRI - BBSRC,25/01/2023,Research Institutes - Capital Grants: Minor Works,Mid-Range Equipment,John Innes Centre,99880347,155610.00,Research Institutes - Capital Grants: Minor Works
BEIS,UKRI - BBSRC,25/01/2023,Research Institutes - Capital Grants: Minor Works,World Class Labs,John Innes Centre,99880412,404676.00,Research Institutes - Capital Grants: Minor Works
BEIS,UKRI - BBSRC,25/01/2023,Research Institutes - Capital Grants: Minor Works,World Class Labs,Earlham Institute,99880838,789282.17,Research Institutes - Capital Grants: Minor Works
BEIS,UKRI - BBSRC,25/01/2023,Fees (Including College Members),Science Group – Admin Function,Unspecified,99882162,340.75,Fees (Including College Members)
BEIS,UKRI - BBSRC,25/01/2023,T&S UK - Accommodation,CE - IRU,Unspecified,99884364,3.73,T&S UK - Accommodation
BEIS,UKRI - BBSRC,25/01/2023,T&S UK - Public Transport,CE - IRU,Unspecified,99884364,4.58,T&S UK - Public Transport
BEIS,UKRI - BBSRC,25/01/2023,T&S UK - Subsistence,CE - IRU,Unspecified,99884364,31.88,T&S UK - Subsistence
BEIS,UKRI - BBSRC,25/01/2023,T&S UK - Subsistence,CE - IRU,Unspecified,99884364,12.40,T&S UK - Subsistence
BEIS,UKRI - BBSRC,25/01/2023,T&S UK - Subsistence,CE - IRU,Unspecified,99884364,7.10,T&S UK - Subsistence
BEIS,UKRI - BBSRC,25/01/2023,T&S UK - Other Charges,Science Group,Unspecified,99884365,140.00,T&S UK - Other Charges
BEIS,UKRI - BBSRC,25/01/2023,T&S UK - Other Charges,Science Group,Unspecified,99884366,45.66,T&S UK - Other Charges
BEIS,UKRI - BBSRC,25/01/2023,Research Grant Expenditure,SPF W1 EMBL EBI,EMBL (European Molecular Biology Laboratory),99884895,74440.56,Research Grant Expenditure
BEIS,UKRI - BBSRC,25/01/2023,Unspecified,Innovation and Skills Group CDSU,Abbey Business Interiors Ltd,99884960,362.40,Legal & Professional Services
BEIS,UKRI - BBSRC,25/01/2023,Research Grant Expenditure,Research: Strategic,Babraham Institute,99885018,950000.00,Research Grant Expenditure
BEIS,UKRI - BBSRC,25/01/2023,Research Grant Expenditure,NPIF EMBL EBI,EMBL (European Molecular Biology Laboratory),99885349,1077622.22,Research Grant Expenditure
BEIS,UKRI - BBSRC,26/01/2023,Non-staff travel and subsistance,CE - CPS,Calder Conference Ltd,99883300,3175.56,Non-staff travel and subsistance
BEIS,UKRI - BBSRC,26/01/2023,Health & Safety (inc. Medicals & Opticians),CE - CPS,Unspecified,99885769,35.00,Health & Safety (inc. Medicals & Opticians)
BEIS,UKRI - BBSRC,26/01/2023,T&S UK - Mileage,CE - CPS,Unspecified,99885771,117.90,T&S UK - Mileage
BEIS,UKRI - BBSRC,26/01/2023,T&S UK - Vehicle Hire,FG - Estates,Enterprise Rent-A-Car UK Ltd,99886483,76.51,T&S UK - Vehicle Hire
BEIS,UKRI - BBSRC,26/01/2023,T&S UK - Vehicle Hire,FG - Estates,Enterprise Rent-A-Car UK Ltd,99886483,15.30,T&S UK - Vehicle Hire
BEIS,UKRI - BBSRC,27/01/2023,Conferences & Seminars,OpEx SPF W1 UK Animal & Plant Health,Forest Research,99885362,7618.80,Conferences & Seminars
BEIS,UKRI - BBSRC,27/01/2023,Research Institutes - Capital Grants: Minor Works,World Class Labs,Rothamsted Research Ltd,99885570,9106.80,Research Institutes - Capital Grants: Minor Works
BEIS,UKRI - BBSRC,27/01/2023,Non-staff travel and subsistance,Science Group – Admin Function,Unspecified,99885996,138.60,Non-staff travel and subsistance
BEIS,UKRI - BBSRC,27/01/2023,Unspecified,Science Group – Admin Function,Unspecified,99885997,690.00,Council & Committee Honoraria
BEIS,UKRI - BBSRC,27/01/2023,T&S UK - Parking Tolls Congestion Charges,Science Group,Unspecified,99886185,9.80,T&S UK - Parking Tolls Congestion Charges
BEIS,UKRI - BBSRC,27/01/2023,Research Institutes - Capital Grants: Minor Works,World Class Labs,Rothamsted Research Ltd,99886679,48654.00,Research Institutes - Capital Grants: Minor Works
BEIS,UKRI - BBSRC,30/01/2023,Research Institutes - Capital Grants: Minor Works,World Class Labs,The Pirbright Institute,99885345,121339.31,Research Institutes - Capital Grants: Minor Works
BEIS,UKRI - BBSRC,30/01/2023,Fees (Including College Members),Science Group – Admin Function,Unspecified,99886881,340.00,Fees (Including College Members)
BEIS,UKRI - BBSRC,30/01/2023,Fees (Including College Members),Science Group – Admin Function,Unspecified,99886882,460.00,Fees (Including College Members)
BEIS,UKRI - BBSRC,30/01/2023,Unspecified,Science Group – Admin Function,Unspecified,99887203,340.00,Council & Committee Honoraria
BEIS,UKRI - BBSRC,30/01/2023,Unspecified,Science Group – Admin Function,Unspecified,99887204,340.00,Council & Committee Honoraria
BEIS,UKRI - BBSRC,30/01/2023,Unspecified,Science Group – Admin Function,Unspecified,99887205,340.00,Council & Committee Honoraria
BEIS,UKRI - BBSRC,30/01/2023,Unspecified,Science Group – Admin Function,Unspecified,99887206,460.00,Council & Committee Honoraria
BEIS,UKRI - BBSRC,30/01/2023,Unspecified,Science Group – Admin Function,Unspecified,99887207,340.00,Council & Committee Honoraria
BEIS,UKRI - BBSRC,30/01/2023,Unspecified,Science Group – Admin Function,Unspecified,99887208,340.00,Council & Committee Honoraria
BEIS,UKRI - BBSRC,30/01/2023,Unspecified,Science Group – Admin Function,Unspecified,99887209,340.00,Council & Committee Honoraria
BEIS,UKRI - BBSRC,30/01/2023,Unspecified,Science Group – Admin Function,Unspecified,99887210,340.00,Council & Committee Honoraria
BEIS,UKRI - BBSRC,30/01/2023,Unspecified,Science Group – Admin Function,Unspecified,99887211,340.00,Council & Committee Honoraria
BEIS,UKRI - BBSRC,30/01/2023,Unspecified,Science Group – Admin Function,Unspecified,99887212,340.00,Council & Committee Honoraria
BEIS,UKRI - BBSRC,30/01/2023,Unspecified,Science Group – Admin Function,Unspecified,99887213,340.00,Council & Committee Honoraria
BEIS,UKRI - BBSRC,30/01/2023,Unspecified,Science Group – Admin Function,Unspecified,99887214,340.00,Council & Committee Honoraria
BEIS,UKRI - BBSRC,30/01/2023,Unspecified,Science Group – Admin Function,Unspecified,99887215,340.00,Council & Committee Honoraria
BEIS,UKRI - BBSRC,30/01/2023,T&S UK - Other Charges,Science Group – Admin Function,Unspecified,99887287,63.47,T&S UK - Other Charges
BEIS,UKRI - BBSRC,31/01/2023,Conferences & Seminars,Science Group,Calder Conference Ltd,99872186,4770.00,Conferences & Seminars
BEIS,UKRI - BBSRC,31/01/2023,Unspecified,Innovation and Skills Group CDSU,Abbey Business Interiors Ltd,99887263,368.40,Legal & Professional Services
BEIS,UKRI - Research England,03/01/2023,Staff Training,RE - Operations and Private Office,Shine Management Development Ltd,99861908,720.00,Staff Training
BEIS,UKRI - UKRI,03/01/2023,Unspecified,UKRI People and Organisation Development,Alexander Mann Solutions Ltd,99871336,1575.12,Contract Staff
BEIS,UKRI - UKRI,03/01/2023,Unspecified,UKRI - Digital Data and Technology Project Costs,Alexander Mann Solutions Ltd,99871338,2268.22,Contract Staff
BEIS,UKRI - UKRI,03/01/2023,Computer Software,UKRI - Digital Data and Technology BAU Costs,Phoenix Software Ltd,99871416,36.96,Computer Software
BEIS,UKRI - UKRI,03/01/2023,Computer Software,UKRI - Digital Data and Technology BAU Costs,Phoenix Software Ltd,99871417,7.08,Computer Software
BEIS,UKRI - UKRI,03/01/2023,Computer Software Licences,UKRI - Digital Data and Technology BAU Costs,Phoenix Software Ltd,99871418,289.08,Computer Software Licences
BEIS,UKRI - EPSRC,03/01/2023,Conferences & Seminars,Directors and Deputy Directors,Calder Conference Ltd,99872183,882.24,Conferences & Seminars
BEIS,UKRI - Research England,03/01/2023,Conferences & Seminars,RE - Operations and Private Office,Calder Conference Ltd,99872187,1690.20,Conferences & Seminars
BEIS,UKRI - UKRI,03/01/2023,Meetings & Catering,"UKRI - Data Policy, Governance and MI",Benugo Ltd,99872208,229.82,Meetings & Catering
BEIS,UKRI - UKRI,03/01/2023,Unspecified,UKRI - Strategic Finance Business Partners,Alexander Mann Solutions Ltd,99872218,1008.10,Agency Staff
BEIS,UKRI - UKRI,03/01/2023,Electricity,UKRI - JBOS,EDF Energy,99872220,41223.46,Electricity
BEIS,UKRI - UKRI,03/01/2023,Consumables,UKRI - JRS,Ricoh Uk Ltd,99872242,371.59,Consumables
BEIS,UKRI - UKRI,03/01/2023,Consumables,UKRI - JRS,Ricoh Uk Ltd,99872242,371.59,Consumables
BEIS,UKRI - UKRI,03/01/2023,Consumables,UKRI - JRS,Ricoh Uk Ltd,99872242,743.19,Consumables
BEIS,UKRI - UKRI,03/01/2023,Consumables,UKRI - JRS,Ricoh Uk Ltd,99872242,371.59,Consumables
BEIS,UKRI - UKRI,03/01/2023,Consumables,UKRI - JRS,Ricoh Uk Ltd,99872242,107.70,Consumables
BEIS,UKRI - EPSRC,03/01/2023,Telecoms - Calls Fax & internet Costs,PSU IS,Telecoms World Plc,99872492,31.16,Telecoms - Calls Fax & internet Costs
BEIS,UKRI - EPSRC,03/01/2023,Telecoms - Calls Fax & internet Costs,PSU IS,Telecoms World Plc,99872493,20.38,Telecoms - Calls Fax & internet Costs
BEIS,UKRI - UKRI,04/01/2023,Recruitment Costs,UKRI HR – Resourcing,LinkedIn Ireland Unlimited Company,99834584,278.06,Recruitment Costs
